Body Name,Invoice Date,Department Code,Department,Expense Area Code,Expense Area,Expense Type Code,Expense Type,Amt Paid (�'s),Supplier Name,Extended Description,Transaction Number,Period,"Grants to Voluntary, Community and Social Enterprise Organisations"
Rother District Council,23/12/2016,091HOUSING,Housing and Community Services,20200,Housing Needs - HB (Housing Benefit),D2514,Accommodation Costs,64.00,MB Hotels Ltd,Accommodation Costs,2004374,201807,
Rother District Council,30/08/2017,101RESOURCES,Resources,20240,Printing Services,E2302,Third party payment private contractors,21.00,Golden Arrow Couriers,Third party payment private contractors Work by Outside Contractors,2005344,201808,
Rother District Council,15/03/2018,101RESOURCES,Resources,20242,Communications-Phones,D2621,Telephones,"-1,983.22",KCOM Group Plc,Telephones KCOM Smartnumber Charges,2005650,201808,
Rother District Council,01/04/2018,101RESOURCES,Resources,20242,Communications-Phones,D2621,Telephones,"9,916.14",KCOM Group Plc,Telephones KCOM Smartnumber Charges,2005649,201808,
Rother District Council,13/04/2018,091HOUSING,Housing and Community Services,20200,Housing Needs - HB (Housing Benefit),D2514,Accommodation Costs,384.00,MB Hotels Ltd,Accommodation Costs,2004708,201807,
Rother District Council,13/04/2018,091HOUSING,Housing and Community Services,20200,Housing Needs - HB (Housing Benefit),D2514,Accommodation Costs,282.84,MB Hotels Ltd,Accommodation Costs,2004397,201807,
Rother District Council,13/04/2018,091HOUSING,Housing and Community Services,20200,Housing Needs - HB (Housing Benefit),D2514,Accommodation Costs,440.00,MB Hotels Ltd,Accommodation Costs,2004378,201807,
Rother District Council,26/04/2018,091HOUSING,Housing and Community Services,20123,Cemeteries,D2513,Hired and Contracted services,560.00,Bexhill Funeral Service,Hired and contracted services Parks- Public Health Burials,2005053,201807,
Rother District Council,27/04/2018,091HOUSING,Housing and Community Services,20128,Public Conveniences,B1100,Repairs to Premises,"1,872.84",D M Building Services,Repairs to Premises Repairs - Refurbishment of premises,2004808,201807,
Rother District Council,27/04/2018,091HOUSING,Housing and Community Services,20200,Housing Needs - HB (Housing Benefit),D2514,Accommodation Costs,290.00,MB Hotels Ltd,Accommodation Costs,2004384,201807,
Rother District Council,27/04/2018,091HOUSING,Housing and Community Services,20200,Housing Needs - HB (Housing Benefit),D2514,Accommodation Costs,124.29,MB Hotels Ltd,Accommodation Costs,2004383,201807,
Rother District Council,09/05/2018,091HOUSING,Housing and Community Services,20137,Car Parks,D1201,Equipment & Materials,208.77,Cale UK Ltd,Equipment & Materials Ticket Machine Maintenance/ Repairs,2005969,201809,
Rother District Council,11/05/2018,081ACQUISIT,"Acquisitions, Transformation and Regeneration",20136,Regeneration,D2509,Consultants and Other Services,296.05,Valuation Office Agency,Consultants and Other Services,2004719,201807,
Rother District Council,18/05/2018,031RESOURCES,Executive Directors & Corporate Core,20159,Corporate Policy Making,D2513,Hired and Contracted services,500.00,The Information Commissioner,Hired and contracted services Data Protection Act,2006102,201809,
Rother District Council,25/05/2018,101RESOURCES,Resources,20209,Corporate management,D2513,Hired and Contracted services,35.00,The Information Commissioner,Hired and contracted services Data Protection Act,2006101,201809,
Rother District Council,25/05/2018,091HOUSING,Housing and Community Services,20203,Housing Needs - Universal Credit,D2514,Accommodation Costs,290.00,MB Hotels Ltd,Accommodation Costs,2004386,201807,
Rother District Council,25/05/2018,091HOUSING,Housing and Community Services,20203,Housing Needs - Universal Credit,D2514,Accommodation Costs,290.00,MB Hotels Ltd,Accommodation Costs,2004385,201807,
Rother District Council,25/05/2018,091HOUSING,Housing and Community Services,20203,Housing Needs - Universal Credit,D2514,Accommodation Costs,290.00,MB Hotels Ltd,Accommodation Costs,2004387,201807,
Rother District Council,31/05/2018,101RESOURCES,Resources,20239,Computer Services,D2509,Consultants and Other Services,103.00,Wilson's Express Hastings Ltd,Consultants and other services Consultants Fees,2005458,201808,
Rother District Council,01/06/2018,091HOUSING,Housing and Community Services,20203,Housing Needs - Universal Credit,D2514,Accommodation Costs,124.26,MB Hotels Ltd,Accommodation Costs,2004382,201807,
Rother District Council,11/06/2018,081ACQUISIT,"Acquisitions, Transformation and Regeneration",20122,Economic Development,D2518,Advertising,37.50,Lloyds Bank,Advertising Advertising in Newspapers/Magazine,2002958,201809,
Rother District Council,11/06/2018,081ACQUISIT,"Acquisitions, Transformation and Regeneration",20122,Economic Development,D2518,Advertising,37.50,Lloyds Bank,Advertising Advertising in Newspapers/Magazine,2002958,201809,
Rother District Council,11/06/2018,081ACQUISIT,"Acquisitions, Transformation and Regeneration",20144,Property Management,D2518,Advertising,37.50,Lloyds Bank,Advertising Advertising in Newspapers/Magazine,2002958,201809,
Rother District Council,11/06/2018,081ACQUISIT,"Acquisitions, Transformation and Regeneration",20153,"Elva Business Centre, Bexhill",B2612,Cleaning materials,132.78,Lloyds Bank,Cleaning materials Premises,2002958,201809,
Rother District Council,11/06/2018,101RESOURCES,Resources,20239,Computer Services,D2635,Computer Licences,3.96,Lloyds Bank,Computer Licences Domain Name Renewal,2002958,201809,
Rother District Council,11/06/2018,101RESOURCES,Resources,20239,Computer Services,D2622,Mobile Phones,13.98,Lloyds Bank,Mobile Phones Mobile Phone Battery & Charger,2002958,201809,
Rother District Council,12/06/2018,081ACQUISIT,"Acquisitions, Transformation and Regeneration",20146,West Trading Estate,B2422,Sewerage,42.72,Scottish Water Business Stream Limited,Sewage Charges,2005804,201808,
Rother District Council,14/06/2018,091HOUSING,Housing and Community Services,20137,Car Parks,D2923,Grants made,"6,144.00",Ticehurst Parish Council,Grants made - Devolvement Grant,2004530,201807,Yes
Rother District Council,18/06/2018,081ACQUISIT,"Acquisitions, Transformation and Regeneration",20155,Investment properties,D2513,Hired and Contracted services,500.00,Dun & Bradstreet Ltd,Hired and Contracted services,2004559,201807,
Rother District Council,20/06/2018,091HOUSING,Housing and Community Services,20145,Maintenance Services,D1201,Equipment & Materials,896.39,PR Industrial Ltd,Equipment & Materials Purchase of Tools,2004581,201807,
Rother District Council,29/06/2018,091HOUSING,Housing and Community Services,20203,Housing Needs - Universal Credit,D2514,Accommodation Costs,388.57,MB Hotels Ltd,Accommodation Costs,2004381,201807,
Rother District Council,29/06/2018,091HOUSING,Housing and Community Services,20200,Housing Needs - HB (Housing Benefit),D2514,Accommodation Costs,195.00,MB Hotels Ltd,Accommodation Costs,2004376,201807,
Rother District Council,29/06/2018,081ACQUISIT,"Acquisitions, Transformation and Regeneration",20151,Udimore Workshops,B2311,Rents and service charges,183.75,Mr & Mrs Walkling,Rents and service charges Rents - Rye,2006133,201809,
Rother District Council,30/06/2018,091HOUSING,Housing and Community Services,20137,Car Parks,D2513,Hired and Contracted services,"2,093.50",Jade Security Services Ltd,Hired and contracted services Cash Security Fees-Car Parks,2004798,201807,
Rother District Council,09/07/2018,081ACQUISIT,"Acquisitions, Transformation and Regeneration",20144,Property Management,D2518,Advertising,37.50,Lloyds Bank,Advertising Advertising in Newspapers/Magazine,2004832,201807,
Rother District Council,09/07/2018,081ACQUISIT,"Acquisitions, Transformation and Regeneration",20144,Property Management,D2518,Advertising,37.50,Lloyds Bank,Advertising Advertising in Newspapers/Magazine,2004832,201807,
Rother District Council,09/07/2018,081ACQUISIT,"Acquisitions, Transformation and Regeneration",20144,Property Management,D2518,Advertising,37.50,Lloyds Bank,Advertising Advertising in Newspapers/Magazine,2004832,201807,
Rother District Council,09/07/2018,999NOREPORT,Resources,90000,Balance sheet all accounts,P1099,Owed by - Colonnade Bexhill Ltd,624.91,Lloyds Bank,Colonnade Restaurant Bexhill Ltd - purchases,2004835,201807,
Rother District Council,09/07/2018,999NOREPORT,Resources,90000,Balance sheet all accounts,P1099,Owed by - Colonnade Bexhill Ltd,250.00,Lloyds Bank,Colonnade Restaurant Bexhill Ltd - purchases,2004835,201807,
Rother District Council,09/07/2018,999NOREPORT,Resources,90000,Balance sheet all accounts,P1099,Owed by - Colonnade Bexhill Ltd,122.00,Lloyds Bank,Colonnade Restaurant Bexhill Ltd - purchases,2004835,201807,
Rother District Council,09/07/2018,101RESOURCES,Resources,20239,Computer Services,D2633,Computer Equipment,34.36,Lloyds Bank,Computer Equipment Computer Cable,2004832,201807,
Rother District Council,09/07/2018,101RESOURCES,Resources,20239,Computer Services,D2635,Computer Licences,19.98,Lloyds Bank,Computer Licences Domain Name Renewal,2004832,201807,
Rother District Council,09/07/2018,101RESOURCES,Resources,20239,Computer Services,D2635,Computer Licences,79.92,Lloyds Bank,Computer Licences Domain Name Renewal,2004832,201807,
Rother District Council,09/07/2018,101RESOURCES,Resources,20239,Computer Services,D2635,Computer Licences,47.82,Lloyds Bank,Computer Licences Website Management,2004832,201807,
Rother District Council,09/07/2018,101RESOURCES,Resources,20239,Computer Services,D2635,Computer Licences,735.00,Lloyds Bank,Computer Licences Website Management,2004832,201807,
Rother District Council,09/07/2018,101RESOURCES,Resources,20221,Financial Services,D1201,Equipment & Materials,29.99,Lloyds Bank,Equipment & Materials Electrical Equipment,2004826,201807,
Rother District Council,09/07/2018,091HOUSING,Housing and Community Services,20133,Refuse Collection,D2513,Hired and Contracted services,35.00,Lloyds Bank,Hired and contracted services Delivery and/or Packaging of Equipm,2004832,201807,
Rother District Council,09/07/2018,091HOUSING,Housing and Community Services,20133,Refuse Collection,D2513,Hired and Contracted services,35.00,Lloyds Bank,Hired and contracted services Delivery and/or Packaging of Equipm,2004832,201807,
Rother District Council,09/07/2018,091HOUSING,Housing and Community Services,20133,Refuse Collection,D2513,Hired and Contracted services,35.00,Lloyds Bank,Hired and contracted services Delivery and/or Packaging of Equipm,2004832,201807,
Rother District Council,09/07/2018,031RESOURCES,Executive Directors & Corporate Core,20156,Representing Local Interest,D2312,Refreshments,19.94,Lloyds Bank,Refreshments Catering/Refreshments for Meetings,2004832,201807,
Rother District Council,09/07/2018,031RESOURCES,Executive Directors & Corporate Core,20156,Representing Local Interest,D2312,Refreshments,24.98,Lloyds Bank,Refreshments Catering/Refreshments for Meetings,2004832,201807,
Rother District Council,09/07/2018,091HOUSING,Housing and Community Services,20137,Car Parks,B1100,Repairs to Premises,"1,650.00",AJL Roadmarking Ltd,Repairs to Premises White Lining in Car Parks,2005114,201807,
Rother District Council,09/07/2018,091HOUSING,Housing and Community Services,20206,Syrians,D2513,Hired and Contracted services,178.00,Lloyds Bank,Syrian - Bus Pass,2004826,201807,
Rother District Council,13/07/2018,071STRAT,Strategy and Planning,20253,Conservation & Preservation,D2923,Grants made,"5,000.00",Ticehurst Parish Council,Revenue Grants,2004531,201808,Yes
Rother District Council,16/07/2018,081ACQUISIT,"Acquisitions, Transformation and Regeneration",20153,"Elva Business Centre, Bexhill",B2201,Electricity,200.00,NPower Yorkshire Ltd,Electricity Electric Meter Operator Service,2004614,201807,
Rother District Council,19/07/2018,031RESOURCES,Executive Directors & Corporate Core,20175,Administrative Offices - T.H. Annex (NOT CHP),B1100,Repairs to Premises,289.70,Alfa Electric Ltd,Repairs to Premises Repairs - Electrical Works,2005328,201808,
Rother District Council,19/07/2018,031RESOURCES,Executive Directors & Corporate Core,20175,Administrative Offices - T.H. Annex (NOT CHP),B1100,Repairs to Premises,496.48,Alfa Electric Ltd,Repairs to Premises Repairs - Electrical Works,2005328,201808,
Rother District Council,20/07/2018,091HOUSING,Housing and Community Services,20128,Public Conveniences,B1100,Repairs to Premises,"1,491.45",Alfa Electric Ltd,Repairs to Premises Repairs - Electrical Works,2005298,201808,
Rother District Council,20/07/2018,091HOUSING,Housing and Community Services,20128,Public Conveniences,B1100,Repairs to Premises,419.86,Alfa Electric Ltd,Repairs to Premises Repairs - Electrical Works,2004918,201807,
Rother District Council,23/07/2018,091HOUSING,Housing and Community Services,20120,Neighbourhood Services,A2203,Training,360.00,Blue Response Ltd,Training,2005293,201808,
Rother District Council,24/07/2018,091HOUSING,Housing and Community Services,20114,Bexhill Parks & Open Spaces,D2513,Hired and Contracted services,500.00,Highwoods Preservation Society,Grants made - SLA Contribution,2006421,201809,
Rother District Council,25/07/2018,091HOUSING,Housing and Community Services,20114,Bexhill Parks & Open Spaces,B1100,Repairs to Premises,386.96,Alfa Electric Ltd,Repairs to Premises Parks- Electrical Works,2005297,201808,
Rother District Council,31/07/2018,091HOUSING,Housing and Community Services,20145,Maintenance Services,D1201,Equipment & Materials,28.41,Thorcraft Ltd,Equipment & Materials Purchase of Tools,2006361,201809,
Rother District Council,31/07/2018,091HOUSING,Housing and Community Services,20137,Car Parks,D2513,Hired and Contracted services,"2,146.50",Jade Security Services Ltd,Hired and contracted services Cash Security Fees-Car Parks,2004799,201807,
Rother District Council,02/08/2018,091HOUSING,Housing and Community Services,20200,Housing Needs - HB (Housing Benefit),D2514,Accommodation Costs,195.00,MB Hotels Ltd,Accommodation Costs,2004379,201807,
Rother District Council,06/08/2018,101RESOURCES,Resources,20239,Computer Services,D2632,Additional Computer Equipment,63.88,PCM Technology Solutions UK Ltd,Additional Computer Equipment New PC/Computer,2005142,201807,
Rother District Council,06/08/2018,101RESOURCES,Resources,20239,Computer Services,D1201,Equipment & Materials,5.00,PCM Technology Solutions UK Ltd,Equipment & Materials Carriage/Handling Charge,2005142,201807,
Rother District Council,06/08/2018,081ACQUISIT,"Acquisitions, Transformation and Regeneration",20154,Committee Property Account,D1206,Furniture & Fittings,"15,739.00",OASIS,Furniture & Fittings Chair,2005220,201807,
Rother District Council,06/08/2018,081ACQUISIT,"Acquisitions, Transformation and Regeneration",20154,Committee Property Account,D1206,Furniture & Fittings,"3,600.00",OASIS,Furniture & Fittings Chair,2005218,201807,
Rother District Council,06/08/2018,091HOUSING,Housing and Community Services,20137,Car Parks,B1100,Repairs to Premises,250.00,AJL Roadmarking Ltd,Repairs to Premises Car Park Maintenance,2005117,201807,
Rother District Council,06/08/2018,081ACQUISIT,"Acquisitions, Transformation and Regeneration",20153,"Elva Business Centre, Bexhill",B1100,Repairs to Premises,160.00,C-Thru Window Cleaning,Repairs to Premises Specified Repairs and Works listed,2004529,201807,
Rother District Council,07/08/2018,081ACQUISIT,"Acquisitions, Transformation and Regeneration",20148,Misc Land & Buildings,B1100,Repairs to Premises,280.00,Colin A May,Repairs to Premises Parks- Carpentry Repairs,2005007,201807,
Rother District Council,09/08/2018,101RESOURCES,Resources,20239,Computer Services,D2632,Additional Computer Equipment,40.82,Lloyds Bank,Additional Computer Equipment New PC/Computer,2004806,201807,
Rother District Council,09/08/2018,999NOREPORT,Resources,90000,Balance sheet all accounts,P1099,Owed by - Colonnade Bexhill Ltd,298.80,Lloyds Bank,Colonnade Restaurant Bexhill Ltd - purchases,2004805,201807,
Rother District Council,09/08/2018,999NOREPORT,Resources,90000,Balance sheet all accounts,P1099,Owed by - Colonnade Bexhill Ltd,191.63,Lloyds Bank,Colonnade Restaurant Bexhill Ltd - purchases,2004805,201807,
Rother District Council,09/08/2018,999NOREPORT,Resources,90000,Balance sheet all accounts,P1099,Owed by - Colonnade Bexhill Ltd,"1,241.16",Lloyds Bank,Colonnade Restaurant Bexhill Ltd - purchases,2004805,201807,
Rother District Council,09/08/2018,999NOREPORT,Resources,90000,Balance sheet all accounts,P1099,Owed by - Colonnade Bexhill Ltd,24.67,Lloyds Bank,Colonnade Restaurant Bexhill Ltd - purchases,2004805,201807,
Rother District Council,09/08/2018,999NOREPORT,Resources,90000,Balance sheet all accounts,P1099,Owed by - Colonnade Bexhill Ltd,125.00,Lloyds Bank,Colonnade Restaurant Bexhill Ltd - purchases,2004805,201807,
Rother District Council,09/08/2018,999NOREPORT,Resources,90000,Balance sheet all accounts,P1099,Owed by - Colonnade Bexhill Ltd,19.99,Lloyds Bank,Colonnade Restaurant Bexhill Ltd - purchases,2004805,201807,
Rother District Council,09/08/2018,999NOREPORT,Resources,90000,Balance sheet all accounts,P1099,Owed by - Colonnade Bexhill Ltd,10.95,Lloyds Bank,Colonnade Restaurant Bexhill Ltd - purchases,2004805,201807,
Rother District Council,09/08/2018,999NOREPORT,Resources,90000,Balance sheet all accounts,P1099,Owed by - Colonnade Bexhill Ltd,44.95,Lloyds Bank,Colonnade Restaurant Bexhill Ltd - purchases,2004805,201807,
Rother District Council,09/08/2018,999NOREPORT,Resources,90000,Balance sheet all accounts,P1099,Owed by - Colonnade Bexhill Ltd,56.21,Lloyds Bank,Colonnade Restaurant Bexhill Ltd - purchases,2004805,201807,
Rother District Council,09/08/2018,999NOREPORT,Resources,90000,Balance sheet all accounts,P1099,Owed by - Colonnade Bexhill Ltd,23.56,Lloyds Bank,Colonnade Restaurant Bexhill Ltd - purchases,2004805,201807,
Rother District Council,09/08/2018,101RESOURCES,Resources,20239,Computer Services,D2635,Computer Licences,37.90,Lloyds Bank,Computer Licences Website Management,2004806,201807,
Rother District Council,09/08/2018,091HOUSING,Housing and Community Services,20206,Syrians,D2513,Hired and Contracted services,178.00,Lloyds Bank,Syrian - Bus Pass,2004804,201807,
Rother District Council,10/08/2018,999NOREPORT,Resources,90000,Balance sheet all accounts,P1099,Owed by - Colonnade Bexhill Ltd,85.00,Epos Now Ltd,Colonnade Restaurant Bexhill Ltd - purchases,2004751,201807,
Rother District Council,13/08/2018,011COMMUNITY,Community and Economy,20119,"Service Manager, Community and Economy",D2622,Mobile Phones,10.00,O2 (UK) Ltd,Mobile Phones,2005733,201808,
Rother District Council,13/08/2018,081ACQUISIT,"Acquisitions, Transformation and Regeneration",20122,Economic Development,D2622,Mobile Phones,10.00,O2 (UK) Ltd,Mobile Phones,2005733,201808,
Rother District Council,13/08/2018,081ACQUISIT,"Acquisitions, Transformation and Regeneration",20122,Economic Development,D2622,Mobile Phones,10.00,O2 (UK) Ltd,Mobile Phones,2005733,201808,
Rother District Council,13/08/2018,081ACQUISIT,"Acquisitions, Transformation and Regeneration",20122,Economic Development,D2622,Mobile Phones,10.00,O2 (UK) Ltd,Mobile Phones,2005733,201808,
Rother District Council,13/08/2018,081ACQUISIT,"Acquisitions, Transformation and Regeneration",20122,Economic Development,D2622,Mobile Phones,10.00,O2 (UK) Ltd,Mobile Phones,2005733,201808,
Rother District Council,13/08/2018,081ACQUISIT,"Acquisitions, Transformation and Regeneration",20122,Economic Development,D2622,Mobile Phones,10.00,O2 (UK) Ltd,Mobile Phones,2005733,201808,
Rother District Council,13/08/2018,081ACQUISIT,"Acquisitions, Transformation and Regeneration",20122,Economic Development,D2622,Mobile Phones,10.00,O2 (UK) Ltd,Mobile Phones,2005733,201808,
Rother District Council,13/08/2018,081ACQUISIT,"Acquisitions, Transformation and Regeneration",20122,Economic Development,D2622,Mobile Phones,10.00,O2 (UK) Ltd,Mobile Phones,2005733,201808,
Rother District Council,13/08/2018,081ACQUISIT,"Acquisitions, Transformation and Regeneration",20122,Economic Development,D2622,Mobile Phones,10.00,O2 (UK) Ltd,Mobile Phones,2005733,201808,
Rother District Council,13/08/2018,081ACQUISIT,"Acquisitions, Transformation and Regeneration",20122,Economic Development,D2622,Mobile Phones,10.00,O2 (UK) Ltd,Mobile Phones,2005733,201808,
Rother District Council,13/08/2018,081ACQUISIT,"Acquisitions, Transformation and Regeneration",20122,Economic Development,D2622,Mobile Phones,10.00,O2 (UK) Ltd,Mobile Phones,2005733,201808,
Rother District Council,13/08/2018,081ACQUISIT,"Acquisitions, Transformation and Regeneration",20122,Economic Development,D2622,Mobile Phones,-10.00,O2 (UK) Ltd,Mobile Phones,2005734,201808,
Rother District Council,13/08/2018,081ACQUISIT,"Acquisitions, Transformation and Regeneration",20122,Economic Development,D2622,Mobile Phones,-10.00,O2 (UK) Ltd,Mobile Phones,2005734,201808,
Rother District Council,13/08/2018,081ACQUISIT,"Acquisitions, Transformation and Regeneration",20122,Economic Development,D2622,Mobile Phones,-10.00,O2 (UK) Ltd,Mobile Phones,2005734,201808,
Rother District Council,13/08/2018,081ACQUISIT,"Acquisitions, Transformation and Regeneration",20122,Economic Development,D2622,Mobile Phones,-10.00,O2 (UK) Ltd,Mobile Phones,2005734,201808,
Rother District Council,13/08/2018,081ACQUISIT,"Acquisitions, Transformation and Regeneration",20122,Economic Development,D2622,Mobile Phones,-10.00,O2 (UK) Ltd,Mobile Phones,2005734,201808,
Rother District Council,13/08/2018,081ACQUISIT,"Acquisitions, Transformation and Regeneration",20122,Economic Development,D2622,Mobile Phones,-10.00,O2 (UK) Ltd,Mobile Phones,2005734,201808,
Rother District Council,13/08/2018,081ACQUISIT,"Acquisitions, Transformation and Regeneration",20122,Economic Development,D2622,Mobile Phones,-10.00,O2 (UK) Ltd,Mobile Phones,2005734,201808,
Rother District Council,13/08/2018,081ACQUISIT,"Acquisitions, Transformation and Regeneration",20122,Economic Development,D2622,Mobile Phones,-10.00,O2 (UK) Ltd,Mobile Phones,2005734,201808,
Rother District Council,13/08/2018,081ACQUISIT,"Acquisitions, Transformation and Regeneration",20122,Economic Development,D2622,Mobile Phones,-10.00,O2 (UK) Ltd,Mobile Phones,2005734,201808,
Rother District Council,13/08/2018,081ACQUISIT,"Acquisitions, Transformation and Regeneration",20122,Economic Development,D2622,Mobile Phones,-10.00,O2 (UK) Ltd,Mobile Phones,2005734,201808,
Rother District Council,13/08/2018,091HOUSING,Housing and Community Services,20120,Neighbourhood Services,D2622,Mobile Phones,10.00,O2 (UK) Ltd,Mobile Phones,2005733,201808,
Rother District Council,13/08/2018,091HOUSING,Housing and Community Services,20120,Neighbourhood Services,D2622,Mobile Phones,10.00,O2 (UK) Ltd,Mobile Phones,2005733,201808,
Rother District Council,13/08/2018,091HOUSING,Housing and Community Services,20120,Neighbourhood Services,D2622,Mobile Phones,10.00,O2 (UK) Ltd,Mobile Phones,2005733,201808,
Rother District Council,13/08/2018,091HOUSING,Housing and Community Services,20120,Neighbourhood Services,D2622,Mobile Phones,10.00,O2 (UK) Ltd,Mobile Phones,2005733,201808,
Rother District Council,13/08/2018,091HOUSING,Housing and Community Services,20120,Neighbourhood Services,D2622,Mobile Phones,10.00,O2 (UK) Ltd,Mobile Phones,2005733,201808,
Rother District Council,13/08/2018,091HOUSING,Housing and Community Services,20120,Neighbourhood Services,D2622,Mobile Phones,10.00,O2 (UK) Ltd,Mobile Phones,2005733,201808,
Rother District Council,13/08/2018,091HOUSING,Housing and Community Services,20120,Neighbourhood Services,D2622,Mobile Phones,10.00,O2 (UK) Ltd,Mobile Phones,2005733,201808,
Rother District Council,13/08/2018,091HOUSING,Housing and Community Services,20120,Neighbourhood Services,D2622,Mobile Phones,10.00,O2 (UK) Ltd,Mobile Phones,2005733,201808,
Rother District Council,13/08/2018,091HOUSING,Housing and Community Services,20120,Neighbourhood Services,D2622,Mobile Phones,10.00,O2 (UK) Ltd,Mobile Phones,2005733,201808,
Rother District Council,13/08/2018,091HOUSING,Housing and Community Services,20120,Neighbourhood Services,D2622,Mobile Phones,10.32,O2 (UK) Ltd,Mobile Phones,2005733,201808,
Rother District Council,13/08/2018,091HOUSING,Housing and Community Services,20120,Neighbourhood Services,D2622,Mobile Phones,10.12,O2 (UK) Ltd,Mobile Phones,2005733,201808,
Rother District Council,13/08/2018,091HOUSING,Housing and Community Services,20120,Neighbourhood Services,D2622,Mobile Phones,10.00,O2 (UK) Ltd,Mobile Phones,2005733,201808,
Rother District Council,13/08/2018,091HOUSING,Housing and Community Services,20120,Neighbourhood Services,D2622,Mobile Phones,10.00,O2 (UK) Ltd,Mobile Phones,2005733,201808,
Rother District Council,13/08/2018,091HOUSING,Housing and Community Services,20120,Neighbourhood Services,D2622,Mobile Phones,10.00,O2 (UK) Ltd,Mobile Phones,2005733,201808,
Rother District Council,13/08/2018,091HOUSING,Housing and Community Services,20120,Neighbourhood Services,D2622,Mobile Phones,10.00,O2 (UK) Ltd,Mobile Phones,2005733,201808,
Rother District Council,13/08/2018,091HOUSING,Housing and Community Services,20120,Neighbourhood Services,D2622,Mobile Phones,10.00,O2 (UK) Ltd,Mobile Phones,2005733,201808,
Rother District Council,13/08/2018,091HOUSING,Housing and Community Services,20120,Neighbourhood Services,D2622,Mobile Phones,10.00,O2 (UK) Ltd,Mobile Phones,2005733,201808,
Rother District Council,13/08/2018,091HOUSING,Housing and Community Services,20120,Neighbourhood Services,D2622,Mobile Phones,10.00,O2 (UK) Ltd,Mobile Phones,2005733,201808,
Rother District Council,13/08/2018,091HOUSING,Housing and Community Services,20120,Neighbourhood Services,D2622,Mobile Phones,12.66,O2 (UK) Ltd,Mobile Phones,2005733,201808,
Rother District Council,13/08/2018,091HOUSING,Housing and Community Services,20120,Neighbourhood Services,D2622,Mobile Phones,10.41,O2 (UK) Ltd,Mobile Phones,2005733,201808,
Rother District Council,13/08/2018,091HOUSING,Housing and Community Services,20120,Neighbourhood Services,D2622,Mobile Phones,10.00,O2 (UK) Ltd,Mobile Phones,2005733,201808,
Rother District Council,13/08/2018,091HOUSING,Housing and Community Services,20120,Neighbourhood Services,D2622,Mobile Phones,10.00,O2 (UK) Ltd,Mobile Phones,2005733,201808,
Rother District Council,13/08/2018,091HOUSING,Housing and Community Services,20120,Neighbourhood Services,D2622,Mobile Phones,10.00,O2 (UK) Ltd,Mobile Phones,2005733,201808,
Rother District Council,13/08/2018,091HOUSING,Housing and Community Services,20120,Neighbourhood Services,D2622,Mobile Phones,10.00,O2 (UK) Ltd,Mobile Phones,2005733,201808,
Rother District Council,13/08/2018,091HOUSING,Housing and Community Services,20120,Neighbourhood Services,D2622,Mobile Phones,10.00,O2 (UK) Ltd,Mobile Phones,2005733,201808,
Rother District Council,13/08/2018,091HOUSING,Housing and Community Services,20120,Neighbourhood Services,D2622,Mobile Phones,10.95,O2 (UK) Ltd,Mobile Phones,2005733,201808,
Rother District Council,13/08/2018,091HOUSING,Housing and Community Services,20120,Neighbourhood Services,D2622,Mobile Phones,10.00,O2 (UK) Ltd,Mobile Phones,2005733,201808,
Rother District Council,13/08/2018,091HOUSING,Housing and Community Services,20120,Neighbourhood Services,D2622,Mobile Phones,10.00,O2 (UK) Ltd,Mobile Phones,2005733,201808,
Rother District Council,13/08/2018,091HOUSING,Housing and Community Services,20120,Neighbourhood Services,D2622,Mobile Phones,-10.00,O2 (UK) Ltd,Mobile Phones,2005734,201808,
Rother District Council,13/08/2018,091HOUSING,Housing and Community Services,20120,Neighbourhood Services,D2622,Mobile Phones,-10.00,O2 (UK) Ltd,Mobile Phones,2005734,201808,
Rother District Council,13/08/2018,091HOUSING,Housing and Community Services,20120,Neighbourhood Services,D2622,Mobile Phones,-10.00,O2 (UK) Ltd,Mobile Phones,2005734,201808,
Rother District Council,13/08/2018,091HOUSING,Housing and Community Services,20120,Neighbourhood Services,D2622,Mobile Phones,-10.00,O2 (UK) Ltd,Mobile Phones,2005734,201808,
Rother District Council,13/08/2018,091HOUSING,Housing and Community Services,20120,Neighbourhood Services,D2622,Mobile Phones,-10.00,O2 (UK) Ltd,Mobile Phones,2005734,201808,
Rother District Council,13/08/2018,091HOUSING,Housing and Community Services,20120,Neighbourhood Services,D2622,Mobile Phones,-10.00,O2 (UK) Ltd,Mobile Phones,2005734,201808,
Rother District Council,13/08/2018,091HOUSING,Housing and Community Services,20120,Neighbourhood Services,D2622,Mobile Phones,-10.00,O2 (UK) Ltd,Mobile Phones,2005734,201808,
Rother District Council,13/08/2018,091HOUSING,Housing and Community Services,20120,Neighbourhood Services,D2622,Mobile Phones,-10.00,O2 (UK) Ltd,Mobile Phones,2005734,201808,
Rother District Council,13/08/2018,091HOUSING,Housing and Community Services,20120,Neighbourhood Services,D2622,Mobile Phones,-10.00,O2 (UK) Ltd,Mobile Phones,2005734,201808,
Rother District Council,13/08/2018,091HOUSING,Housing and Community Services,20120,Neighbourhood Services,D2622,Mobile Phones,-10.00,O2 (UK) Ltd,Mobile Phones,2005734,201808,
Rother District Council,13/08/2018,091HOUSING,Housing and Community Services,20120,Neighbourhood Services,D2622,Mobile Phones,-10.32,O2 (UK) Ltd,Mobile Phones,2005734,201808,
Rother District Council,13/08/2018,091HOUSING,Housing and Community Services,20120,Neighbourhood Services,D2622,Mobile Phones,-10.12,O2 (UK) Ltd,Mobile Phones,2005734,201808,
Rother District Council,13/08/2018,091HOUSING,Housing and Community Services,20120,Neighbourhood Services,D2622,Mobile Phones,-10.00,O2 (UK) Ltd,Mobile Phones,2005734,201808,
Rother District Council,13/08/2018,091HOUSING,Housing and Community Services,20120,Neighbourhood Services,D2622,Mobile Phones,-10.00,O2 (UK) Ltd,Mobile Phones,2005734,201808,
Rother District Council,13/08/2018,091HOUSING,Housing and Community Services,20120,Neighbourhood Services,D2622,Mobile Phones,-10.00,O2 (UK) Ltd,Mobile Phones,2005734,201808,
Rother District Council,13/08/2018,091HOUSING,Housing and Community Services,20120,Neighbourhood Services,D2622,Mobile Phones,-10.00,O2 (UK) Ltd,Mobile Phones,2005734,201808,
Rother District Council,13/08/2018,091HOUSING,Housing and Community Services,20120,Neighbourhood Services,D2622,Mobile Phones,-10.00,O2 (UK) Ltd,Mobile Phones,2005734,201808,
Rother District Council,13/08/2018,091HOUSING,Housing and Community Services,20120,Neighbourhood Services,D2622,Mobile Phones,-10.00,O2 (UK) Ltd,Mobile Phones,2005734,201808,
Rother District Council,13/08/2018,091HOUSING,Housing and Community Services,20120,Neighbourhood Services,D2622,Mobile Phones,-10.00,O2 (UK) Ltd,Mobile Phones,2005734,201808,
Rother District Council,13/08/2018,091HOUSING,Housing and Community Services,20120,Neighbourhood Services,D2622,Mobile Phones,-12.66,O2 (UK) Ltd,Mobile Phones,2005734,201808,
Rother District Council,13/08/2018,091HOUSING,Housing and Community Services,20120,Neighbourhood Services,D2622,Mobile Phones,-10.41,O2 (UK) Ltd,Mobile Phones,2005734,201808,
Rother District Council,13/08/2018,091HOUSING,Housing and Community Services,20120,Neighbourhood Services,D2622,Mobile Phones,-10.00,O2 (UK) Ltd,Mobile Phones,2005734,201808,
Rother District Council,13/08/2018,091HOUSING,Housing and Community Services,20120,Neighbourhood Services,D2622,Mobile Phones,-10.00,O2 (UK) Ltd,Mobile Phones,2005734,201808,
Rother District Council,13/08/2018,091HOUSING,Housing and Community Services,20120,Neighbourhood Services,D2622,Mobile Phones,-10.00,O2 (UK) Ltd,Mobile Phones,2005734,201808,
Rother District Council,13/08/2018,091HOUSING,Housing and Community Services,20120,Neighbourhood Services,D2622,Mobile Phones,-10.00,O2 (UK) Ltd,Mobile Phones,2005734,201808,
Rother District Council,13/08/2018,091HOUSING,Housing and Community Services,20120,Neighbourhood Services,D2622,Mobile Phones,-10.00,O2 (UK) Ltd,Mobile Phones,2005734,201808,
Rother District Council,13/08/2018,091HOUSING,Housing and Community Services,20120,Neighbourhood Services,D2622,Mobile Phones,-10.95,O2 (UK) Ltd,Mobile Phones,2005734,201808,
Rother District Council,13/08/2018,091HOUSING,Housing and Community Services,20120,Neighbourhood Services,D2622,Mobile Phones,-10.00,O2 (UK) Ltd,Mobile Phones,2005734,201808,
Rother District Council,13/08/2018,091HOUSING,Housing and Community Services,20120,Neighbourhood Services,D2622,Mobile Phones,-10.00,O2 (UK) Ltd,Mobile Phones,2005734,201808,
Rother District Council,13/08/2018,091HOUSING,Housing and Community Services,20204,Housing Administration Account,D2622,Mobile Phones,10.00,O2 (UK) Ltd,Mobile Phones,2005733,201808,
Rother District Council,13/08/2018,091HOUSING,Housing and Community Services,20204,Housing Administration Account,D2622,Mobile Phones,10.00,O2 (UK) Ltd,Mobile Phones,2005733,201808,
Rother District Council,13/08/2018,091HOUSING,Housing and Community Services,20204,Housing Administration Account,D2622,Mobile Phones,10.00,O2 (UK) Ltd,Mobile Phones,2005733,201808,
Rother District Council,13/08/2018,091HOUSING,Housing and Community Services,20204,Housing Administration Account,D2622,Mobile Phones,13.45,O2 (UK) Ltd,Mobile Phones,2005733,201808,
Rother District Council,13/08/2018,091HOUSING,Housing and Community Services,20204,Housing Administration Account,D2622,Mobile Phones,10.00,O2 (UK) Ltd,Mobile Phones,2005733,201808,
Rother District Council,13/08/2018,091HOUSING,Housing and Community Services,20204,Housing Administration Account,D2622,Mobile Phones,10.00,O2 (UK) Ltd,Mobile Phones,2005733,201808,
Rother District Council,13/08/2018,091HOUSING,Housing and Community Services,20204,Housing Administration Account,D2622,Mobile Phones,10.40,O2 (UK) Ltd,Mobile Phones,2005733,201808,
Rother District Council,13/08/2018,091HOUSING,Housing and Community Services,20204,Housing Administration Account,D2622,Mobile Phones,10.00,O2 (UK) Ltd,Mobile Phones,2005733,201808,
Rother District Council,13/08/2018,091HOUSING,Housing and Community Services,20236,Customer Services and Development,D2622,Mobile Phones,107.83,O2 (UK) Ltd,Mobile Phones,2005733,201808,
Rother District Council,13/08/2018,091HOUSING,Housing and Community Services,20236,Customer Services and Development,D2622,Mobile Phones,-107.83,O2 (UK) Ltd,Mobile Phones,2005734,201808,
Rother District Council,13/08/2018,091HOUSING,Housing and Community Services,20204,Housing Administration Account,D2622,Mobile Phones,-10.00,O2 (UK) Ltd,Mobile Phones,2005734,201808,
Rother District Council,13/08/2018,091HOUSING,Housing and Community Services,20204,Housing Administration Account,D2622,Mobile Phones,-10.00,O2 (UK) Ltd,Mobile Phones,2005734,201808,
Rother District Council,13/08/2018,091HOUSING,Housing and Community Services,20204,Housing Administration Account,D2622,Mobile Phones,-10.00,O2 (UK) Ltd,Mobile Phones,2005734,201808,
Rother District Council,13/08/2018,091HOUSING,Housing and Community Services,20204,Housing Administration Account,D2622,Mobile Phones,-13.45,O2 (UK) Ltd,Mobile Phones,2005734,201808,
Rother District Council,13/08/2018,091HOUSING,Housing and Community Services,20204,Housing Administration Account,D2622,Mobile Phones,-10.00,O2 (UK) Ltd,Mobile Phones,2005734,201808,
Rother District Council,13/08/2018,091HOUSING,Housing and Community Services,20204,Housing Administration Account,D2622,Mobile Phones,-10.00,O2 (UK) Ltd,Mobile Phones,2005734,201808,
Rother District Council,13/08/2018,091HOUSING,Housing and Community Services,20204,Housing Administration Account,D2622,Mobile Phones,-10.40,O2 (UK) Ltd,Mobile Phones,2005734,201808,
Rother District Council,13/08/2018,091HOUSING,Housing and Community Services,20204,Housing Administration Account,D2622,Mobile Phones,-10.00,O2 (UK) Ltd,Mobile Phones,2005734,201808,
Rother District Council,15/08/2018,091HOUSING,Housing and Community Services,20107,Camber Beach & Foreshore,C1104,Derv,3.80,Allstar Business Solutions,Derv Fuel Service fee payable on fuel cards,2004762,201807,
Rother District Council,15/08/2018,031RESOURCES,Executive Directors & Corporate Core,20170,Communications-Postages,C1104,Derv,1.90,Allstar Business Solutions,Derv Fuel Service fee payable on fuel cards,2004762,201807,
Rother District Council,15/08/2018,091HOUSING,Housing and Community Services,20145,Maintenance Services,C1104,Derv,1.90,Allstar Business Solutions,Derv Fuel Service fee payable on fuel cards,2004762,201807,
Rother District Council,15/08/2018,091HOUSING,Housing and Community Services,20107,Camber Beach & Foreshore,C1104,Derv,40.78,Allstar Business Solutions,Derv,2004762,201807,
Rother District Council,15/08/2018,091HOUSING,Housing and Community Services,20107,Camber Beach & Foreshore,C1104,Derv,29.18,Allstar Business Solutions,Derv,2004762,201807,
Rother District Council,15/08/2018,031RESOURCES,Executive Directors & Corporate Core,20170,Communications-Postages,C1103,Petrol,45.38,Allstar Business Solutions,Petrol,2004762,201807,
Rother District Council,15/08/2018,091HOUSING,Housing and Community Services,20145,Maintenance Services,C1104,Derv,84.73,Allstar Business Solutions,Derv,2004762,201807,
Rother District Council,15/08/2018,091HOUSING,Housing and Community Services,20145,Maintenance Services,C1104,Derv,14.16,Allstar Business Solutions,Derv,2004762,201807,
Rother District Council,15/08/2018,091HOUSING,Housing and Community Services,20145,Maintenance Services,C1104,Derv,35.00,Allstar Business Solutions,Derv,2004762,201807,
Rother District Council,15/08/2018,091HOUSING,Housing and Community Services,20145,Maintenance Services,C1104,Derv,24.96,Allstar Business Solutions,Derv,2004762,201807,
Rother District Council,15/08/2018,091HOUSING,Housing and Community Services,20145,Maintenance Services,C1104,Derv,74.94,Allstar Business Solutions,Derv,2004762,201807,
Rother District Council,16/08/2018,101RESOURCES,Resources,20240,Printing Services,D2417,Photocopy Paper by external suppliers,106.26,Antalis Ltd,Photocopy Paper Wide Format Consumables,2004982,201807,
Rother District Council,19/08/2018,999NOREPORT,Resources,90000,Balance sheet all accounts,P1099,Owed by - Colonnade Bexhill Ltd,"1,218.39",The Colonnade Bexhill Ltd,Colonnade Restaurant Bexhill Ltd - purchases,2004437,201807,
Rother District Council,19/08/2018,999NOREPORT,Resources,90000,Balance sheet all accounts,P1099,Owed by - Colonnade Bexhill Ltd,"1,218.39",The Colonnade Bexhill Ltd,Colonnade Restaurant Bexhill Ltd - purchases,2005631,201808,
Rother District Council,20/08/2018,101RESOURCES,Resources,20216,Cost Of Collection,D2513,Hired and Contracted services,"2,000.00",Inform CPI Ltd,Hired and contracted services RV Finder,2004725,201807,
Rother District Council,21/08/2018,091HOUSING,Housing and Community Services,20114,Bexhill Parks & Open Spaces,B1100,Repairs to Premises,670.00,Kompan Ltd,Repairs to Premises Parks - Playground Repairs,2004656,201807,
Rother District Council,24/08/2018,031RESOURCES,Executive Directors & Corporate Core,20156,Representing Local Interest,D2922,Subscriptions,50.00,Action In Rural Sussex,Subscriptions Subscription to Organisations,2006081,201809,
Rother District Council,25/08/2018,091HOUSING,Housing and Community Services,20200,Housing Needs - HB (Housing Benefit),D2508,Removals and Storage,160.00,Senlac Storage Ltd,Removals and Storage,2004888,201807,
Rother District Council,26/08/2018,091HOUSING,Housing and Community Services,20114,Bexhill Parks & Open Spaces,B1100,Repairs to Premises,298.00,R R and C White,Repairs to Premises Parks- Landscaping Works,2004591,201807,
Rother District Council,29/08/2018,081ACQUISIT,"Acquisitions, Transformation and Regeneration",20155,Investment properties,D2513,Hired and Contracted services,628.75,Valuation Office Agency,Hired and Contracted services,2003684,201807,
Rother District Council,31/08/2018,091HOUSING,Housing and Community Services,20234,Battle Community Help Point,B2611,Contract cleaning,205.70,Abacus Main Ltd,Contract cleaning Office Cleaning,2004404,201807,
Rother District Council,31/08/2018,091HOUSING,Housing and Community Services,20107,Camber Beach & Foreshore,C1104,Derv,1.90,Allstar Business Solutions,Derv Fuel Service fee payable on fuel cards,2004763,201807,
Rother District Council,31/08/2018,091HOUSING,Housing and Community Services,20145,Maintenance Services,C1104,Derv,1.90,Allstar Business Solutions,Derv Fuel Service fee payable on fuel cards,2004763,201807,
Rother District Council,31/08/2018,081ACQUISIT,"Acquisitions, Transformation and Regeneration",20144,Property Management,D2513,Hired and Contracted services,"38,620.00",GTA Civils Ltd,Hired and contracted services- corporate plan  - blackfriars,2004470,201807,
Rother District Council,31/08/2018,101RESOURCES,Resources,20216,Cost Of Collection,D2513,Hired and Contracted services,24.00,H M Land Registry,Hired and contracted services Council Tax-Land Registry Enquiries,2005618,201808,
Rother District Council,31/08/2018,071STRAT,Strategy and Planning,20246,Planning Applications,D2513,Hired and Contracted services,24.00,H M Land Registry,Hired and contracted services Land Registry - Planning,2005618,201808,
Rother District Council,31/08/2018,081ACQUISIT,"Acquisitions, Transformation and Regeneration",20136,Regeneration,D2513,Hired and Contracted services,"1,500.00",Rye and District Chamber of Commerce,Hired and contracted services Locate East Sussex,2003998,201807,
Rother District Council,31/08/2018,101RESOURCES,Resources,20209,Corporate management,D2513,Hired and Contracted services,"2,236.50",Jade Security Services Ltd,Hired and contracted services Service fee paid,2004797,201807,
Rother District Council,31/08/2018,031RESOURCES,Executive Directors & Corporate Core,20162,Electoral Registration,D2626,Postages,"11,172.56",Electoral Reform Services Ltd,Postages Response Service - Royal Mail Chg,2006537,201810,
Rother District Council,31/08/2018,031RESOURCES,Executive Directors & Corporate Core,20162,Electoral Registration,D2415,Printing by external suppliers,"3,881.54",Electoral Reform Services Ltd,Printing Printing (Not from RDC Print Room),2006537,201810,
Rother District Council,31/08/2018,091HOUSING,Housing and Community Services,20107,Camber Beach & Foreshore,C1104,Derv,15.47,Allstar Business Solutions,Derv,2004763,201807,
Rother District Council,31/08/2018,091HOUSING,Housing and Community Services,20145,Maintenance Services,C1104,Derv,41.67,Allstar Business Solutions,Derv,2004763,201807,
Rother District Council,31/08/2018,091HOUSING,Housing and Community Services,20145,Maintenance Services,C1104,Derv,38.33,Allstar Business Solutions,Derv,2004763,201807,
Rother District Council,31/08/2018,091HOUSING,Housing and Community Services,20145,Maintenance Services,C1104,Derv,60.00,Allstar Business Solutions,Derv,2004763,201807,
Rother District Council,31/08/2018,091HOUSING,Housing and Community Services,20145,Maintenance Services,C1104,Derv,69.17,Allstar Business Solutions,Derv,2004763,201807,
Rother District Council,31/08/2018,091HOUSING,Housing and Community Services,20145,Maintenance Services,C1104,Derv,71.23,Allstar Business Solutions,Derv,2004763,201807,
Rother District Council,31/08/2018,101RESOURCES,Resources,20217,Reliefs & Benefits-Council Tax Benefit,D2513,Hired and Contracted services,"3,213.92",Capita Business Services Ltd,Hired and Contracted services,2004560,201807,
Rother District Council,01/09/2018,101RESOURCES,Resources,20209,Corporate management,D2513,Hired and Contracted services,-15.46,Merchant Rentals Ltd,Hired and contracted services Streamline Machine-Rental,2005624,201808,
Rother District Council,02/09/2018,101RESOURCES,Resources,20242,Communications-Phones,D2621,Telephones,420.00,TalkTalk Communications Ltd T/A TalkTalk Business,Telephones Broadband Connection,2004774,201807,
Rother District Council,02/09/2018,101RESOURCES,Resources,20242,Communications-Phones,D2621,Telephones,54.07,TalkTalk Communications Ltd T/A TalkTalk Business,Telephones Telephone Call Costs + Line Rental,2004772,201807,
Rother District Council,02/09/2018,091HOUSING,Housing and Community Services,20200,Housing Needs - HB (Housing Benefit),D2514,Accommodation Costs,262.50,Specialist Care UK Group Ltd,Accommodation Costs,2004634,201807,
Rother District Council,02/09/2018,091HOUSING,Housing and Community Services,20200,Housing Needs - HB (Housing Benefit),D2514,Accommodation Costs,300.00,Specialist Care UK Group Ltd,Accommodation Costs,2004629,201807,
Rother District Council,02/09/2018,091HOUSING,Housing and Community Services,20200,Housing Needs - HB (Housing Benefit),D2514,Accommodation Costs,262.50,Specialist Care UK Group Ltd,Accommodation Costs,2004630,201807,
Rother District Council,02/09/2018,091HOUSING,Housing and Community Services,20200,Housing Needs - HB (Housing Benefit),D2514,Accommodation Costs,350.00,Specialist Care UK Group Ltd,Accommodation Costs,2004632,201807,
Rother District Council,02/09/2018,091HOUSING,Housing and Community Services,20200,Housing Needs - HB (Housing Benefit),D2514,Accommodation Costs,262.50,Specialist Care UK Group Ltd,Accommodation Costs,2004633,201807,
Rother District Council,02/09/2018,091HOUSING,Housing and Community Services,20200,Housing Needs - HB (Housing Benefit),D2514,Accommodation Costs,175.00,Specialist Care UK Group Ltd,Accommodation Costs,2004635,201807,
Rother District Council,02/09/2018,091HOUSING,Housing and Community Services,20200,Housing Needs - HB (Housing Benefit),D2514,Accommodation Costs,262.50,Specialist Care UK Group Ltd,Accommodation Costs,2004637,201807,
Rother District Council,02/09/2018,091HOUSING,Housing and Community Services,20200,Housing Needs - HB (Housing Benefit),D2514,Accommodation Costs,262.50,Specialist Care UK Group Ltd,Accommodation Costs,2004638,201807,
Rother District Council,02/09/2018,091HOUSING,Housing and Community Services,20200,Housing Needs - HB (Housing Benefit),D2518,Advertising,175.00,Specialist Care UK Group Ltd,Advertising,2004631,201807,
Rother District Council,02/09/2018,091HOUSING,Housing and Community Services,20200,Housing Needs - HB (Housing Benefit),D2514,Accommodation Costs,375.00,Specialist Care UK Group Ltd,Accommodation Costs,2004639,201807,
Rother District Council,02/09/2018,091HOUSING,Housing and Community Services,20200,Housing Needs - HB (Housing Benefit),D2514,Accommodation Costs,262.50,Specialist Care UK Group Ltd,Accommodation Costs,2004636,201807,
Rother District Council,02/09/2018,091HOUSING,Housing and Community Services,20200,Housing Needs - HB (Housing Benefit),D2514,Accommodation Costs,350.00,Specialist Care UK Group Ltd,Accommodation Costs,2004640,201807,
Rother District Council,02/09/2018,091HOUSING,Housing and Community Services,20200,Housing Needs - HB (Housing Benefit),D2514,Accommodation Costs,350.00,Specialist Care UK Group Ltd,Accommodation Costs,2004682,201807,
Rother District Council,03/09/2018,101RESOURCES,Resources,20240,Printing Services,D2638,Photocopier Contracts,766.59,Canon (UK) Ltd,Computer Equip Maintenance Maintenance re Colourwave Printer,2003897,201807,
Rother District Council,03/09/2018,091HOUSING,Housing and Community Services,20205,Housing Loans Account,D2514,Accommodation Costs,875.00,Dale Saunders,Homelessness services Deposit for Landlords,2005138,201807,
Rother District Council,03/09/2018,091HOUSING,Housing and Community Services,20205,Housing Loans Account,D2514,Accommodation Costs,875.00,Dale Saunders,Homelessness services Rent in Advance for Homeless,2005138,201807,
Rother District Council,05/09/2018,101RESOURCES,Resources,20209,Corporate management,D2513,Hired and Contracted services,116.07,Lloyds Bank,Bank Charges Bank Charges,2004776,201807,
Rother District Council,05/09/2018,101RESOURCES,Resources,20209,Corporate management,D2513,Hired and Contracted services,81.00,Lloyds Bank,Bank Charges Bank Charges,2004777,201807,
Rother District Council,05/09/2018,031RESOURCES,Executive Directors & Corporate Core,20170,Communications-Postages,D2626,Postages,132.81,Royal Mail Group Ltd,Postages Response Service - Royal Mail Chg,2005608,201808,
Rother District Council,07/09/2018,041ENVIRON,Environmental Services,20130,Crime and Disorder Initiatives,D1201,Equipment & Materials,510.00,The Pelham,Equipment and materials - Safer Rother Partnership,2004609,201807,
Rother District Council,07/09/2018,091HOUSING,Housing and Community Services,20112,Bexhill Leisure Centre,B1100,Repairs to Premises,860.00,Colin A May,Repairs to Premises Repairs - Doors,2004908,201807,
Rother District Council,07/09/2018,091HOUSING,Housing and Community Services,20137,Car Parks,B1100,Repairs to Premises,"1,300.00",AJL Roadmarking Ltd,Repairs to Premises White Lining in Car Parks,2005115,201807,
Rother District Council,07/09/2018,091HOUSING,Housing and Community Services,20137,Car Parks,B1100,Repairs to Premises,"1,800.00",AJL Roadmarking Ltd,Repairs to Premises White Lining in Car Parks,2005116,201807,
Rother District Council,09/09/2018,101RESOURCES,Resources,20242,Communications-Phones,D2621,Telephones,67.50,TalkTalk Communications Ltd T/A TalkTalk Business,Telephones Broadband Connection,2004773,201807,
Rother District Council,10/09/2018,081ACQUISIT,"Acquisitions, Transformation and Regeneration",20154,Committee Property Account,D2518,Advertising,37.50,Lloyds Bank,ADVERT - WEBSITE,2005602,201808,
Rother District Council,10/09/2018,081ACQUISIT,"Acquisitions, Transformation and Regeneration",20144,Property Management,D2518,Advertising,37.50,Lloyds Bank,Advertising Advertising in Newspapers/Magazine,2005615,201808,
Rother District Council,10/09/2018,101RESOURCES,Resources,20209,Corporate management,D2513,Hired and Contracted services,233.10,Lloyds Bank,Bank Charges Bank Charges,2004775,201807,
Rother District Council,10/09/2018,999NOREPORT,Resources,90000,Balance sheet all accounts,P1099,Owed by - Colonnade Bexhill Ltd,416.66,Lloyds Bank,Colonnade Restaurant Bexhill Ltd - purchases,2005602,201808,
Rother District Council,10/09/2018,999NOREPORT,Resources,90000,Balance sheet all accounts,P1099,Owed by - Colonnade Bexhill Ltd,85.00,Epos Now Ltd,Colonnade Restaurant Bexhill Ltd - purchases,2004752,201807,
Rother District Council,10/09/2018,101RESOURCES,Resources,20222,Accountancy,D2738,Conferences,376.80,Lloyds Bank,Conferences Officers Conference fees,2005601,201808,
Rother District Council,10/09/2018,091HOUSING,Housing and Community Services,20115,Rye Area Parks & Gardens,D2513,Hired and Contracted services,225.00,Strata Safety Solutions,Hired and contracted services Parks- Consultants Fees,2004654,201807,
Rother District Council,10/09/2018,091HOUSING,Housing and Community Services,20236,Customer Services and Development,D2626,Postages,152.40,Lloyds Bank,Postages P O Box Licence Fees/Costs,2005602,201808,
Rother District Council,10/09/2018,031RESOURCES,Executive Directors & Corporate Core,20162,Electoral Registration,C2335,Public transport,42.70,Lloyds Bank,Public Transport - Train tickets,2005602,201808,
Rother District Council,10/09/2018,081ACQUISIT,"Acquisitions, Transformation and Regeneration",20154,Committee Property Account,B1100,Repairs to Premises,28.90,Graham,Repairs to Premises Purchase of Materials - Build Maint,2004268,201807,
Rother District Council,10/09/2018,101RESOURCES,Resources,20241,Stationery,D2416,Stationery ordered internally (Print Room),33.24,Lloyds Bank,Stationery (General office Supplies) (Stationery Services to buy ONLY),2005615,201808,
Rother District Council,10/09/2018,101RESOURCES,Resources,20222,Accountancy,D2812,Subsistence,136.00,Lloyds Bank,Subsistence,2005601,201808,
Rother District Council,10/09/2018,091HOUSING,Housing and Community Services,20206,Syrians,D2513,Hired and Contracted services,178.00,Lloyds Bank,Syrian - Bus Pass,2005601,201808,
Rother District Council,10/09/2018,031RESOURCES,Executive Directors & Corporate Core,20178,Corporate Training,A2203,Training,250.00,Lloyds Bank,Training,2005602,201808,
Rother District Council,10/09/2018,091HOUSING,Housing and Community Services,20128,Public Conveniences,B2421,Water,11.29,Castle Water Ltd,Water Charges,2004727,201807,
Rother District Council,11/09/2018,101RESOURCES,Resources,20209,Corporate management,D2513,Hired and Contracted services,316.75,Capita Business Services Ltd,Bank Charges Bank Charges,2004756,201807,
Rother District Council,11/09/2018,999NOREPORT,Housing and Community Services,70714,Capital - Grants Halls and Community Projects,N1011,Capital Grants,500.00,Bexhill Sea Angling Club,Capital Grants Community Grants Scheme,2004553,201807,
Rother District Council,11/09/2018,081ACQUISIT,"Acquisitions, Transformation and Regeneration",20153,"Elva Business Centre, Bexhill",B2422,Sewerage,195.00,CountyClean Environmental Services Ltd,Repairs to Premises Pumps Maintenance/ Repairs,2004041,201807,
Rother District Council,11/09/2018,081ACQUISIT,"Acquisitions, Transformation and Regeneration",20154,Committee Property Account,B2422,Sewerage,175.00,CountyClean Environmental Services Ltd,Repairs to Premises Pumps Maintenance/ Repairs,2004041,201807,
Rother District Council,11/09/2018,091HOUSING,Housing and Community Services,20128,Public Conveniences,B2422,Sewerage,175.00,CountyClean Environmental Services Ltd,Repairs to Premises Pumps Maintenance/ Repairs,2004041,201807,
Rother District Council,11/09/2018,091HOUSING,Housing and Community Services,20128,Public Conveniences,B2422,Sewerage,175.00,CountyClean Environmental Services Ltd,Repairs to Premises Pumps Maintenance/ Repairs,2004041,201807,
Rother District Council,11/09/2018,091HOUSING,Housing and Community Services,20128,Public Conveniences,B2422,Sewerage,175.00,CountyClean Environmental Services Ltd,Repairs to Premises Pumps Maintenance/ Repairs,2004041,201807,
Rother District Council,11/09/2018,091HOUSING,Housing and Community Services,20128,Public Conveniences,B2422,Sewerage,150.00,CountyClean Environmental Services Ltd,Repairs to Premises Pumps Maintenance/ Repairs,2004041,201807,
Rother District Council,11/09/2018,091HOUSING,Housing and Community Services,20108,Bexhill Promenade & Foreshore,B1100,Repairs to Premises,21.23,Trade Paints Ltd,Repairs to Premises Purchase of Materials - Build Maint,2004592,201807,
Rother District Council,11/09/2018,091HOUSING,Housing and Community Services,20123,Cemeteries,B1100,Repairs to Premises,57.85,Jewson Limited,Repairs to Premises Purchase of Materials - Build Maint,2004347,201807,
Rother District Council,11/09/2018,091HOUSING,Housing and Community Services,20128,Public Conveniences,B1100,Repairs to Premises,16.69,Jewson Limited,Repairs to Premises Purchase of Materials - Build Maint,2004346,201807,
Rother District Council,11/09/2018,081ACQUISIT,"Acquisitions, Transformation and Regeneration",20154,Committee Property Account,B2422,Sewerage,225.00,CountyClean Environmental Services Ltd,Sewerage - Sewage/Cesspool Emptying,2004041,201807,
Rother District Council,11/09/2018,081ACQUISIT,"Acquisitions, Transformation and Regeneration",20153,"Elva Business Centre, Bexhill",B2422,Sewerage,300.00,CountyClean Environmental Services Ltd,Sewerage - Sewage/Cesspool Emptying,2004041,201807,
Rother District Council,11/09/2018,091HOUSING,Housing and Community Services,20128,Public Conveniences,B2422,Sewerage,225.00,CountyClean Environmental Services Ltd,Sewerage - Sewage/Cesspool Emptying,2004041,201807,
Rother District Council,11/09/2018,091HOUSING,Housing and Community Services,20128,Public Conveniences,B2422,Sewerage,225.00,CountyClean Environmental Services Ltd,Sewerage - Sewage/Cesspool Emptying,2004041,201807,
Rother District Council,11/09/2018,091HOUSING,Housing and Community Services,20137,Car Parks,B2422,Sewerage,225.00,CountyClean Environmental Services Ltd,Sewerage - Sewage/Cesspool Emptying,2004041,201807,
Rother District Council,11/09/2018,031RESOURCES,Executive Directors & Corporate Core,20172,Facilities Management,A1110,Agency Staff,122.20,The Work People CIC,Agency Staff,2006643,201810,
Rother District Council,12/09/2018,101RESOURCES,Resources,20239,Computer Services,D2632,Additional Computer Equipment,50.71,PCM Technology Solutions UK Ltd,Additional Computer Equipment New PC/Computer,2005143,201807,
Rother District Council,12/09/2018,101RESOURCES,Resources,20216,Cost Of Collection,D2513,Hired and Contracted services,"3,718.90",Inform CPI Ltd,Hired and contracted services RV Finder,2004726,201807,
Rother District Council,12/09/2018,091HOUSING,Housing and Community Services,20128,Public Conveniences,B1100,Repairs to Premises,24.33,Jewson Limited,Repairs to Premises Purchase of Materials - Build Maint,2004348,201807,
Rother District Council,13/09/2018,999NOREPORT,Environmental Services,70706,Capital - Disable Facilities Grant,N1012,Capital Advances,"3,482.17",Alfa Electric Ltd,Capital Advances Disabled Facilities Grant,2004822,201807,
Rother District Council,13/09/2018,091HOUSING,Housing and Community Services,20137,Car Parks,D2509,Consultants and Other Services,"-1,377.60",,Consultants and other services Consultants Fees,1001198,201807,
Rother District Council,13/09/2018,041ENVIRON,Environmental Services,32134,EH Pollution R + W Partnership,D1201,Equipment & Materials,18.00,Cirrus Research PLC,Equipment & Materials Carriage/Handling Charge,2004500,201807,
Rother District Council,13/09/2018,041ENVIRON,Environmental Services,32134,EH Pollution R + W Partnership,D1201,Equipment & Materials,"11,495.40",Cirrus Research PLC,Equipment & Materials EnvH- Pollution Equipment,2004500,201807,
Rother District Council,13/09/2018,091HOUSING,Housing and Community Services,20137,Car Parks,D2513,Hired and Contracted services,"1,377.60",,Hired and contracted services Fire Risk Assessments,1001198,201807,
Rother District Council,13/09/2018,041ENVIRON,Environmental Services,32134,EH Pollution R + W Partnership,D2513,Hired and Contracted services,"2,100.00",Hastings and Rother Mediation Service,Hired and contracted services Hastings + Rother CAB - Mediation S,2005589,201808,
Rother District Council,13/09/2018,041ENVIRON,Environmental Services,32134,EH Pollution R + W Partnership,D2513,Hired and Contracted services,500.00,Hastings and Rother Mediation Service,Hired and contracted services Hastings + Rother CAB - Mediation S,2005589,201808,
Rother District Council,13/09/2018,041ENVIRON,Environmental Services,32134,EH Pollution R + W Partnership,A2203,Training,600.00,Cirrus Research PLC,Training,2004500,201807,
Rother District Council,13/09/2018,081ACQUISIT,"Acquisitions, Transformation and Regeneration",20243,Business Improvement,D2622,Mobile Phones,15.08,O2 (UK) Ltd,Mobile Phones,2004781,201807,
Rother District Council,13/09/2018,081ACQUISIT,"Acquisitions, Transformation and Regeneration",20243,Business Improvement,D2622,Mobile Phones,160.04,O2 (UK) Ltd,Mobile Phones,2004781,201807,
Rother District Council,13/09/2018,081ACQUISIT,"Acquisitions, Transformation and Regeneration",20122,Economic Development,D2622,Mobile Phones,10.00,O2 (UK) Ltd,Mobile Phones,2004768,201807,
Rother District Council,13/09/2018,081ACQUISIT,"Acquisitions, Transformation and Regeneration",20122,Economic Development,D2622,Mobile Phones,10.00,O2 (UK) Ltd,Mobile Phones,2004768,201807,
Rother District Council,13/09/2018,081ACQUISIT,"Acquisitions, Transformation and Regeneration",20122,Economic Development,D2622,Mobile Phones,10.00,O2 (UK) Ltd,Mobile Phones,2004768,201807,
Rother District Council,13/09/2018,081ACQUISIT,"Acquisitions, Transformation and Regeneration",20122,Economic Development,D2622,Mobile Phones,10.00,O2 (UK) Ltd,Mobile Phones,2004768,201807,
Rother District Council,13/09/2018,081ACQUISIT,"Acquisitions, Transformation and Regeneration",20122,Economic Development,D2622,Mobile Phones,10.00,O2 (UK) Ltd,Mobile Phones,2004768,201807,
Rother District Council,13/09/2018,081ACQUISIT,"Acquisitions, Transformation and Regeneration",20122,Economic Development,D2622,Mobile Phones,10.00,O2 (UK) Ltd,Mobile Phones,2004768,201807,
Rother District Council,13/09/2018,081ACQUISIT,"Acquisitions, Transformation and Regeneration",20122,Economic Development,D2622,Mobile Phones,10.00,O2 (UK) Ltd,Mobile Phones,2004768,201807,
Rother District Council,13/09/2018,081ACQUISIT,"Acquisitions, Transformation and Regeneration",20122,Economic Development,D2622,Mobile Phones,10.00,O2 (UK) Ltd,Mobile Phones,2004771,201807,
Rother District Council,13/09/2018,081ACQUISIT,"Acquisitions, Transformation and Regeneration",20121,Programme and Policy Office,D2622,Mobile Phones,10.00,O2 (UK) Ltd,Mobile Phones,2004764,201807,
Rother District Council,13/09/2018,061ICT,ICT and Customer Services,20238,Service Manager ICT & Customer Services,D2622,Mobile Phones,10.00,O2 (UK) Ltd,Mobile Phones,2005164,201807,
Rother District Council,13/09/2018,071STRAT,Strategy and Planning,20247,Service Manager Strategy and Planning,D2622,Mobile Phones,10.00,O2 (UK) Ltd,Mobile Phones,2005165,201807,
Rother District Council,13/09/2018,071STRAT,Strategy and Planning,20247,Service Manager Strategy and Planning,D2622,Mobile Phones,10.00,O2 (UK) Ltd,Mobile Phones,2005165,201807,
Rother District Council,13/09/2018,071STRAT,Strategy and Planning,20247,Service Manager Strategy and Planning,D2622,Mobile Phones,10.00,O2 (UK) Ltd,Mobile Phones,2005165,201807,
Rother District Council,13/09/2018,071STRAT,Strategy and Planning,20247,Service Manager Strategy and Planning,D2622,Mobile Phones,10.00,O2 (UK) Ltd,Mobile Phones,2005165,201807,
Rother District Council,13/09/2018,071STRAT,Strategy and Planning,20247,Service Manager Strategy and Planning,D2622,Mobile Phones,10.00,O2 (UK) Ltd,Mobile Phones,2005165,201807,
Rother District Council,13/09/2018,071STRAT,Strategy and Planning,20247,Service Manager Strategy and Planning,D2622,Mobile Phones,10.00,O2 (UK) Ltd,Mobile Phones,2005165,201807,
Rother District Council,13/09/2018,041ENVIRON,Environmental Services,20199,Food and Safety Team,D2622,Mobile Phones,10.00,O2 (UK) Ltd,Mobile Phones,2005163,201807,
Rother District Council,13/09/2018,041ENVIRON,Environmental Services,20199,Food and Safety Team,D2622,Mobile Phones,10.00,O2 (UK) Ltd,Mobile Phones,2005163,201807,
Rother District Council,13/09/2018,041ENVIRON,Environmental Services,20199,Food and Safety Team,D2622,Mobile Phones,10.00,O2 (UK) Ltd,Mobile Phones,2005163,201807,
Rother District Council,13/09/2018,041ENVIRON,Environmental Services,20199,Food and Safety Team,D2622,Mobile Phones,10.12,O2 (UK) Ltd,Mobile Phones,2005163,201807,
Rother District Council,13/09/2018,041ENVIRON,Environmental Services,20199,Food and Safety Team,D2622,Mobile Phones,10.00,O2 (UK) Ltd,Mobile Phones,2005163,201807,
Rother District Council,13/09/2018,041ENVIRON,Environmental Services,20199,Food and Safety Team,D2622,Mobile Phones,10.22,O2 (UK) Ltd,Mobile Phones,2005163,201807,
Rother District Council,13/09/2018,041ENVIRON,Environmental Services,20199,Food and Safety Team,D2622,Mobile Phones,10.00,O2 (UK) Ltd,Mobile Phones,2005163,201807,
Rother District Council,13/09/2018,041ENVIRON,Environmental Services,20199,Food and Safety Team,D2622,Mobile Phones,10.00,O2 (UK) Ltd,Mobile Phones,2005163,201807,
Rother District Council,13/09/2018,041ENVIRON,Environmental Services,20199,Food and Safety Team,D2622,Mobile Phones,10.00,O2 (UK) Ltd,Mobile Phones,2005163,201807,
Rother District Council,13/09/2018,061ICT,ICT and Customer Services,20238,Service Manager ICT & Customer Services,D2622,Mobile Phones,10.00,O2 (UK) Ltd,Mobile Phones,2004781,201807,
Rother District Council,13/09/2018,041ENVIRON,Environmental Services,20187,Pollution,D2622,Mobile Phones,10.00,O2 (UK) Ltd,Mobile Phones,2004767,201807,
Rother District Council,13/09/2018,041ENVIRON,Environmental Services,20187,Pollution,D2622,Mobile Phones,10.00,O2 (UK) Ltd,Mobile Phones,2004767,201807,
Rother District Council,13/09/2018,041ENVIRON,Environmental Services,20187,Pollution,D2622,Mobile Phones,10.00,O2 (UK) Ltd,Mobile Phones,2004767,201807,
Rother District Council,13/09/2018,041ENVIRON,Environmental Services,20187,Pollution,D2622,Mobile Phones,10.00,O2 (UK) Ltd,Mobile Phones,2004767,201807,
Rother District Council,13/09/2018,041ENVIRON,Environmental Services,20187,Pollution,D2622,Mobile Phones,10.58,O2 (UK) Ltd,Mobile Phones,2004767,201807,
Rother District Council,13/09/2018,041ENVIRON,Environmental Services,20198,Licensing Team,D2622,Mobile Phones,10.00,O2 (UK) Ltd,Mobile Phones,2004767,201807,
Rother District Council,13/09/2018,041ENVIRON,Environmental Services,20198,Licensing Team,D2622,Mobile Phones,10.00,O2 (UK) Ltd,Mobile Phones,2004767,201807,
Rother District Council,13/09/2018,041ENVIRON,Environmental Services,20198,Licensing Team,D2622,Mobile Phones,10.00,O2 (UK) Ltd,Mobile Phones,2004767,201807,
Rother District Council,13/09/2018,041ENVIRON,Environmental Services,20198,Licensing Team,D2622,Mobile Phones,10.00,O2 (UK) Ltd,Mobile Phones,2004767,201807,
Rother District Council,13/09/2018,041ENVIRON,Environmental Services,20198,Licensing Team,D2622,Mobile Phones,10.00,O2 (UK) Ltd,Mobile Phones,2004767,201807,
Rother District Council,13/09/2018,041ENVIRON,Environmental Services,20198,Licensing Team,D2622,Mobile Phones,10.00,O2 (UK) Ltd,Mobile Phones,2004767,201807,
Rother District Council,13/09/2018,041ENVIRON,Environmental Services,20198,Licensing Team,D2622,Mobile Phones,19.95,O2 (UK) Ltd,Mobile Phones,2004767,201807,
Rother District Council,13/09/2018,041ENVIRON,Environmental Services,20199,Food and Safety Team,D2622,Mobile Phones,10.00,O2 (UK) Ltd,Mobile Phones,2004767,201807,
Rother District Council,13/09/2018,041ENVIRON,Environmental Services,20199,Food and Safety Team,D2622,Mobile Phones,10.00,O2 (UK) Ltd,Mobile Phones,2004767,201807,
Rother District Council,13/09/2018,041ENVIRON,Environmental Services,20199,Food and Safety Team,D2622,Mobile Phones,10.50,O2 (UK) Ltd,Mobile Phones,2004767,201807,
Rother District Council,13/09/2018,041ENVIRON,Environmental Services,20187,Pollution,D2622,Mobile Phones,10.00,O2 (UK) Ltd,Mobile Phones,2004767,201807,
Rother District Council,13/09/2018,041ENVIRON,Environmental Services,20187,Pollution,D2622,Mobile Phones,10.00,O2 (UK) Ltd,Mobile Phones,2004767,201807,
Rother District Council,13/09/2018,041ENVIRON,Environmental Services,20187,Pollution,D2622,Mobile Phones,10.00,O2 (UK) Ltd,Mobile Phones,2004767,201807,
Rother District Council,13/09/2018,041ENVIRON,Environmental Services,20187,Pollution,D2622,Mobile Phones,10.00,O2 (UK) Ltd,Mobile Phones,2004767,201807,
Rother District Council,13/09/2018,041ENVIRON,Environmental Services,20187,Pollution,D2622,Mobile Phones,10.00,O2 (UK) Ltd,Mobile Phones,2004767,201807,
Rother District Council,13/09/2018,041ENVIRON,Environmental Services,20187,Pollution,D2622,Mobile Phones,10.00,O2 (UK) Ltd,Mobile Phones,2004767,201807,
Rother District Council,13/09/2018,041ENVIRON,Environmental Services,20187,Pollution,D2622,Mobile Phones,10.00,O2 (UK) Ltd,Mobile Phones,2004767,201807,
Rother District Council,13/09/2018,031RESOURCES,Executive Directors & Corporate Core,20180,Emergency Planning,D2622,Mobile Phones,10.00,O2 (UK) Ltd,Mobile Phones,2004765,201807,
Rother District Council,13/09/2018,031RESOURCES,Executive Directors & Corporate Core,20180,Emergency Planning,D2622,Mobile Phones,4.50,O2 (UK) Ltd,Mobile Phones,2004765,201807,
Rother District Council,13/09/2018,041ENVIRON,Environmental Services,20197,Service Manager Env Serv,D2622,Mobile Phones,10.00,O2 (UK) Ltd,Mobile Phones,2004767,201807,
Rother District Council,13/09/2018,031RESOURCES,Executive Directors & Corporate Core,20179,Communications,D2622,Mobile Phones,10.00,O2 (UK) Ltd,Mobile Phones,2004770,201807,
Rother District Council,13/09/2018,031RESOURCES,Executive Directors & Corporate Core,20180,Emergency Planning,D2622,Mobile Phones,10.00,O2 (UK) Ltd,Mobile Phones,2004770,201807,
Rother District Council,13/09/2018,031RESOURCES,Executive Directors & Corporate Core,20183,Executive Directors,D2622,Mobile Phones,12.04,O2 (UK) Ltd,Mobile Phones,2004780,201807,
Rother District Council,13/09/2018,031RESOURCES,Executive Directors & Corporate Core,20183,Executive Directors,D2622,Mobile Phones,10.00,O2 (UK) Ltd,Mobile Phones,2004780,201807,
Rother District Council,13/09/2018,031RESOURCES,Executive Directors & Corporate Core,32132,Joint Waste Contract Client Unit,D2622,Mobile Phones,10.00,O2 (UK) Ltd,Mobile Phones,2004766,201807,
Rother District Council,13/09/2018,031RESOURCES,Executive Directors & Corporate Core,32132,Joint Waste Contract Client Unit,D2622,Mobile Phones,10.00,O2 (UK) Ltd,Mobile Phones,2004766,201807,
Rother District Council,13/09/2018,031RESOURCES,Executive Directors & Corporate Core,32132,Joint Waste Contract Client Unit,D2622,Mobile Phones,10.00,O2 (UK) Ltd,Mobile Phones,2004766,201807,
Rother District Council,13/09/2018,031RESOURCES,Executive Directors & Corporate Core,20185,Joint Waste procurement,D2622,Mobile Phones,10.00,O2 (UK) Ltd,Mobile Phones,2004766,201807,
Rother District Council,13/09/2018,031RESOURCES,Executive Directors & Corporate Core,20158,Committee Service General Exp,D2622,Mobile Phones,10.00,O2 (UK) Ltd,Mobile Phones,2004769,201807,
Rother District Council,13/09/2018,031RESOURCES,Executive Directors & Corporate Core,20162,Electoral Registration,D2622,Mobile Phones,10.00,O2 (UK) Ltd,Mobile Phones,2004769,201807,
Rother District Council,13/09/2018,031RESOURCES,Executive Directors & Corporate Core,20171,Human Resources,D2622,Mobile Phones,10.00,O2 (UK) Ltd,Mobile Phones,2004769,201807,
Rother District Council,13/09/2018,011COMMUNITY,Community and Economy,20119,"Service Manager, Community and Economy",D2622,Mobile Phones,10.00,O2 (UK) Ltd,Mobile Phones,2005739,201808,
Rother District Council,13/09/2018,081ACQUISIT,"Acquisitions, Transformation and Regeneration",20122,Economic Development,D2622,Mobile Phones,10.00,O2 (UK) Ltd,Mobile Phones,2005739,201808,
Rother District Council,13/09/2018,081ACQUISIT,"Acquisitions, Transformation and Regeneration",20122,Economic Development,D2622,Mobile Phones,10.00,O2 (UK) Ltd,Mobile Phones,2005739,201808,
Rother District Council,13/09/2018,081ACQUISIT,"Acquisitions, Transformation and Regeneration",20122,Economic Development,D2622,Mobile Phones,10.00,O2 (UK) Ltd,Mobile Phones,2005739,201808,
Rother District Council,13/09/2018,081ACQUISIT,"Acquisitions, Transformation and Regeneration",20122,Economic Development,D2622,Mobile Phones,18.24,O2 (UK) Ltd,Mobile Phones,2005739,201808,
Rother District Council,13/09/2018,081ACQUISIT,"Acquisitions, Transformation and Regeneration",20122,Economic Development,D2622,Mobile Phones,10.00,O2 (UK) Ltd,Mobile Phones,2005739,201808,
Rother District Council,13/09/2018,081ACQUISIT,"Acquisitions, Transformation and Regeneration",20122,Economic Development,D2622,Mobile Phones,10.44,O2 (UK) Ltd,Mobile Phones,2005739,201808,
Rother District Council,13/09/2018,081ACQUISIT,"Acquisitions, Transformation and Regeneration",20122,Economic Development,D2622,Mobile Phones,10.00,O2 (UK) Ltd,Mobile Phones,2005739,201808,
Rother District Council,13/09/2018,081ACQUISIT,"Acquisitions, Transformation and Regeneration",20122,Economic Development,D2622,Mobile Phones,10.00,O2 (UK) Ltd,Mobile Phones,2005739,201808,
Rother District Council,13/09/2018,081ACQUISIT,"Acquisitions, Transformation and Regeneration",20122,Economic Development,D2622,Mobile Phones,10.00,O2 (UK) Ltd,Mobile Phones,2005739,201808,
Rother District Council,13/09/2018,081ACQUISIT,"Acquisitions, Transformation and Regeneration",20122,Economic Development,D2622,Mobile Phones,10.00,O2 (UK) Ltd,Mobile Phones,2005739,201808,
Rother District Council,13/09/2018,091HOUSING,Housing and Community Services,20120,Neighbourhood Services,D2622,Mobile Phones,10.00,O2 (UK) Ltd,Mobile Phones,2005739,201808,
Rother District Council,13/09/2018,091HOUSING,Housing and Community Services,20120,Neighbourhood Services,D2622,Mobile Phones,10.00,O2 (UK) Ltd,Mobile Phones,2005739,201808,
Rother District Council,13/09/2018,091HOUSING,Housing and Community Services,20120,Neighbourhood Services,D2622,Mobile Phones,10.00,O2 (UK) Ltd,Mobile Phones,2005739,201808,
Rother District Council,13/09/2018,091HOUSING,Housing and Community Services,20120,Neighbourhood Services,D2622,Mobile Phones,10.00,O2 (UK) Ltd,Mobile Phones,2005739,201808,
Rother District Council,13/09/2018,091HOUSING,Housing and Community Services,20120,Neighbourhood Services,D2622,Mobile Phones,10.00,O2 (UK) Ltd,Mobile Phones,2005739,201808,
Rother District Council,13/09/2018,091HOUSING,Housing and Community Services,20120,Neighbourhood Services,D2622,Mobile Phones,10.00,O2 (UK) Ltd,Mobile Phones,2005739,201808,
Rother District Council,13/09/2018,091HOUSING,Housing and Community Services,20120,Neighbourhood Services,D2622,Mobile Phones,10.00,O2 (UK) Ltd,Mobile Phones,2005739,201808,
Rother District Council,13/09/2018,091HOUSING,Housing and Community Services,20120,Neighbourhood Services,D2622,Mobile Phones,10.00,O2 (UK) Ltd,Mobile Phones,2005739,201808,
Rother District Council,13/09/2018,091HOUSING,Housing and Community Services,20120,Neighbourhood Services,D2622,Mobile Phones,10.00,O2 (UK) Ltd,Mobile Phones,2005739,201808,
Rother District Council,13/09/2018,091HOUSING,Housing and Community Services,20120,Neighbourhood Services,D2622,Mobile Phones,10.00,O2 (UK) Ltd,Mobile Phones,2005739,201808,
Rother District Council,13/09/2018,091HOUSING,Housing and Community Services,20120,Neighbourhood Services,D2622,Mobile Phones,10.00,O2 (UK) Ltd,Mobile Phones,2005739,201808,
Rother District Council,13/09/2018,091HOUSING,Housing and Community Services,20120,Neighbourhood Services,D2622,Mobile Phones,10.00,O2 (UK) Ltd,Mobile Phones,2005739,201808,
Rother District Council,13/09/2018,091HOUSING,Housing and Community Services,20120,Neighbourhood Services,D2622,Mobile Phones,10.00,O2 (UK) Ltd,Mobile Phones,2005739,201808,
Rother District Council,13/09/2018,091HOUSING,Housing and Community Services,20120,Neighbourhood Services,D2622,Mobile Phones,10.00,O2 (UK) Ltd,Mobile Phones,2005739,201808,
Rother District Council,13/09/2018,091HOUSING,Housing and Community Services,20120,Neighbourhood Services,D2622,Mobile Phones,10.00,O2 (UK) Ltd,Mobile Phones,2005739,201808,
Rother District Council,13/09/2018,091HOUSING,Housing and Community Services,20120,Neighbourhood Services,D2622,Mobile Phones,10.00,O2 (UK) Ltd,Mobile Phones,2005739,201808,
Rother District Council,13/09/2018,091HOUSING,Housing and Community Services,20120,Neighbourhood Services,D2622,Mobile Phones,10.00,O2 (UK) Ltd,Mobile Phones,2005739,201808,
Rother District Council,13/09/2018,091HOUSING,Housing and Community Services,20120,Neighbourhood Services,D2622,Mobile Phones,10.00,O2 (UK) Ltd,Mobile Phones,2005739,201808,
Rother District Council,13/09/2018,091HOUSING,Housing and Community Services,20120,Neighbourhood Services,D2622,Mobile Phones,12.66,O2 (UK) Ltd,Mobile Phones,2005739,201808,
Rother District Council,13/09/2018,091HOUSING,Housing and Community Services,20120,Neighbourhood Services,D2622,Mobile Phones,10.00,O2 (UK) Ltd,Mobile Phones,2005739,201808,
Rother District Council,13/09/2018,091HOUSING,Housing and Community Services,20120,Neighbourhood Services,D2622,Mobile Phones,10.00,O2 (UK) Ltd,Mobile Phones,2005739,201808,
Rother District Council,13/09/2018,091HOUSING,Housing and Community Services,20120,Neighbourhood Services,D2622,Mobile Phones,10.00,O2 (UK) Ltd,Mobile Phones,2005739,201808,
Rother District Council,13/09/2018,091HOUSING,Housing and Community Services,20120,Neighbourhood Services,D2622,Mobile Phones,10.00,O2 (UK) Ltd,Mobile Phones,2005739,201808,
Rother District Council,13/09/2018,091HOUSING,Housing and Community Services,20120,Neighbourhood Services,D2622,Mobile Phones,10.00,O2 (UK) Ltd,Mobile Phones,2005739,201808,
Rother District Council,13/09/2018,091HOUSING,Housing and Community Services,20120,Neighbourhood Services,D2622,Mobile Phones,10.00,O2 (UK) Ltd,Mobile Phones,2005739,201808,
Rother District Council,13/09/2018,091HOUSING,Housing and Community Services,20120,Neighbourhood Services,D2622,Mobile Phones,10.00,O2 (UK) Ltd,Mobile Phones,2005739,201808,
Rother District Council,13/09/2018,091HOUSING,Housing and Community Services,20120,Neighbourhood Services,D2622,Mobile Phones,10.00,O2 (UK) Ltd,Mobile Phones,2005739,201808,
Rother District Council,13/09/2018,091HOUSING,Housing and Community Services,20120,Neighbourhood Services,D2622,Mobile Phones,10.00,O2 (UK) Ltd,Mobile Phones,2005739,201808,
Rother District Council,13/09/2018,101RESOURCES,Resources,20226,Service Manager Finance and Welfare,D2622,Mobile Phones,10.00,O2 (UK) Ltd,Mobile Phones,2004780,201807,
Rother District Council,13/09/2018,091HOUSING,Housing and Community Services,20204,Housing Administration Account,D2622,Mobile Phones,10.00,O2 (UK) Ltd,Mobile Phones,2005739,201808,
Rother District Council,13/09/2018,091HOUSING,Housing and Community Services,20204,Housing Administration Account,D2622,Mobile Phones,10.00,O2 (UK) Ltd,Mobile Phones,2005739,201808,
Rother District Council,13/09/2018,091HOUSING,Housing and Community Services,20204,Housing Administration Account,D2622,Mobile Phones,10.00,O2 (UK) Ltd,Mobile Phones,2005739,201808,
Rother District Council,13/09/2018,091HOUSING,Housing and Community Services,20204,Housing Administration Account,D2622,Mobile Phones,45.36,O2 (UK) Ltd,Mobile Phones,2005739,201808,
Rother District Council,13/09/2018,091HOUSING,Housing and Community Services,20204,Housing Administration Account,D2622,Mobile Phones,10.00,O2 (UK) Ltd,Mobile Phones,2005739,201808,
Rother District Council,13/09/2018,091HOUSING,Housing and Community Services,20204,Housing Administration Account,D2622,Mobile Phones,10.00,O2 (UK) Ltd,Mobile Phones,2005739,201808,
Rother District Council,13/09/2018,091HOUSING,Housing and Community Services,20204,Housing Administration Account,D2622,Mobile Phones,10.00,O2 (UK) Ltd,Mobile Phones,2005739,201808,
Rother District Council,13/09/2018,091HOUSING,Housing and Community Services,20204,Housing Administration Account,D2622,Mobile Phones,10.00,O2 (UK) Ltd,Mobile Phones,2005739,201808,
Rother District Council,13/09/2018,091HOUSING,Housing and Community Services,20236,Customer Services and Development,D2622,Mobile Phones,97.11,O2 (UK) Ltd,Mobile Phones,2005739,201808,
Rother District Council,13/09/2018,101RESOURCES,Resources,20239,Computer Services,D2622,Mobile Phones,10.00,O2 (UK) Ltd,Mobile Phones,2005164,201807,
Rother District Council,13/09/2018,101RESOURCES,Resources,20215,Revenue and Benefits,D2622,Mobile Phones,10.00,O2 (UK) Ltd,Mobile Phones,2005164,201807,
Rother District Council,13/09/2018,101RESOURCES,Resources,20215,Revenue and Benefits,D2622,Mobile Phones,10.00,O2 (UK) Ltd,Mobile Phones,2005164,201807,
Rother District Council,13/09/2018,101RESOURCES,Resources,20215,Revenue and Benefits,D2622,Mobile Phones,10.00,O2 (UK) Ltd,Mobile Phones,2005164,201807,
Rother District Council,13/09/2018,101RESOURCES,Resources,20215,Revenue and Benefits,D2622,Mobile Phones,10.00,O2 (UK) Ltd,Mobile Phones,2005164,201807,
Rother District Council,13/09/2018,101RESOURCES,Resources,20215,Revenue and Benefits,D2622,Mobile Phones,10.00,O2 (UK) Ltd,Mobile Phones,2005164,201807,
Rother District Council,13/09/2018,101RESOURCES,Resources,20215,Revenue and Benefits,D2622,Mobile Phones,10.00,O2 (UK) Ltd,Mobile Phones,2005164,201807,
Rother District Council,13/09/2018,101RESOURCES,Resources,20215,Revenue and Benefits,D2622,Mobile Phones,10.00,O2 (UK) Ltd,Mobile Phones,2005164,201807,
Rother District Council,13/09/2018,101RESOURCES,Resources,20215,Revenue and Benefits,D2622,Mobile Phones,10.00,O2 (UK) Ltd,Mobile Phones,2005164,201807,
Rother District Council,13/09/2018,101RESOURCES,Resources,20239,Computer Services,D2622,Mobile Phones,10.00,O2 (UK) Ltd,Mobile Phones,2005164,201807,
Rother District Council,13/09/2018,101RESOURCES,Resources,20239,Computer Services,D2622,Mobile Phones,10.00,O2 (UK) Ltd,Mobile Phones,2005164,201807,
Rother District Council,13/09/2018,101RESOURCES,Resources,20239,Computer Services,D2622,Mobile Phones,10.00,O2 (UK) Ltd,Mobile Phones,2005164,201807,
Rother District Council,13/09/2018,101RESOURCES,Resources,20239,Computer Services,D2622,Mobile Phones,10.00,O2 (UK) Ltd,Mobile Phones,2005164,201807,
Rother District Council,13/09/2018,101RESOURCES,Resources,20239,Computer Services,D2622,Mobile Phones,10.00,O2 (UK) Ltd,Mobile Phones,2005164,201807,
Rother District Council,13/09/2018,101RESOURCES,Resources,20239,Computer Services,D2622,Mobile Phones,10.00,O2 (UK) Ltd,Mobile Phones,2005164,201807,
Rother District Council,13/09/2018,101RESOURCES,Resources,20239,Computer Services,D2622,Mobile Phones,10.00,O2 (UK) Ltd,Mobile Phones,2005164,201807,
Rother District Council,13/09/2018,101RESOURCES,Resources,20239,Computer Services,D2622,Mobile Phones,10.00,O2 (UK) Ltd,Mobile Phones,2004781,201807,
Rother District Council,14/09/2018,091HOUSING,Housing and Community Services,20145,Maintenance Services,D1201,Equipment & Materials,13.00,Jewson Limited,Equipment & Materials Purchase of Tools,2004349,201807,
Rother District Council,14/09/2018,091HOUSING,Housing and Community Services,20108,Bexhill Promenade & Foreshore,B1100,Repairs to Premises,28.33,Trade Paints Ltd,Repairs to Premises Purchase of Materials - Build Maint,2004594,201807,
Rother District Council,15/09/2018,091HOUSING,Housing and Community Services,20107,Camber Beach & Foreshore,C1104,Derv,1.90,Allstar Business Solutions,Derv Fuel Service fee payable on fuel cards,2005167,201807,
Rother District Council,15/09/2018,091HOUSING,Housing and Community Services,20107,Camber Beach & Foreshore,C1104,Derv,33.95,Allstar Business Solutions,Derv,2005167,201807,
Rother District Council,15/09/2018,091HOUSING,Housing and Community Services,20145,Maintenance Services,C1104,Derv,78.62,Allstar Business Solutions,Derv,2005167,201807,
Rother District Council,15/09/2018,091HOUSING,Housing and Community Services,20145,Maintenance Services,C1104,Derv,41.67,Allstar Business Solutions,Derv,2005167,201807,
Rother District Council,15/09/2018,091HOUSING,Housing and Community Services,20145,Maintenance Services,C1104,Derv,35.83,Allstar Business Solutions,Derv,2005167,201807,
Rother District Council,15/09/2018,091HOUSING,Housing and Community Services,20145,Maintenance Services,C1104,Derv,58.33,Allstar Business Solutions,Derv,2005167,201807,
Rother District Council,17/09/2018,081ACQUISIT,"Acquisitions, Transformation and Regeneration",20153,"Elva Business Centre, Bexhill",B2201,Electricity,-105.21,NPower Yorkshire Ltd,Electricity Electric Meter Operator Service,2004615,201807,
Rother District Council,17/09/2018,091HOUSING,Housing and Community Services,20137,Car Parks,B1100,Repairs to Premises,152.75,Streetlights,Repairs to Premises Lighting Repairs,2004360,201807,
Rother District Council,17/09/2018,091HOUSING,Housing and Community Services,20133,Refuse Collection,E2302,Third party payment private contractors,165.10,Kier Services - Environmental,Third party payment private contractors Commercial Waste Collection Contract,2006134,201809,
Rother District Council,17/09/2018,091HOUSING,Housing and Community Services,20133,Refuse Collection,E2302,Third party payment private contractors,82.55,Kier Services - Environmental,Third party payment private contractors Commercial Waste Collection Contract,2006135,201809,
Rother District Council,17/09/2018,091HOUSING,Housing and Community Services,20133,Refuse Collection,E2302,Third party payment private contractors,30.33,Kier Services - Environmental,Third party payment private contractors Commercial Waste Collection Contract,2006136,201809,
Rother District Council,18/09/2018,091HOUSING,Housing and Community Services,20114,Bexhill Parks & Open Spaces,D1201,Equipment & Materials,397.00,J. Parker Dutch Bulbs (Wholesale) Ltd,Equipment & Materials Parks-Purchase of Planting Material,2004520,201807,
Rother District Council,18/09/2018,091HOUSING,Housing and Community Services,20107,Camber Beach & Foreshore,D1201,Equipment & Materials,598.00,Thomas Design & Graphics Ltd,Equipment & Materials Purchase of Signs,2004785,201807,
Rother District Council,18/09/2018,101RESOURCES,Resources,20216,Cost Of Collection,D2513,Hired and Contracted services,42.00,H M Land Registry,Hired and contracted services Council Tax-Land Registry Enquiries,2004757,201807,
Rother District Council,18/09/2018,071STRAT,Strategy and Planning,20246,Planning Applications,D2513,Hired and Contracted services,6.00,H M Land Registry,Hired and contracted services Land Registry - Planning,2004757,201807,
Rother District Council,18/09/2018,081ACQUISIT,"Acquisitions, Transformation and Regeneration",20144,Property Management,D2513,Hired and Contracted services,6.00,H M Land Registry,Hired and contracted services Land Registry - Property Management,2004757,201807,
Rother District Council,18/09/2018,091HOUSING,Housing and Community Services,20108,Bexhill Promenade & Foreshore,B1100,Repairs to Premises,120.12,Alfa Electric Ltd,Repairs to Premises Repairs - Electrical Works,2004405,201807,
Rother District Council,19/09/2018,091HOUSING,Housing and Community Services,20200,Housing Needs - HB (Housing Benefit),A1110,Agency Staff,814.00,Oyster Partnership,Agency Staff,2004854,201807,
Rother District Council,19/09/2018,091HOUSING,Housing and Community Services,20200,Housing Needs - HB (Housing Benefit),A1110,Agency Staff,925.00,Oyster Partnership,Agency Staff,2004855,201807,
Rother District Council,19/09/2018,999NOREPORT,Housing and Community Services,70714,Capital - Grants Halls and Community Projects,N1011,Capital Grants,"1,000.00",Pett Level Independent Rescue Boat Association,Capital Grants Community Grants Scheme,2005255,201807,
Rother District Council,19/09/2018,091HOUSING,Housing and Community Services,20145,Maintenance Services,D2352,Clothing and Uniforms,39.99,Trade UK Account (Screwfix),Clothing and Uniforms Mens Protective-Footware,2004547,201807,
Rother District Council,19/09/2018,091HOUSING,Housing and Community Services,20145,Maintenance Services,D1201,Equipment & Materials,7.49,Trade UK Account (Screwfix),Equipment & Materials Purchase of Tools,2004547,201807,
Rother District Council,19/09/2018,071STRAT,Strategy and Planning,20255,Local Development Framework,D2513,Hired and Contracted services,600.00,JDi Solutions Ltd,Hired and contracted services LDF Consultancy,2005709,201808,
Rother District Council,19/09/2018,071STRAT,Strategy and Planning,20255,Local Development Framework,D2513,Hired and Contracted services,"1,570.00",East Sussex County Council,Hired and contracted services Plan - Ecological Advice,2004350,201807,
Rother District Council,19/09/2018,081ACQUISIT,"Acquisitions, Transformation and Regeneration",20153,"Elva Business Centre, Bexhill",B1100,Repairs to Premises,5.48,Trade UK Account (Screwfix),Repairs to Premises Purchase of Materials - Build Maint,2004547,201807,
Rother District Council,19/09/2018,091HOUSING,Housing and Community Services,20123,Cemeteries,B1100,Repairs to Premises,84.17,Jewson Limited,Repairs to Premises Purchase of Materials - Build Maint,2004461,201807,
Rother District Council,19/09/2018,091HOUSING,Housing and Community Services,20113,Bexhill Leisure Pool,B1100,Repairs to Premises,161.50,Gilgen Doors Systems UK Ltd,Repairs to Premises Repairs - Doors,2004469,201807,
Rother District Council,19/09/2018,091HOUSING,Housing and Community Services,20128,Public Conveniences,B1100,Repairs to Premises,591.42,Alfa Electric Ltd,Repairs to Premises Repairs - Electrical Works,2004406,201807,
Rother District Council,19/09/2018,081ACQUISIT,"Acquisitions, Transformation and Regeneration",20136,Regeneration,A2203,Training,360.00,Wilbar Associates Ltd,Training,2004663,201807,
Rother District Council,19/09/2018,041ENVIRON,Environmental Services,32144,EH Environmental Services Admin R + W Partnership,A2203,Training,469.38,Sovereign Harbour Yacht Club Ltd,Training,2004740,201807,
Rother District Council,19/09/2018,101RESOURCES,Resources,20216,Cost Of Collection,D2513,Hired and Contracted services,42.50,Inform CPI Ltd,Hired and Contracted services,2004273,201807,
Rother District Council,19/09/2018,091HOUSING,Housing and Community Services,20108,Bexhill Promenade & Foreshore,B1100,Repairs to Premises,270.00,Dean Mortimer,Repairs to Premisses  Energy Performance Certificate,2004628,201807,
Rother District Council,20/09/2018,091HOUSING,Housing and Community Services,20123,Cemeteries,D1201,Equipment & Materials,120.00,B.F.J. Engraving Ltd,Equipment & Materials Parks Purchase of Seats/ Benches/Plaques,2004400,201807,
Rother District Council,20/09/2018,091HOUSING,Housing and Community Services,20145,Maintenance Services,D1201,Equipment & Materials,54.73,Trade UK Account (Screwfix),Equipment & Materials Purchase of Tools,2004841,201807,
Rother District Council,20/09/2018,091HOUSING,Housing and Community Services,20145,Maintenance Services,D1201,Equipment & Materials,39.56,Trade UK Account (Screwfix),Equipment & Materials Purchase of Tools,2004544,201807,
Rother District Council,20/09/2018,041ENVIRON,Environmental Services,32142,EH Taxi and Private Hire Licenses R + W Partnership,D2513,Hired and Contracted services,34.68,uCheck,Hired and contracted services Service fee paid,2004754,201807,
Rother District Council,20/09/2018,041ENVIRON,Environmental Services,32142,EH Taxi and Private Hire Licenses R + W Partnership,D2513,Hired and Contracted services,176.00,uCheck,Hired and contracted services Service fee paid,2004754,201807,
Rother District Council,20/09/2018,101RESOURCES,Resources,20241,Stationery,D2420,General office supplies (Stationery purchased from ext suppliers),62.67,Office Depot UK Ltd,Stationery (General office Supplies) (Stationery Services to buy ONLY),2004338,201807,
Rother District Council,21/09/2018,091HOUSING,Housing and Community Services,20108,Bexhill Promenade & Foreshore,D1201,Equipment & Materials,"12,341.00",Signtek,Equipment & Materials Purchase of Signs,2004311,201807,
Rother District Council,21/09/2018,081ACQUISIT,"Acquisitions, Transformation and Regeneration",20148,Misc Land & Buildings,D2513,Hired and Contracted services,"9,350.00",Savills (UK) Ltd,Hired and contracted services - CORPORATE PLAN blackfriars,2005011,201807,
Rother District Council,21/09/2018,101RESOURCES,Resources,20216,Cost Of Collection,D2513,Hired and Contracted services,30.00,H M Land Registry,Hired and contracted services Council Tax-Land Registry Enquiries,2005619,201808,
Rother District Council,21/09/2018,071STRAT,Strategy and Planning,20246,Planning Applications,D2513,Hired and Contracted services,18.00,H M Land Registry,Hired and contracted services Land Registry - Planning,2005619,201808,
Rother District Council,21/09/2018,081ACQUISIT,"Acquisitions, Transformation and Regeneration",20144,Property Management,D2513,Hired and Contracted services,3.00,H M Land Registry,Hired and contracted services Land Registry - Property Management,2005619,201808,
Rother District Council,21/09/2018,031RESOURCES,Executive Directors & Corporate Core,20182,Legal Services,D2513,Hired and Contracted services,20.00,H M Land Registry,Hired and contracted services Legal - Land Registry Fees,2005619,201808,
Rother District Council,21/09/2018,081ACQUISIT,"Acquisitions, Transformation and Regeneration",20146,West Trading Estate,D2513,Hired and Contracted services,"7,050.00",Savills (UK) Ltd,Hired and contracted services Service fee paid,2005216,201807,
Rother District Council,21/09/2018,091HOUSING,Housing and Community Services,20123,Cemeteries,B1100,Repairs to Premises,9.75,Jewson Limited,Repairs to Premises Purchase of Materials - Build Maint,2004462,201807,
Rother District Council,21/09/2018,091HOUSING,Housing and Community Services,20108,Bexhill Promenade & Foreshore,B1100,Repairs to Premises,143.56,Alfa Electric Ltd,Repairs to Premises Repairs - Electrical Works,2004408,201807,
Rother District Council,21/09/2018,091HOUSING,Housing and Community Services,20128,Public Conveniences,B1100,Repairs to Premises,"1,320.92",Alfa Electric Ltd,Repairs to Premises Repairs - Electrical Works,2004409,201807,
Rother District Council,21/09/2018,091HOUSING,Housing and Community Services,20128,Public Conveniences,B1100,Repairs to Premises,420.12,Alfa Electric Ltd,Repairs to Premises Repairs - Electrical Works,2004857,201807,
Rother District Council,21/09/2018,091HOUSING,Housing and Community Services,20128,Public Conveniences,B1100,Repairs to Premises,963.13,Alfa Electric Ltd,Repairs to Premises Repairs - Electrical Works,2004730,201807,
Rother District Council,21/09/2018,101RESOURCES,Resources,20241,Stationery,D2420,General office supplies (Stationery purchased from ext suppliers),25.92,Office Depot UK Ltd,Stationery (General office Supplies) (Stationery Services to buy ONLY),2004339,201807,
Rother District Council,21/09/2018,071STRAT,Strategy and Planning,20246,Planning Applications,D2519,Statutory Advertising,945.50,Johnston Publishing Ltd,Statutory Advertising Planadv - Rye + Battle Observer,2004434,201807,
Rother District Council,22/09/2018,101RESOURCES,Resources,20239,Computer Services,D2632,Additional Computer Equipment,352.00,Dell Corporation Ltd,Additional Computer Equipment New PC/Computer,2004481,201807,
Rother District Council,22/09/2018,521NDRDEF,NDR Deficit or Surplus,42221,NNDR Tariff,G1211,Business Rates tarriff,-81.00,Department for Communities and Local Government,Business Rates tarriff,2005620,201808,
Rother District Council,23/09/2018,071STRAT,Strategy and Planning,20246,Planning Applications,D2519,Statutory Advertising,278.10,Local World Ltd,Statutory Advertising Planadv- Kent + East Sussex Courier,2004564,201807,
Rother District Council,24/09/2018,999NOREPORT,Housing and Community Services,70714,Capital - Grants Halls and Community Projects,N1011,Capital Grants,795.00,Westfield Cricket Club,Capital Grants Community Grants Scheme,2004894,201807,
Rother District Council,24/09/2018,091HOUSING,Housing and Community Services,20145,Maintenance Services,D2352,Clothing and Uniforms,33.46,Trade UK Account (Screwfix),Clothing and Uniforms Mens Protective-Other,2004545,201807,
Rother District Council,24/09/2018,091HOUSING,Housing and Community Services,20108,Bexhill Promenade & Foreshore,B2201,Electricity,-73.40,Laser Energy Buying Group (Kent County Council Commercial Services),Electricity Charges,2004790,201807,
Rother District Council,24/09/2018,081ACQUISIT,"Acquisitions, Transformation and Regeneration",20154,Committee Property Account,B2201,Electricity,-73.40,Laser Energy Buying Group (Kent County Council Commercial Services),Electricity Charges,2004790,201807,
Rother District Council,24/09/2018,081ACQUISIT,"Acquisitions, Transformation and Regeneration",20154,Committee Property Account,B2201,Electricity,-73.40,Laser Energy Buying Group (Kent County Council Commercial Services),Electricity Charges,2004790,201807,
Rother District Council,24/09/2018,081ACQUISIT,"Acquisitions, Transformation and Regeneration",20154,Committee Property Account,B2201,Electricity,-73.40,Laser Energy Buying Group (Kent County Council Commercial Services),Electricity Charges,2004790,201807,
Rother District Council,24/09/2018,081ACQUISIT,"Acquisitions, Transformation and Regeneration",20154,Committee Property Account,B2201,Electricity,54.19,Laser Energy Buying Group (Kent County Council Commercial Services),Electricity Charges,2004790,201807,
Rother District Council,24/09/2018,081ACQUISIT,"Acquisitions, Transformation and Regeneration",20154,Committee Property Account,B2201,Electricity,54.19,Laser Energy Buying Group (Kent County Council Commercial Services),Electricity Charges,2004790,201807,
Rother District Council,24/09/2018,081ACQUISIT,"Acquisitions, Transformation and Regeneration",20154,Committee Property Account,B2201,Electricity,54.19,Laser Energy Buying Group (Kent County Council Commercial Services),Electricity Charges,2004790,201807,
Rother District Council,24/09/2018,081ACQUISIT,"Acquisitions, Transformation and Regeneration",20154,Committee Property Account,B2201,Electricity,99.54,Laser Energy Buying Group (Kent County Council Commercial Services),Electricity Charges,2004790,201807,
Rother District Council,24/09/2018,081ACQUISIT,"Acquisitions, Transformation and Regeneration",20154,Committee Property Account,B2201,Electricity,655.95,Laser Energy Buying Group (Kent County Council Commercial Services),Electricity Charges,2004790,201807,
Rother District Council,24/09/2018,081ACQUISIT,"Acquisitions, Transformation and Regeneration",20154,Committee Property Account,B2201,Electricity,472.97,Laser Energy Buying Group (Kent County Council Commercial Services),Electricity Charges,2004790,201807,
Rother District Council,24/09/2018,081ACQUISIT,"Acquisitions, Transformation and Regeneration",20154,Committee Property Account,B2201,Electricity,"2,582.29",Laser Energy Buying Group (Kent County Council Commercial Services),Electricity Charges,2004790,201807,
Rother District Council,24/09/2018,081ACQUISIT,"Acquisitions, Transformation and Regeneration",20154,Committee Property Account,B2201,Electricity,57.51,Laser Energy Buying Group (Kent County Council Commercial Services),Electricity Charges,2004790,201807,
Rother District Council,24/09/2018,081ACQUISIT,"Acquisitions, Transformation and Regeneration",20154,Committee Property Account,B2201,Electricity,57.51,Laser Energy Buying Group (Kent County Council Commercial Services),Electricity Charges,2004790,201807,
Rother District Council,24/09/2018,081ACQUISIT,"Acquisitions, Transformation and Regeneration",20154,Committee Property Account,B2201,Electricity,57.51,Laser Energy Buying Group (Kent County Council Commercial Services),Electricity Charges,2004790,201807,
Rother District Council,24/09/2018,091HOUSING,Housing and Community Services,20108,Bexhill Promenade & Foreshore,B2201,Electricity,54.20,Laser Energy Buying Group (Kent County Council Commercial Services),Electricity Charges,2004790,201807,
Rother District Council,24/09/2018,091HOUSING,Housing and Community Services,20108,Bexhill Promenade & Foreshore,B2201,Electricity,57.51,Laser Energy Buying Group (Kent County Council Commercial Services),Electricity Charges,2004790,201807,
Rother District Council,24/09/2018,031RESOURCES,Executive Directors & Corporate Core,20173,Administrative Offices - Town Hall,B2201,Electricity,"3,041.52",Laser Energy Buying Group (Kent County Council Commercial Services),Electricity Charges,2004790,201807,
Rother District Council,24/09/2018,031RESOURCES,Executive Directors & Corporate Core,20175,Administrative Offices - T.H. Annex (NOT CHP),B2201,Electricity,910.20,Laser Energy Buying Group (Kent County Council Commercial Services),Electricity Charges,2004790,201807,
Rother District Council,24/09/2018,031RESOURCES,Executive Directors & Corporate Core,20176,Administrative Offices - Print Room,B2201,Electricity,486.30,Laser Energy Buying Group (Kent County Council Commercial Services),Electricity Charges,2004790,201807,
Rother District Council,24/09/2018,091HOUSING,Housing and Community Services,20125,Coast Protection,B2201,Electricity,374.23,Laser Energy Buying Group (Kent County Council Commercial Services),Electricity Charges,2004790,201807,
Rother District Council,24/09/2018,091HOUSING,Housing and Community Services,20128,Public Conveniences,B2201,Electricity,96.85,Laser Energy Buying Group (Kent County Council Commercial Services),Electricity Charges,2004790,201807,
Rother District Council,24/09/2018,091HOUSING,Housing and Community Services,20128,Public Conveniences,B2201,Electricity,56.23,Laser Energy Buying Group (Kent County Council Commercial Services),Electricity Charges,2004790,201807,
Rother District Council,24/09/2018,091HOUSING,Housing and Community Services,20123,Cemeteries,D1201,Equipment & Materials,633.00,Streetmaster (South Wales) Ltd,Equipment & Materials Parks Purchase of Seats/ Benches/Plaques,2004557,201807,
Rother District Council,24/09/2018,081ACQUISIT,"Acquisitions, Transformation and Regeneration",20154,Committee Property Account,B2202,Gas,4.34,Laser Energy Buying Group (Kent County Council Commercial Services),Gas Charges,2004782,201807,
Rother District Council,24/09/2018,081ACQUISIT,"Acquisitions, Transformation and Regeneration",20154,Committee Property Account,B2202,Gas,50.22,Laser Energy Buying Group (Kent County Council Commercial Services),Gas Charges,2004782,201807,
Rother District Council,24/09/2018,031RESOURCES,Executive Directors & Corporate Core,20176,Administrative Offices - Print Room,B2202,Gas,25.07,Laser Energy Buying Group (Kent County Council Commercial Services),Gas Charges,2004782,201807,
Rother District Council,24/09/2018,031RESOURCES,Executive Directors & Corporate Core,20175,Administrative Offices - T.H. Annex (NOT CHP),B2202,Gas,132.07,Laser Energy Buying Group (Kent County Council Commercial Services),Gas Charges,2004782,201807,
Rother District Council,24/09/2018,031RESOURCES,Executive Directors & Corporate Core,20173,Administrative Offices - Town Hall,B2202,Gas,175.57,Laser Energy Buying Group (Kent County Council Commercial Services),Gas Charges,2004782,201807,
Rother District Council,24/09/2018,101RESOURCES,Resources,20216,Cost Of Collection,D2513,Hired and Contracted services,27.00,H M Land Registry,Hired and contracted services Council Tax-Land Registry Enquiries,2004758,201807,
Rother District Council,24/09/2018,041ENVIRON,Environmental Services,32143,EH Licenses and Registration R + W Partnership,D2513,Hired and Contracted services,360.00,Fairfield House Veterinary Surgery,Hired and contracted services EnvH-Veterinary Services for Licens,2005842,201808,
Rother District Council,24/09/2018,091HOUSING,Housing and Community Services,20200,Housing Needs - HB (Housing Benefit),D2513,Hired and Contracted services,3.00,H M Land Registry,Hired and contracted services Housing- Land Registry,2004758,201807,
Rother District Council,24/09/2018,031RESOURCES,Executive Directors & Corporate Core,20182,Legal Services,D2513,Hired and Contracted services,20.00,H M Land Registry,Hired and contracted services Legal - Land Registry Fees,2004758,201807,
Rother District Council,24/09/2018,091HOUSING,Housing and Community Services,20205,Housing Loans Account,D2514,Accommodation Costs,"3,937.86",Roost People Ltd,Homelessness services Rent in Advance for Homeless,2004585,201807,
Rother District Council,24/09/2018,031RESOURCES,Executive Directors & Corporate Core,20162,Electoral Registration,D2626,Postages,"1,252.65",Royal Mail Group Ltd,Postages Response Service - Royal Mail Chg,2004422,201807,
Rother District Council,24/09/2018,091HOUSING,Housing and Community Services,20108,Bexhill Promenade & Foreshore,B1100,Repairs to Premises,125.00,B and G Environmental Services Limited,Repairs to Premises Drainage Clearance,2004472,201807,
Rother District Council,24/09/2018,091HOUSING,Housing and Community Services,20114,Bexhill Parks & Open Spaces,B1100,Repairs to Premises,175.00,B and G Environmental Services Limited,Repairs to Premises Drainage Clearance,2004471,201807,
Rother District Council,24/09/2018,091HOUSING,Housing and Community Services,20113,Bexhill Leisure Pool,B1100,Repairs to Premises,220.00,Colin A May,Repairs to Premises Painting Works,2006374,201809,
Rother District Council,24/09/2018,091HOUSING,Housing and Community Services,20114,Bexhill Parks & Open Spaces,B1100,Repairs to Premises,"6,540.00",Colin A May,Repairs to Premises Parks- Benches repairs,2004483,201807,
Rother District Council,24/09/2018,091HOUSING,Housing and Community Services,20108,Bexhill Promenade & Foreshore,B1100,Repairs to Premises,25.56,Trade Paints Ltd,Repairs to Premises Purchase of Materials - Build Maint,2004593,201807,
Rother District Council,24/09/2018,091HOUSING,Housing and Community Services,20123,Cemeteries,B1100,Repairs to Premises,45.87,Jewson Limited,Repairs to Premises Purchase of Materials - Build Maint,2004613,201807,
Rother District Council,24/09/2018,081ACQUISIT,"Acquisitions, Transformation and Regeneration",20153,"Elva Business Centre, Bexhill",B1100,Repairs to Premises,441.41,Alfa Electric Ltd,Repairs to Premises Repairs - Electrical Works,2004856,201807,
Rother District Council,24/09/2018,081ACQUISIT,"Acquisitions, Transformation and Regeneration",20155,Investment properties,B1100,Repairs to Premises,180.10,Alfa Electric Ltd,Repairs to Premises Repairs - Electrical Works,2004410,201807,
Rother District Council,24/09/2018,091HOUSING,Housing and Community Services,20128,Public Conveniences,B2422,Sewerage,610.68,Scottish Water Business Stream Limited,Sewage Charges,2004460,201807,
Rother District Council,24/09/2018,091HOUSING,Housing and Community Services,20114,Bexhill Parks & Open Spaces,B2422,Sewerage,385.00,CountyClean Environmental Services Ltd,Sewerage Parks- Emptying of Cesspit,2004455,201807,
Rother District Council,24/09/2018,031RESOURCES,Executive Directors & Corporate Core,32132,Joint Waste Contract Client Unit,E2302,Third party payment private contractors,"1,065,565.22",Kier Services - Environmental,Third party payment private contractors CORE Joint Waste Cost,2004367,201807,
Rother District Council,24/09/2018,091HOUSING,Housing and Community Services,20128,Public Conveniences,B2421,Water,377.75,Scottish Water Business Stream Limited,Water Charges,2004460,201807,
Rother District Council,24/09/2018,091HOUSING,Housing and Community Services,20200,Housing Needs - HB (Housing Benefit),D2514,Accommodation Costs,84.00,Solutions Accommodation Providers Ltd,Accommodation Costs,2004427,201807,
Rother District Council,24/09/2018,091HOUSING,Housing and Community Services,20200,Housing Needs - HB (Housing Benefit),D2514,Accommodation Costs,336.00,Solutions Accommodation Providers Ltd,Accommodation Costs,2004427,201807,
Rother District Council,24/09/2018,091HOUSING,Housing and Community Services,20200,Housing Needs - HB (Housing Benefit),D2514,Accommodation Costs,180.00,Solutions Accommodation Providers Ltd,Accommodation Costs,2004426,201807,
Rother District Council,24/09/2018,091HOUSING,Housing and Community Services,20200,Housing Needs - HB (Housing Benefit),D2514,Accommodation Costs,98.00,Solutions Accommodation Providers Ltd,Accommodation Costs,2004425,201807,
Rother District Council,24/09/2018,091HOUSING,Housing and Community Services,20200,Housing Needs - HB (Housing Benefit),D2514,Accommodation Costs,392.00,Solutions Accommodation Providers Ltd,Accommodation Costs,2004425,201807,
Rother District Council,24/09/2018,091HOUSING,Housing and Community Services,20200,Housing Needs - HB (Housing Benefit),D2514,Accommodation Costs,280.00,Solutions Accommodation Providers Ltd,Accommodation Costs,2004430,201807,
Rother District Council,24/09/2018,091HOUSING,Housing and Community Services,20200,Housing Needs - HB (Housing Benefit),D2514,Accommodation Costs,77.00,Solutions Accommodation Providers Ltd,Accommodation Costs,2004431,201807,
Rother District Council,24/09/2018,091HOUSING,Housing and Community Services,20200,Housing Needs - HB (Housing Benefit),D2514,Accommodation Costs,308.00,Solutions Accommodation Providers Ltd,Accommodation Costs,2004431,201807,
Rother District Council,24/09/2018,091HOUSING,Housing and Community Services,20200,Housing Needs - HB (Housing Benefit),D2514,Accommodation Costs,220.50,Solutions Accommodation Providers Ltd,Accommodation Costs,2004423,201807,
Rother District Council,24/09/2018,091HOUSING,Housing and Community Services,20200,Housing Needs - HB (Housing Benefit),D2514,Accommodation Costs,105.00,Solutions Accommodation Providers Ltd,Accommodation Costs,2004424,201807,
Rother District Council,24/09/2018,091HOUSING,Housing and Community Services,20200,Housing Needs - HB (Housing Benefit),D2514,Accommodation Costs,420.00,Solutions Accommodation Providers Ltd,Accommodation Costs,2004424,201807,
Rother District Council,24/09/2018,091HOUSING,Housing and Community Services,20200,Housing Needs - HB (Housing Benefit),D2514,Accommodation Costs,77.00,Solutions Accommodation Providers Ltd,Accommodation Costs,2004432,201807,
Rother District Council,24/09/2018,091HOUSING,Housing and Community Services,20200,Housing Needs - HB (Housing Benefit),D2514,Accommodation Costs,308.00,Solutions Accommodation Providers Ltd,Accommodation Costs,2004432,201807,
Rother District Council,24/09/2018,091HOUSING,Housing and Community Services,20200,Housing Needs - HB (Housing Benefit),D2514,Accommodation Costs,84.00,Solutions Accommodation Providers Ltd,Accommodation Costs,2004433,201807,
Rother District Council,24/09/2018,091HOUSING,Housing and Community Services,20200,Housing Needs - HB (Housing Benefit),D2514,Accommodation Costs,336.00,Solutions Accommodation Providers Ltd,Accommodation Costs,2004433,201807,
Rother District Council,24/09/2018,091HOUSING,Housing and Community Services,20200,Housing Needs - HB (Housing Benefit),D2514,Accommodation Costs,98.00,Solutions Accommodation Providers Ltd,Accommodation Costs,2004429,201807,
Rother District Council,24/09/2018,091HOUSING,Housing and Community Services,20200,Housing Needs - HB (Housing Benefit),D2514,Accommodation Costs,392.00,Solutions Accommodation Providers Ltd,Accommodation Costs,2004429,201807,
Rother District Council,24/09/2018,091HOUSING,Housing and Community Services,20200,Housing Needs - HB (Housing Benefit),D2514,Accommodation Costs,84.00,Solutions Accommodation Providers Ltd,Accommodation Costs,2004428,201807,
Rother District Council,24/09/2018,091HOUSING,Housing and Community Services,20200,Housing Needs - HB (Housing Benefit),D2514,Accommodation Costs,336.00,Solutions Accommodation Providers Ltd,Accommodation Costs,2004428,201807,
Rother District Council,24/09/2018,091HOUSING,Housing and Community Services,20200,Housing Needs - HB (Housing Benefit),D2514,Accommodation Costs,19.20,South Down Residential Ltd,Accommodation Costs,2004737,201807,
Rother District Council,24/09/2018,091HOUSING,Housing and Community Services,20200,Housing Needs - HB (Housing Benefit),D2514,Accommodation Costs,4.80,South Down Residential Ltd,Accommodation Costs,2004737,201807,
Rother District Council,24/09/2018,091HOUSING,Housing and Community Services,20200,Housing Needs - HB (Housing Benefit),D2514,Accommodation Costs,252.00,South Down Residential Ltd,Accommodation Costs,2004737,201807,
Rother District Council,24/09/2018,091HOUSING,Housing and Community Services,20200,Housing Needs - HB (Housing Benefit),D2514,Accommodation Costs,63.00,South Down Residential Ltd,Accommodation Costs,2004737,201807,
Rother District Council,24/09/2018,091HOUSING,Housing and Community Services,20200,Housing Needs - HB (Housing Benefit),D2514,Accommodation Costs,168.00,South Down Residential Ltd,Accommodation Costs,2004737,201807,
Rother District Council,24/09/2018,091HOUSING,Housing and Community Services,20200,Housing Needs - HB (Housing Benefit),D2514,Accommodation Costs,350.00,South Down Residential Ltd,Accommodation Costs,2004737,201807,
Rother District Council,24/09/2018,091HOUSING,Housing and Community Services,20200,Housing Needs - HB (Housing Benefit),D2514,Accommodation Costs,168.00,South Down Residential Ltd,Accommodation Costs,2004737,201807,
Rother District Council,24/09/2018,091HOUSING,Housing and Community Services,20200,Housing Needs - HB (Housing Benefit),D2514,Accommodation Costs,315.00,South Down Residential Ltd,Accommodation Costs,2004737,201807,
Rother District Council,24/09/2018,091HOUSING,Housing and Community Services,20200,Housing Needs - HB (Housing Benefit),D2514,Accommodation Costs,72.00,South Down Residential Ltd,Accommodation Costs,2004737,201807,
Rother District Council,24/09/2018,091HOUSING,Housing and Community Services,20109,Sports Development,D2923,Grants made,522.00,Zoe Ward,Grants made Sports Development - Active Rother,2004525,201807,Yes
Rother District Council,25/09/2018,031RESOURCES,Executive Directors & Corporate Core,20172,Facilities Management,A1110,Agency Staff,122.20,The Work People CIC,Agency Staff,2004420,201807,
Rother District Council,25/09/2018,999NOREPORT,Environmental Services,70706,Capital - Disable Facilities Grant,N1012,Capital Advances,"6,404.48",Alfa Electric Ltd,Capital Advances Disabled Facilities Grant,2005277,201808,
Rother District Council,25/09/2018,999NOREPORT,Environmental Services,70706,Capital - Disable Facilities Grant,N1012,Capital Advances,"5,644.01",Mark Bishop Ltd,Capital Advances Disabled Facilities Grant,2004477,201807,
Rother District Council,25/09/2018,999NOREPORT,Environmental Services,70706,Capital - Disable Facilities Grant,N1012,Capital Advances,"10,000.00",Batchelor Construction Ltd,Capital Advances Disabled Facilities Grant,2004478,201807,
Rother District Council,25/09/2018,999NOREPORT,Environmental Services,70706,Capital - Disable Facilities Grant,N1012,Capital Advances,846.60,Peabody South East Ltd,Capital Advances Disabled Facilities Grant,2004598,201807,
Rother District Council,25/09/2018,999NOREPORT,Resources,90000,Balance sheet all accounts,P1099,Owed by - Colonnade Bexhill Ltd,"20,106.80",The Colonnade Bexhill Ltd,Colonnade Restaurant Bexhill Ltd - purchases,2004438,201807,
Rother District Council,25/09/2018,081ACQUISIT,"Acquisitions, Transformation and Regeneration",20154,Committee Property Account,D1201,Equipment & Materials,684.00,J S Fire Protection Ltd,Equipment & Materials Fire Extinguisher,2004413,201807,
Rother District Council,25/09/2018,081ACQUISIT,"Acquisitions, Transformation and Regeneration",20153,"Elva Business Centre, Bexhill",D1201,Equipment & Materials,85.00,Thompson Advertising,Equipment & Materials Purchase of Signs,2004554,201807,
Rother District Council,25/09/2018,091HOUSING,Housing and Community Services,20145,Maintenance Services,D1201,Equipment & Materials,66.66,Trade UK Account (Screwfix),Equipment & Materials Purchase of Tools,2004546,201807,
Rother District Council,25/09/2018,091HOUSING,Housing and Community Services,20208,Care In The Community,D2513,Hired and Contracted services,262.00,Safe Partnership Ltd,Hired and contracted services Sanctuary DV Assistance Revenue,2004728,201807,
Rother District Council,25/09/2018,081ACQUISIT,"Acquisitions, Transformation and Regeneration",20154,Committee Property Account,B1100,Repairs to Premises,45.00,Thompson Advertising,Repairs to Premises - Colonnade - repairs and fit out,2004556,201807,
Rother District Council,25/09/2018,091HOUSING,Housing and Community Services,20102,Rother Museum Services,B1100,Repairs to Premises,759.99,CountyClean Environmental Services Ltd,Repairs to Premises Pumps Maintenance/ Repairs,2004734,201807,
Rother District Council,25/09/2018,031RESOURCES,Executive Directors & Corporate Core,20175,Administrative Offices - T.H. Annex (NOT CHP),B1100,Repairs to Premises,113.69,Alfa Electric Ltd,Repairs to Premises Purchase of Materials - Build Maint,2004863,201807,
Rother District Council,25/09/2018,091HOUSING,Housing and Community Services,20128,Public Conveniences,B1100,Repairs to Premises,31.58,Four Seasons Plastics,Repairs to Premises Purchase of Materials - Build Maint,2004543,201807,
Rother District Council,25/09/2018,091HOUSING,Housing and Community Services,20128,Public Conveniences,B1100,Repairs to Premises,53.31,Sussex Turnery and Moulding Co Ltd,Repairs to Premises Purchase of Materials - Build Maint,2004411,201807,
Rother District Council,25/09/2018,091HOUSING,Housing and Community Services,20108,Bexhill Promenade & Foreshore,B1100,Repairs to Premises,118.21,Alfa Electric Ltd,Repairs to Premises Repairs - Electrical Works,2004861,201807,
Rother District Council,25/09/2018,081ACQUISIT,"Acquisitions, Transformation and Regeneration",20155,Investment properties,B1100,Repairs to Premises,149.61,Alfa Electric Ltd,Repairs to Premises Repairs - Electrical Works,2004865,201807,
Rother District Council,25/09/2018,031RESOURCES,Executive Directors & Corporate Core,20175,Administrative Offices - T.H. Annex (NOT CHP),B1100,Repairs to Premises,339.44,Alfa Electric Ltd,Repairs to Premises Repairs - Electrical Works,2004451,201807,
Rother District Council,25/09/2018,031RESOURCES,Executive Directors & Corporate Core,20175,Administrative Offices - T.H. Annex (NOT CHP),B1100,Repairs to Premises,772.99,Alfa Electric Ltd,Repairs to Premises Repairs - Electrical Works,2004452,201807,
Rother District Council,25/09/2018,031RESOURCES,Executive Directors & Corporate Core,20176,Administrative Offices - Print Room,B1100,Repairs to Premises,259.65,Alfa Electric Ltd,Repairs to Premises Repairs - Electrical Works,2004523,201807,
Rother District Council,25/09/2018,031RESOURCES,Executive Directors & Corporate Core,20173,Administrative Offices - Town Hall,B1100,Repairs to Premises,118.20,Alfa Electric Ltd,Repairs to Premises Repairs - Electrical Works,2004861,201807,
Rother District Council,25/09/2018,031RESOURCES,Executive Directors & Corporate Core,20173,Administrative Offices - Town Hall,B1100,Repairs to Premises,155.08,Alfa Electric Ltd,Repairs to Premises Repairs - Electrical Works,2004862,201807,
Rother District Council,25/09/2018,091HOUSING,Housing and Community Services,20128,Public Conveniences,B1100,Repairs to Premises,249.57,Alfa Electric Ltd,Repairs to Premises Repairs - Electrical Works,2004858,201807,
Rother District Council,25/09/2018,091HOUSING,Housing and Community Services,20128,Public Conveniences,B1100,Repairs to Premises,320.32,Alfa Electric Ltd,Repairs to Premises Repairs - Electrical Works,2004859,201807,
Rother District Council,26/09/2018,041ENVIRON,Environmental Services,32140,EN Wealden Training (WEALDEN ONLY) R + W Partnership,D1203,Books And Publications,27.00,Highfield Awarding Body for Compliance Ltd,Books And Publications EnvH Books+Public.(Health+Food Saf),2004608,201807,
Rother District Council,26/09/2018,041ENVIRON,Environmental Services,32140,EN Wealden Training (WEALDEN ONLY) R + W Partnership,D1203,Books And Publications,336.00,Highfield Awarding Body for Compliance Ltd,Books And Publications EnvH Books+Public.(Health+Food Saf),2004608,201807,
Rother District Council,26/09/2018,999NOREPORT,Environmental Services,70706,Capital - Disable Facilities Grant,N1012,Capital Advances,330.00,Peabody South East Ltd,Capital Advances Disabled Facilities Grant,2004596,201807,
Rother District Council,26/09/2018,999NOREPORT,Environmental Services,70706,Capital - Disable Facilities Grant,N1012,Capital Advances,"2,200.00",Dolphin Lifts Kent,Capital Advances Disabled Facilities Grant,2004597,201807,
Rother District Council,26/09/2018,999NOREPORT,Environmental Services,70706,Capital - Disable Facilities Grant,N1012,Capital Advances,784.94,Peabody South East Ltd,Capital Advances Disabled Facilities Grant,2004599,201807,
Rother District Council,26/09/2018,999NOREPORT,Environmental Services,70706,Capital - Disable Facilities Grant,N1012,Capital Advances,"1,212.93",Mr Mark Neale General Building and Plumbing Ltd,Capital Advances Disabled Facilities Grant,2004600,201807,
Rother District Council,26/09/2018,091HOUSING,Housing and Community Services,20108,Bexhill Promenade & Foreshore,D1201,Equipment & Materials,341.66,Wybone Ltd,Equipment & Materials Supply of Litter Bins,2004473,201807,
Rother District Council,26/09/2018,031RESOURCES,Executive Directors & Corporate Core,20173,Administrative Offices - Town Hall,D1206,Furniture & Fittings,19.98,Viking Direct Ltd,Furniture & Fittings EnvH- Office Supplies and Furniture,2004489,201807,
Rother District Council,26/09/2018,081ACQUISIT,"Acquisitions, Transformation and Regeneration",20118,Tourism,D2513,Hired and Contracted services,"1,200.00",Tourism South East,Hired and contracted services Service fee paid,2004475,201807,
Rother District Council,26/09/2018,041ENVIRON,Environmental Services,32140,EN Wealden Training (WEALDEN ONLY) R + W Partnership,D2626,Postages,6.50,Highfield Awarding Body for Compliance Ltd,Postages Carriage of Supplies,2004608,201807,
Rother District Council,26/09/2018,041ENVIRON,Environmental Services,32144,EH Environmental Services Admin R + W Partnership,D2626,Postages,2.90,Viking Direct Ltd,Postages Carriage of Supplies,2004489,201807,
Rother District Council,26/09/2018,071STRAT,Strategy and Planning,20250,Planning Policy,A2202,Recruitment expenses,498.55,Johnston Publishing Ltd,Recruitment expenses Advertising Vacant Post,2004464,201807,
Rother District Council,26/09/2018,031RESOURCES,Executive Directors & Corporate Core,20173,Administrative Offices - Town Hall,B1100,Repairs to Premises,162.64,Graham,Repairs to Premises Purchase of Materials - Build Maint,2004583,201807,
Rother District Council,26/09/2018,081ACQUISIT,"Acquisitions, Transformation and Regeneration",20154,Committee Property Account,B1100,Repairs to Premises,969.93,Alfa Electric Ltd,Repairs to Premises Repairs - Electrical Works,2004453,201807,
Rother District Council,26/09/2018,091HOUSING,Housing and Community Services,20115,Rye Area Parks & Gardens,B2422,Sewerage,166.92,Scottish Water Business Stream Limited,Sewage Charges,2004463,201807,
Rother District Council,26/09/2018,031RESOURCES,Executive Directors & Corporate Core,20171,Human Resources,A2203,Training,"1,000.00",Paul Baker T/A Toast Promotional Products,Training,2004418,201807,
Rother District Council,26/09/2018,091HOUSING,Housing and Community Services,20115,Rye Area Parks & Gardens,B2421,Water,117.08,Scottish Water Business Stream Limited,Water Charges,2004463,201807,
Rother District Council,26/09/2018,041ENVIRON,Environmental Services,32134,EH Pollution R + W Partnership,D1201,Equipment & Materials,30.68,Greenham,Equipment & Materials,2004659,201807,
Rother District Council,26/09/2018,101RESOURCES,Resources,20216,Cost Of Collection,D2513,Hired and Contracted services,10.00,Inform CPI Ltd,Hired and Contracted services,2004449,201807,
Rother District Council,27/09/2018,091HOUSING,Housing and Community Services,20204,Housing Administration Account,A1110,Agency Staff,937.50,Oyster Partnership,Agency Staff,2004586,201807,
Rother District Council,27/09/2018,091HOUSING,Housing and Community Services,20200,Housing Needs - HB (Housing Benefit),A1110,Agency Staff,814.00,Oyster Partnership,Agency Staff,2005019,201807,
Rother District Council,27/09/2018,071STRAT,Strategy and Planning,20255,Local Development Framework,D2509,Consultants and Other Services,"1,170.00",GVA,Consultants and other services Consultants Fees,2004540,201807,
Rother District Council,27/09/2018,101RESOURCES,Resources,20239,Computer Services,D2509,Consultants and Other Services,231.29,Northgate Public Services (UK) Ltd,Consultants and other services Consultants Fees,2004485,201807,
Rother District Council,27/09/2018,081ACQUISIT,"Acquisitions, Transformation and Regeneration",20101,Cultural Development,D2926,District Events- Concessionary Use,"3,000.00",De La Warr Pavilion (Enterprise) Ltd,District Events- Concessionary Use DLWP Community Concessionary Grant,2004490,201807,
Rother District Council,27/09/2018,101RESOURCES,Resources,20216,Cost Of Collection,D2513,Hired and Contracted services,33.00,H M Land Registry,Hired and contracted services Council Tax-Land Registry Enquiries,2004778,201807,
Rother District Council,27/09/2018,071STRAT,Strategy and Planning,32145,Building Control Applications R+H Partnership,D2513,Hired and Contracted services,3.00,H M Land Registry,Hired and contracted services Env H- Land Registry,2004778,201807,
Rother District Council,27/09/2018,041ENVIRON,Environmental Services,32144,EH Environmental Services Admin R + W Partnership,D2513,Hired and Contracted services,3.00,H M Land Registry,Hired and contracted services Env H- Land Registry,2004778,201807,
Rother District Council,27/09/2018,091HOUSING,Housing and Community Services,20200,Housing Needs - HB (Housing Benefit),D2513,Hired and Contracted services,18.00,H M Land Registry,Hired and contracted services Housing- Land Registry,2004778,201807,
Rother District Council,27/09/2018,071STRAT,Strategy and Planning,20246,Planning Applications,D2513,Hired and Contracted services,15.00,H M Land Registry,Hired and contracted services Land Registry - Planning,2004778,201807,
Rother District Council,27/09/2018,091HOUSING,Housing and Community Services,20205,Housing Loans Account,D2514,Accommodation Costs,850.00,LetsMove Oxfordshire Ltd,Homelessness services Deposit for Landlords,2004652,201807,
Rother District Council,27/09/2018,091HOUSING,Housing and Community Services,20205,Housing Loans Account,D2514,Accommodation Costs,850.00,LetsMove Oxfordshire Ltd,Homelessness services Rent in Advance for Homeless,2004652,201807,
Rother District Council,27/09/2018,091HOUSING,Housing and Community Services,20234,Battle Community Help Point,B2311,Rents and service charges,"2,062.50",Tiger Tees Ltd,Rents and service charges Rents-CHP Battle,2004482,201807,
Rother District Council,27/09/2018,091HOUSING,Housing and Community Services,20114,Bexhill Parks & Open Spaces,B1100,Repairs to Premises,9.19,Sussex Turnery and Moulding Co Ltd,Repairs to Premises Purchase of Materials - Build Maint,2004459,201807,
Rother District Council,27/09/2018,091HOUSING,Housing and Community Services,20107,Camber Beach & Foreshore,B1100,Repairs to Premises,392.65,Alfa Electric Ltd,Repairs to Premises Repairs - Electrical Works,2004496,201807,
Rother District Council,27/09/2018,031RESOURCES,Executive Directors & Corporate Core,20173,Administrative Offices - Town Hall,B1100,Repairs to Premises,514.28,Alfa Electric Ltd,Repairs to Premises Repairs - Electrical Works,2004454,201807,
Rother District Council,27/09/2018,091HOUSING,Housing and Community Services,20128,Public Conveniences,B2422,Sewerage,330.00,CountyClean Environmental Services Ltd,Sewerage - Sewage/Cesspool Emptying,2004456,201807,
Rother District Council,27/09/2018,101RESOURCES,Resources,20242,Communications-Phones,D2621,Telephones,277.70,BT British Telecommunications plc,Telephones BT-Rental-General,2004537,201807,
Rother District Council,27/09/2018,101RESOURCES,Resources,20242,Communications-Phones,D2631,Computer Equip Maintenance,"3,052.96",KCOM Group Plc,Telephones KCOM Smartnumber Charges,2004534,201807,
Rother District Council,27/09/2018,101RESOURCES,Resources,20239,Computer Services,D2621,Telephones,267.68,Easynet Ltd,Telephones Leased Line Rental,2004465,201807,
Rother District Council,28/09/2018,101RESOURCES,Resources,20240,Printing Services,D2417,Photocopy Paper by external suppliers,70.25,Premier Paper Group Ltd,CLOSED,2004486,201807,
Rother District Council,28/09/2018,081ACQUISIT,"Acquisitions, Transformation and Regeneration",20154,Committee Property Account,D2509,Consultants and Other Services,"1,000.00",Thomas Ford and Partners,Consultants and other services Consultants Fees,2004595,201807,
Rother District Council,28/09/2018,999NOREPORT,"Acquisitions, Transformation and Regeneration",70726,Capital - Bexhill Cemetery Entrance/Driveway,N1003,Construction/Conversion,"2,934.60",Mr R J Sheppard T/A E A R Sheppard,Consultants and other services Consultants Fees,2004627,201807,
Rother District Council,28/09/2018,031RESOURCES,Executive Directors & Corporate Core,20175,Administrative Offices - T.H. Annex (NOT CHP),D1206,Furniture & Fittings,155.00,Furniture@Work Ltd,Furniture & Fittings EnvH- Office Supplies and Furniture,2004474,201807,
Rother District Council,28/09/2018,101RESOURCES,Resources,20216,Cost Of Collection,D2513,Hired and Contracted services,33.00,H M Land Registry,Hired and contracted services Council Tax-Land Registry Enquiries,2004759,201807,
Rother District Council,28/09/2018,101RESOURCES,Resources,20216,Cost Of Collection,D2513,Hired and Contracted services,75.00,Her Majestys Court Service,Hired and contracted services Court Costs/Fees,2005159,201807,
Rother District Council,28/09/2018,041ENVIRON,Environmental Services,32144,EH Environmental Services Admin R + W Partnership,D2513,Hired and Contracted services,6.00,H M Land Registry,Hired and contracted services Env H- Land Registry,2004759,201807,
Rother District Council,28/09/2018,091HOUSING,Housing and Community Services,20200,Housing Needs - HB (Housing Benefit),D2513,Hired and Contracted services,3.00,H M Land Registry,Hired and contracted services Housing- Land Registry,2004759,201807,
Rother District Council,28/09/2018,071STRAT,Strategy and Planning,20246,Planning Applications,D2513,Hired and Contracted services,12.00,H M Land Registry,Hired and contracted services Land Registry - Planning,2004759,201807,
Rother District Council,28/09/2018,041ENVIRON,Environmental Services,32134,EH Pollution R + W Partnership,D2513,Hired and Contracted services,"1,597.00",C P J Field & Co Ltd,Hired and contracted services Parks- Public Health Burials,2004607,201807,
Rother District Council,28/09/2018,031RESOURCES,Executive Directors & Corporate Core,20185,Joint Waste procurement,D2513,Hired and Contracted services,"3,707.00",Bevan Brittan LLP,Hired and contracted services Service fee paid,2005555,201808,
Rother District Council,28/09/2018,031RESOURCES,Executive Directors & Corporate Core,20185,Joint Waste procurement,D2513,Hired and Contracted services,"21,662.00",Ricardo-AEA Ltd,Hired and contracted services Service fee paid,2005040,201808,
Rother District Council,28/09/2018,081ACQUISIT,"Acquisitions, Transformation and Regeneration",20144,Property Management,D2513,Hired and Contracted services,354.60,Valuation Office Agency,Hired and contracted services Valuation Services,2004527,201807,
Rother District Council,28/09/2018,101RESOURCES,Resources,20240,Printing Services,D2417,Photocopy Paper by external suppliers,470.00,Premier Paper Group Ltd,Photocopy Paper Photocopy White,2004486,201807,
Rother District Council,28/09/2018,101RESOURCES,Resources,20216,Cost Of Collection,D2626,Postages,"3,058.98",Virtual Mail Room Ltd,Postages Postages - Virtual Mail Room,2004891,201807,
Rother District Council,28/09/2018,091HOUSING,Housing and Community Services,20114,Bexhill Parks & Open Spaces,B1100,Repairs to Premises,785.00,F E Philcox Ltd,Repairs to Premises Parks- Fencing Installation,2004480,201807,
Rother District Council,28/09/2018,081ACQUISIT,"Acquisitions, Transformation and Regeneration",20154,Committee Property Account,B1100,Repairs to Premises,185.00,F E Philcox Ltd,Repairs to Premises Purchase of Materials - Build Maint,2004541,201807,
Rother District Council,28/09/2018,091HOUSING,Housing and Community Services,20138,Residual Highway Services,B1100,Repairs to Premises,48.00,F E Philcox Ltd,Repairs to Premises Purchase of Materials - Build Maint,2004542,201807,
Rother District Council,28/09/2018,081ACQUISIT,"Acquisitions, Transformation and Regeneration",20153,"Elva Business Centre, Bexhill",B1100,Repairs to Premises,331.30,Alfa Electric Ltd,Repairs to Premises Repairs - Electrical Works,2004563,201807,
Rother District Council,28/09/2018,091HOUSING,Housing and Community Services,20107,Camber Beach & Foreshore,B1100,Repairs to Premises,252.70,Alfa Electric Ltd,Repairs to Premises Repairs - Electrical Works,2004498,201807,
Rother District Council,28/09/2018,031RESOURCES,Executive Directors & Corporate Core,20173,Administrative Offices - Town Hall,B1100,Repairs to Premises,675.21,Alfa Electric Ltd,Repairs to Premises Repairs - Electrical Works,2004866,201807,
Rother District Council,28/09/2018,091HOUSING,Housing and Community Services,20128,Public Conveniences,B1100,Repairs to Premises,274.71,Alfa Electric Ltd,Repairs to Premises Repairs - Electrical Works,2004497,201807,
Rother District Council,28/09/2018,071STRAT,Strategy and Planning,20246,Planning Applications,D2519,Statutory Advertising,366.00,Johnston Publishing Ltd,Statutory Advertising Planadv - Rye + Battle Observer,2004907,201807,
Rother District Council,28/09/2018,071STRAT,Strategy and Planning,20246,Planning Applications,D2519,Statutory Advertising,366.00,Local World Ltd,Statutory Advertising Planadv - Rye + Battle Observer,2004550,201807,
Rother District Council,28/09/2018,091HOUSING,Housing and Community Services,20206,Syrians,D2513,Hired and Contracted services,300.00,Susanne Evershed,Syrian - Education - Exempt VAT,2004601,201807,
Rother District Council,28/09/2018,091HOUSING,Housing and Community Services,20108,Bexhill Promenade & Foreshore,E2302,Third party payment private contractors,"1,158.41",The Fountain Workshop (Maintenance) Ltd,Third party payment private contractors Water Feature Maintenance,2005199,201807,
Rother District Council,28/09/2018,091HOUSING,Housing and Community Services,20108,Bexhill Promenade & Foreshore,E2302,Third party payment private contractors,493.19,The Fountain Workshop (Maintenance) Ltd,Third party payment private contractors Water Feature Maintenance,2005200,201807,
Rother District Council,28/09/2018,041ENVIRON,Environmental Services,32144,EH Environmental Services Admin R + W Partnership,A2203,Training,159.00,R H Environmental Limited,Training,2004491,201807,
Rother District Council,28/09/2018,041ENVIRON,Environmental Services,32144,EH Environmental Services Admin R + W Partnership,A2203,Training,159.00,R H Environmental Limited,Training,2004492,201807,
Rother District Council,28/09/2018,031RESOURCES,Executive Directors & Corporate Core,32131,Sussex Training Partnership,D2513,Hired and Contracted services,895.00,PHF Training,Training Sussex Train Consor-Training Course,2004484,201807,
Rother District Council,29/09/2018,071STRAT,Strategy and Planning,20246,Planning Applications,D1204,Newspapers & Periodicals,15.75,Pipers News Ltd,Newspapers & Periodicals Newspapers,2004493,201807,
Rother District Council,29/09/2018,031RESOURCES,Executive Directors & Corporate Core,20159,Corporate Policy Making,D1204,Newspapers & Periodicals,15.75,Pipers News Ltd,Newspapers & Periodicals Newspapers,2004495,201807,
Rother District Council,29/09/2018,031RESOURCES,Executive Directors & Corporate Core,20156,Representing Local Interest,D1204,Newspapers & Periodicals,15.75,Pipers News Ltd,Newspapers & Periodicals Newspapers,2004494,201807,
Rother District Council,29/09/2018,091HOUSING,Housing and Community Services,20200,Housing Needs - HB (Housing Benefit),D2508,Removals and Storage,160.00,Senlac Storage Ltd,Removals and Storage,2004890,201807,
Rother District Council,30/09/2018,101RESOURCES,Resources,20209,Corporate management,D2513,Hired and Contracted services,40.00,Lloyds Bank,Bank Charges Bank Charges,2005169,201807,
Rother District Council,30/09/2018,101RESOURCES,Resources,20209,Corporate management,D2513,Hired and Contracted services,40.00,Lloyds Bank,Bank Charges Bank Charges,2005170,201807,
Rother District Council,30/09/2018,101RESOURCES,Resources,20209,Corporate management,D2513,Hired and Contracted services,40.00,Lloyds Bank,Bank Charges Bank Charges,2005171,201807,
Rother District Council,30/09/2018,101RESOURCES,Resources,20209,Corporate management,D2513,Hired and Contracted services,40.00,Lloyds Bank,Bank Charges Bank Charges,2005172,201807,
Rother District Council,30/09/2018,101RESOURCES,Resources,20209,Corporate management,D2513,Hired and Contracted services,20.49,Lloyds Bank,Bank Charges Bank Charges,2005173,201807,
Rother District Council,30/09/2018,101RESOURCES,Resources,20209,Corporate management,D2513,Hired and Contracted services,363.73,Lloyds Bank,Bank Charges Bank Charges,2005174,201807,
Rother District Council,30/09/2018,101RESOURCES,Resources,20209,Corporate management,D2513,Hired and Contracted services,40.00,Lloyds Bank,Bank Charges Bank Charges,2005175,201807,
Rother District Council,30/09/2018,101RESOURCES,Resources,20209,Corporate management,D2513,Hired and Contracted services,678.43,Lloyds Bank,Bank Charges Bank Charges,2005176,201807,
Rother District Council,30/09/2018,101RESOURCES,Resources,20209,Corporate management,D2513,Hired and Contracted services,20.05,Lloyds Bank,Bank Charges Bank Charges,2005177,201807,
Rother District Council,30/09/2018,101RESOURCES,Resources,20209,Corporate management,D2513,Hired and Contracted services,"1,163.03",Lloyds Bank,Bank Charges Bank Charges,2005178,201807,
Rother District Council,30/09/2018,101RESOURCES,Resources,20239,Computer Services,D2509,Consultants and Other Services,118.45,Wilson's Express Hastings Ltd,Consultants and other services Consultants Fees,2004538,201807,
Rother District Council,30/09/2018,091HOUSING,Housing and Community Services,20108,Bexhill Promenade & Foreshore,B2611,Contract cleaning,126.00,Abacus Main Ltd,Contract cleaning Office Cleaning,2004807,201807,
Rother District Council,30/09/2018,031RESOURCES,Executive Directors & Corporate Core,20176,Administrative Offices - Print Room,B2611,Contract cleaning,28.00,Abacus Main Ltd,Contract cleaning Office Cleaning,2004809,201807,
Rother District Council,30/09/2018,031RESOURCES,Executive Directors & Corporate Core,20173,Administrative Offices - Town Hall,B2611,Contract cleaning,240.00,Abacus Main Ltd,Contract cleaning Office Cleaning,2004809,201807,
Rother District Council,30/09/2018,031RESOURCES,Executive Directors & Corporate Core,20175,Administrative Offices - T.H. Annex (NOT CHP),B2611,Contract cleaning,112.00,Abacus Main Ltd,Contract cleaning Office Cleaning,2004809,201807,
Rother District Council,30/09/2018,091HOUSING,Housing and Community Services,20234,Battle Community Help Point,B2611,Contract cleaning,205.70,Abacus Main Ltd,Contract cleaning Office Cleaning,2004846,201807,
Rother District Council,30/09/2018,091HOUSING,Housing and Community Services,20107,Camber Beach & Foreshore,C1104,Derv,3.80,Allstar Business Solutions,Derv Fuel Service fee payable on fuel cards,2005611,201808,
Rother District Council,30/09/2018,091HOUSING,Housing and Community Services,20145,Maintenance Services,C1104,Derv,1.90,Allstar Business Solutions,Derv Fuel Service fee payable on fuel cards,2005611,201808,
Rother District Council,30/09/2018,091HOUSING,Housing and Community Services,20114,Bexhill Parks & Open Spaces,B2731,Grounds maintenance routine,"67,852.28",Idverde Limited,Grounds Maintenance Contract Routine,2004655,201807,
Rother District Council,30/09/2018,101RESOURCES,Resources,20216,Cost Of Collection,D2513,Hired and Contracted services,34.72,allpay.net Ltd,Hired and contracted services Allpay Card/Rep/Let Chrg - Vatable,2005630,201808,
Rother District Council,30/09/2018,101RESOURCES,Resources,20216,Cost Of Collection,D2513,Hired and Contracted services,29.73,allpay.net Ltd,Hired and contracted services Allpay Card/Rep/Let Chrg - Vatable,2005627,201808,
Rother District Council,30/09/2018,101RESOURCES,Resources,20216,Cost Of Collection,D2513,Hired and Contracted services,"2,108.47",allpay.net Ltd,Hired and contracted services Allpay Card/Rep/Let Chrg - Vatable,2005628,201808,
Rother District Council,30/09/2018,101RESOURCES,Resources,20216,Cost Of Collection,D2513,Hired and Contracted services,88.86,allpay.net Ltd,Hired and contracted services Allpay Card/Rep/Let Chrg - Vatable,2005629,201808,
Rother District Council,30/09/2018,091HOUSING,Housing and Community Services,20137,Car Parks,D2513,Hired and Contracted services,"1,310.50",Cobalt Telephone Technologies Ltd,Hired and contracted services Car Parks - RingGo service charges,2004644,201807,
Rother District Council,30/09/2018,091HOUSING,Housing and Community Services,20137,Car Parks,D2513,Hired and Contracted services,"1,932.50",Jade Security Services Ltd,Hired and contracted services Cash Security Fees-Car Parks,2005764,201808,
Rother District Council,30/09/2018,041ENVIRON,Environmental Services,20130,Crime and Disorder Initiatives,D2513,Hired and Contracted services,"3,100.00",Rapid Vision Systems Ltd,Hired and contracted services CCTV System Maintenance,2004516,201807,
Rother District Council,30/09/2018,031RESOURCES,Executive Directors & Corporate Core,20173,Administrative Offices - Town Hall,D2513,Hired and Contracted services,37.30,Data Shredding Services Ltd,Hired and contracted services Charges - Confidential Office Waste,2004552,201807,
Rother District Council,30/09/2018,091HOUSING,Housing and Community Services,20145,Maintenance Services,D2513,Hired and Contracted services,320.00,R French and  Son Ltd,Hired and contracted services Hire of Skip,2004532,201807,
Rother District Council,30/09/2018,091HOUSING,Housing and Community Services,20145,Maintenance Services,D2513,Hired and Contracted services,320.00,R French and  Son Ltd,Hired and contracted services Hire of Skip,2004533,201807,
Rother District Council,30/09/2018,071STRAT,Strategy and Planning,20255,Local Development Framework,D2513,Hired and Contracted services,"6,528.00",Peter Davidson Consultancy Ltd,Hired and contracted services LDF Consultancy,2005898,201808,
Rother District Council,30/09/2018,041ENVIRON,Environmental Services,32142,EH Taxi and Private Hire Licenses R + W Partnership,D2513,Hired and Contracted services,968.00,DBS The Disclosure and Barring Service,Hired and contracted services Service fee paid,2005181,201807,
Rother District Council,30/09/2018,091HOUSING,Housing and Community Services,20200,Housing Needs - HB (Housing Benefit),D2513,Hired and Contracted services,"2,625.00",LHS Locata (Housing Services) Ltd,Hired and contracted services Service fee paid,2005188,201807,
Rother District Council,30/09/2018,031RESOURCES,Executive Directors & Corporate Core,32131,Sussex Training Partnership,D2513,Hired and Contracted services,54.00,Amanda Wilsher Associates,Hired and contracted services STC - Travel and subsistence,2004555,201807,
Rother District Council,30/09/2018,031RESOURCES,Executive Directors & Corporate Core,20162,Electoral Registration,D2626,Postages,"1,060.77",Electoral Reform Services Ltd,Postages Response Service - Royal Mail Chg,2004466,201807,
Rother District Council,30/09/2018,031RESOURCES,Executive Directors & Corporate Core,20162,Electoral Registration,D2415,Printing by external suppliers,"5,820.46",Electoral Reform Services Ltd,Printing Printing (Not from RDC Print Room),2005149,201808,
Rother District Council,30/09/2018,091HOUSING,Housing and Community Services,20108,Bexhill Promenade & Foreshore,B1100,Repairs to Premises,8.05,C Brewer and Sons Ltd,Repairs to Premises Purchase of Materials - Build Maint,2004622,201807,
Rother District Council,30/09/2018,081ACQUISIT,"Acquisitions, Transformation and Regeneration",20146,West Trading Estate,B1100,Repairs to Premises,12.32,C Brewer and Sons Ltd,Repairs to Premises Purchase of Materials - Build Maint,2004620,201807,
Rother District Council,30/09/2018,081ACQUISIT,"Acquisitions, Transformation and Regeneration",20146,West Trading Estate,B1100,Repairs to Premises,41.98,C Brewer and Sons Ltd,Repairs to Premises Purchase of Materials - Build Maint,2004621,201807,
Rother District Council,30/09/2018,091HOUSING,Housing and Community Services,20108,Bexhill Promenade & Foreshore,B1100,Repairs to Premises,58.77,C Brewer and Sons Ltd,Repairs to Premises Purchase of Materials - Build Maint,2004619,201807,
Rother District Council,30/09/2018,091HOUSING,Housing and Community Services,20128,Public Conveniences,B1100,Repairs to Premises,59.52,C Brewer and Sons Ltd,Repairs to Premises Purchase of Materials - Build Maint,2004617,201807,
Rother District Council,30/09/2018,091HOUSING,Housing and Community Services,20128,Public Conveniences,B1100,Repairs to Premises,4.75,Rye Hire Ltd,Repairs to Premises Purchase of Materials - Build Maint,2004845,201807,
Rother District Council,30/09/2018,091HOUSING,Housing and Community Services,20138,Residual Highway Services,B1100,Repairs to Premises,46.30,C Brewer and Sons Ltd,Repairs to Premises Purchase of Materials - Build Maint,2004616,201807,
Rother District Council,30/09/2018,091HOUSING,Housing and Community Services,20138,Residual Highway Services,B1100,Repairs to Premises,78.74,C Brewer and Sons Ltd,Repairs to Premises Purchase of Materials - Build Maint,2004618,201807,
Rother District Council,30/09/2018,091HOUSING,Housing and Community Services,20114,Bexhill Parks & Open Spaces,B2422,Sewerage,138.00,Cleansing Service Group Ltd,Sewerage Parks- Emptying of Cesspit,2004487,201807,
Rother District Council,30/09/2018,031RESOURCES,Executive Directors & Corporate Core,20162,Electoral Registration,D2636,Computer Software,"3,288.28",Electoral Reform Services Ltd,Telephones Telephone Registration,2004893,201807,
Rother District Council,30/09/2018,031RESOURCES,Executive Directors & Corporate Core,32131,Sussex Training Partnership,D2513,Hired and Contracted services,"1,200.00",Amanda Wilsher Associates,Training Sussex Train Consor-Training Course,2004555,201807,
Rother District Council,30/09/2018,091HOUSING,Housing and Community Services,20107,Camber Beach & Foreshore,C1104,Derv,33.23,Allstar Business Solutions,Derv,2005611,201808,
Rother District Council,30/09/2018,091HOUSING,Housing and Community Services,20107,Camber Beach & Foreshore,C1104,Derv,28.86,Allstar Business Solutions,Derv,2005611,201808,
Rother District Council,30/09/2018,091HOUSING,Housing and Community Services,20200,Housing Needs - HB (Housing Benefit),D2514,Accommodation Costs,350.00,Specialist Care UK Group Ltd,Accommodation Costs,2004504,201807,
Rother District Council,30/09/2018,091HOUSING,Housing and Community Services,20200,Housing Needs - HB (Housing Benefit),D2514,Accommodation Costs,262.50,Specialist Care UK Group Ltd,Accommodation Costs,2004506,201807,
Rother District Council,30/09/2018,091HOUSING,Housing and Community Services,20200,Housing Needs - HB (Housing Benefit),D2514,Accommodation Costs,175.00,Specialist Care UK Group Ltd,Accommodation Costs,2004503,201807,
Rother District Council,30/09/2018,091HOUSING,Housing and Community Services,20200,Housing Needs - HB (Housing Benefit),D2514,Accommodation Costs,262.50,Specialist Care UK Group Ltd,Accommodation Costs,2004502,201807,
Rother District Council,30/09/2018,091HOUSING,Housing and Community Services,20200,Housing Needs - HB (Housing Benefit),D2514,Accommodation Costs,262.50,Specialist Care UK Group Ltd,Accommodation Costs,2004507,201807,
Rother District Council,30/09/2018,091HOUSING,Housing and Community Services,20200,Housing Needs - HB (Housing Benefit),D2514,Accommodation Costs,826.75,Specialist Care UK Group Ltd,Accommodation Costs,2004511,201807,
Rother District Council,30/09/2018,091HOUSING,Housing and Community Services,20200,Housing Needs - HB (Housing Benefit),D2514,Accommodation Costs,262.50,Specialist Care UK Group Ltd,Accommodation Costs,2004508,201807,
Rother District Council,30/09/2018,091HOUSING,Housing and Community Services,20200,Housing Needs - HB (Housing Benefit),D2514,Accommodation Costs,375.00,Specialist Care UK Group Ltd,Accommodation Costs,2004509,201807,
Rother District Council,30/09/2018,091HOUSING,Housing and Community Services,20200,Housing Needs - HB (Housing Benefit),D2514,Accommodation Costs,262.50,Specialist Care UK Group Ltd,Accommodation Costs,2004505,201807,
Rother District Council,30/09/2018,091HOUSING,Housing and Community Services,20206,Syrians,D2513,Hired and Contracted services,90.85,247 Transport Solutions Ltd,Hired and Contracted services,2004513,201807,
Rother District Council,30/09/2018,091HOUSING,Housing and Community Services,20200,Housing Needs - HB (Housing Benefit),D2514,Accommodation Costs,85.70,Specialist Care UK Group Ltd,Accommodation Costs,2004501,201807,
Rother District Council,30/09/2018,091HOUSING,Housing and Community Services,20200,Housing Needs - HB (Housing Benefit),D2514,Accommodation Costs,350.00,Specialist Care UK Group Ltd,Accommodation Costs,2004510,201807,
Rother District Council,30/09/2018,091HOUSING,Housing and Community Services,20200,Housing Needs - HB (Housing Benefit),D2513,Hired and Contracted services,156.00,NowMedical,Hired and Contracted services,2005013,201807,
Rother District Council,30/09/2018,091HOUSING,Housing and Community Services,20200,Housing Needs - HB (Housing Benefit),D2514,Accommodation Costs,"2,300.00",LESSHOMELESS LTD,Accommodation Costs,2004514,201807,
Rother District Council,30/09/2018,091HOUSING,Housing and Community Services,20200,Housing Needs - HB (Housing Benefit),D2514,Accommodation Costs,"2,820.00",LESSHOMELESS LTD,Accommodation Costs,2004515,201807,
Rother District Council,30/09/2018,091HOUSING,Housing and Community Services,20145,Maintenance Services,C1104,Derv,77.30,Allstar Business Solutions,Derv,2005611,201808,
Rother District Council,30/09/2018,091HOUSING,Housing and Community Services,20145,Maintenance Services,C1104,Derv,40.83,Allstar Business Solutions,Derv,2005611,201808,
Rother District Council,30/09/2018,091HOUSING,Housing and Community Services,20145,Maintenance Services,C1104,Derv,59.06,Allstar Business Solutions,Derv,2005611,201808,
Rother District Council,01/10/2018,031RESOURCES,Executive Directors & Corporate Core,20162,Electoral Registration,D1203,Books And Publications,223.00,Thomson Reuters Ltd,Books And Publications Miscellaneous Legal Reference Books,2004565,201807,
Rother District Council,01/10/2018,999NOREPORT,Resources,90000,Balance sheet all accounts,P1099,Owed by - Colonnade Bexhill Ltd,74.94,Merchant Rentals Ltd,Colonnade Restaurant Bexhill Ltd - purchases,2004755,201807,
Rother District Council,01/10/2018,101RESOURCES,Resources,20240,Printing Services,D2638,Photocopier Contracts,529.14,Canon (UK) Ltd,Computer Equip Maintenance Maintenance re Colourwave Printer,2004549,201807,
Rother District Council,01/10/2018,081ACQUISIT,"Acquisitions, Transformation and Regeneration",20146,West Trading Estate,D2509,Consultants and Other Services,"11,000.00",Meridian Surveyors,Consultants and other services Consultants Fees,2004992,201807,
Rother District Council,01/10/2018,071STRAT,Strategy and Planning,20246,Planning Applications,D2509,Consultants and Other Services,250.00,Rural Planning Ltd,Consultants and other services Consultants Fees,2004579,201807,
Rother District Council,01/10/2018,091HOUSING,Housing and Community Services,20128,Public Conveniences,B2611,Contract cleaning,"17,946.23",Specialist Hygiene Services Ltd,Contract cleaning Public Conveniences Cleaning Servic,2004810,201807,
Rother District Council,01/10/2018,091HOUSING,Housing and Community Services,20137,Car Parks,D1201,Equipment & Materials,195.16,Alfa Electric Ltd,Equipment & Materials Ticket Machine Maintenance/ Repairs,2004680,201807,
Rother District Council,01/10/2018,091HOUSING,Housing and Community Services,20109,Sports Development,D2923,Grants made,750.00,East Sussex County Council,Grants made Sports Development - Active Rother,2004558,201807,
Rother District Council,01/10/2018,031RESOURCES,Executive Directors & Corporate Core,20171,Human Resources,D2513,Hired and Contracted services,119.90,Computershare Voucher Services,Hired and contracted services Child Care Voucher Service Charge,2004753,201807,
Rother District Council,01/10/2018,101RESOURCES,Resources,20209,Corporate management,D2513,Hired and Contracted services,20.09,Merchant Rentals Ltd,Hired and contracted services Streamline Machine-Rental,2005622,201808,
Rother District Council,01/10/2018,031RESOURCES,Executive Directors & Corporate Core,20162,Electoral Registration,D2626,Postages,"1,178.45",Royal Mail Group Ltd,Postages Response Service - Royal Mail Chg,2004551,201807,
Rother District Council,01/10/2018,091HOUSING,Housing and Community Services,20108,Bexhill Promenade & Foreshore,D2623,Radios and licences,11.92,Radio Relay,Radios and licences Radio/Transmitter Licences,2004580,201807,
Rother District Council,01/10/2018,031RESOURCES,Executive Directors & Corporate Core,32131,Sussex Training Partnership,D2312,Refreshments,93.20,Robsons of Lewes Ltd,Refreshments Sussex Training Cons - Refreshments,2004796,201807,
Rother District Council,01/10/2018,101RESOURCES,Resources,20242,Communications-Phones,D2621,Telephones,41.15,KCOM Group Plc,Telephones KCOM Smartnumber Charges,2005643,201808,
Rother District Council,01/10/2018,101RESOURCES,Resources,20242,Communications-Phones,D2621,Telephones,796.16,KCOM Group Plc,Telephones KCOM Smartnumber Charges,2005644,201808,
Rother District Council,01/10/2018,101RESOURCES,Resources,20242,Communications-Phones,D2621,Telephones,"9,916.14",KCOM Group Plc,Telephones KCOM Smartnumber Charges,2005648,201808,
Rother District Council,01/10/2018,101RESOURCES,Resources,20239,Computer Services,D2621,Telephones,"2,250.20",Vodafone Limited,Telephones Leased Line Rental,2004548,201807,
Rother District Council,01/10/2018,091HOUSING,Housing and Community Services,20107,Camber Beach & Foreshore,D2621,Telephones,31.33,Daisy Communications PLC,Telephones Telephone Call Costs + Line Rental,2004787,201807,
Rother District Council,01/10/2018,091HOUSING,Housing and Community Services,20102,Rother Museum Services,D2621,Telephones,13.99,Daisy Communications PLC,Telephones Telephone Call Costs + Line Rental,2004787,201807,
Rother District Council,01/10/2018,041ENVIRON,Environmental Services,32134,EH Pollution R + W Partnership,D2621,Telephones,13.99,Daisy Communications PLC,Telephones Telephone Call Costs + Line Rental,2004787,201807,
Rother District Council,01/10/2018,031RESOURCES,Executive Directors & Corporate Core,20180,Emergency Planning,D2621,Telephones,13.99,Daisy Communications PLC,Telephones Telephone Call Costs + Line Rental,2004787,201807,
Rother District Council,01/10/2018,101RESOURCES,Resources,20242,Communications-Phones,D2621,Telephones,84.08,Daisy Communications PLC,Telephones Telephone Call Costs + Line Rental,2004787,201807,
Rother District Council,01/10/2018,101RESOURCES,Resources,20239,Computer Services,D2621,Telephones,27.98,Daisy Communications PLC,Telephones Telephone Call Costs + Line Rental,2004787,201807,
Rother District Council,01/10/2018,091HOUSING,Housing and Community Services,20200,Housing Needs - HB (Housing Benefit),D2514,Accommodation Costs,"1,725.00",UK Room Imperial,Accommodation Costs,2004626,201807,
Rother District Council,01/10/2018,091HOUSING,Housing and Community Services,20200,Housing Needs - HB (Housing Benefit),D2514,Accommodation Costs,"1,425.00",UK Room Imperial,Accommodation Costs,2004626,201807,
Rother District Council,01/10/2018,091HOUSING,Housing and Community Services,20200,Housing Needs - HB (Housing Benefit),D2514,Accommodation Costs,"2,025.00",UK Room Imperial,Accommodation Costs,2004626,201807,
Rother District Council,01/10/2018,091HOUSING,Housing and Community Services,20200,Housing Needs - HB (Housing Benefit),D2514,Accommodation Costs,"1,725.00",UK Room Imperial,Accommodation Costs,2004626,201807,
Rother District Council,01/10/2018,091HOUSING,Housing and Community Services,20200,Housing Needs - HB (Housing Benefit),D2514,Accommodation Costs,"1,725.00",UK Room Imperial,Accommodation Costs,2004626,201807,
Rother District Council,01/10/2018,091HOUSING,Housing and Community Services,20200,Housing Needs - HB (Housing Benefit),D2514,Accommodation Costs,"1,725.00",UK Room Imperial,Accommodation Costs,2004626,201807,
Rother District Council,01/10/2018,091HOUSING,Housing and Community Services,20200,Housing Needs - HB (Housing Benefit),D2514,Accommodation Costs,105.00,Solutions Accommodation Providers Ltd,Accommodation Costs,2004568,201807,
Rother District Council,01/10/2018,091HOUSING,Housing and Community Services,20200,Housing Needs - HB (Housing Benefit),D2514,Accommodation Costs,420.00,Solutions Accommodation Providers Ltd,Accommodation Costs,2004568,201807,
Rother District Council,01/10/2018,091HOUSING,Housing and Community Services,20200,Housing Needs - HB (Housing Benefit),D2514,Accommodation Costs,98.00,Solutions Accommodation Providers Ltd,Accommodation Costs,2004569,201807,
Rother District Council,01/10/2018,091HOUSING,Housing and Community Services,20200,Housing Needs - HB (Housing Benefit),D2514,Accommodation Costs,392.00,Solutions Accommodation Providers Ltd,Accommodation Costs,2004569,201807,
Rother District Council,01/10/2018,091HOUSING,Housing and Community Services,20200,Housing Needs - HB (Housing Benefit),D2514,Accommodation Costs,315.00,South Down Residential Ltd,Accommodation Costs,2004512,201807,
Rother District Council,01/10/2018,091HOUSING,Housing and Community Services,20200,Housing Needs - HB (Housing Benefit),D2514,Accommodation Costs,252.00,South Down Residential Ltd,Accommodation Costs,2004512,201807,
Rother District Council,01/10/2018,091HOUSING,Housing and Community Services,20200,Housing Needs - HB (Housing Benefit),D2514,Accommodation Costs,63.00,South Down Residential Ltd,Accommodation Costs,2004512,201807,
Rother District Council,01/10/2018,091HOUSING,Housing and Community Services,20200,Housing Needs - HB (Housing Benefit),D2514,Accommodation Costs,350.00,South Down Residential Ltd,Accommodation Costs,2004512,201807,
Rother District Council,01/10/2018,091HOUSING,Housing and Community Services,20200,Housing Needs - HB (Housing Benefit),D2514,Accommodation Costs,168.00,South Down Residential Ltd,Accommodation Costs,2004512,201807,
Rother District Council,01/10/2018,091HOUSING,Housing and Community Services,20200,Housing Needs - HB (Housing Benefit),D2514,Accommodation Costs,157.50,Solutions Accommodation Providers Ltd,Accommodation Costs,2004567,201807,
Rother District Council,01/10/2018,091HOUSING,Housing and Community Services,20200,Housing Needs - HB (Housing Benefit),D2514,Accommodation Costs,420.00,Solutions Accommodation Providers Ltd,Accommodation Costs,2004570,201807,
Rother District Council,01/10/2018,091HOUSING,Housing and Community Services,20200,Housing Needs - HB (Housing Benefit),D2514,Accommodation Costs,84.00,Solutions Accommodation Providers Ltd,Accommodation Costs,2004572,201807,
Rother District Council,01/10/2018,091HOUSING,Housing and Community Services,20200,Housing Needs - HB (Housing Benefit),D2514,Accommodation Costs,336.00,Solutions Accommodation Providers Ltd,Accommodation Costs,2004572,201807,
Rother District Council,01/10/2018,091HOUSING,Housing and Community Services,20200,Housing Needs - HB (Housing Benefit),D2514,Accommodation Costs,77.00,Solutions Accommodation Providers Ltd,Accommodation Costs,2004575,201807,
Rother District Council,01/10/2018,091HOUSING,Housing and Community Services,20200,Housing Needs - HB (Housing Benefit),D2514,Accommodation Costs,308.00,Solutions Accommodation Providers Ltd,Accommodation Costs,2004575,201807,
Rother District Council,01/10/2018,091HOUSING,Housing and Community Services,20200,Housing Needs - HB (Housing Benefit),D2514,Accommodation Costs,490.00,Solutions Accommodation Providers Ltd,Accommodation Costs,2004574,201807,
Rother District Council,01/10/2018,091HOUSING,Housing and Community Services,20200,Housing Needs - HB (Housing Benefit),D2514,Accommodation Costs,77.00,Solutions Accommodation Providers Ltd,Accommodation Costs,2004576,201807,
Rother District Council,01/10/2018,091HOUSING,Housing and Community Services,20200,Housing Needs - HB (Housing Benefit),D2514,Accommodation Costs,308.00,Solutions Accommodation Providers Ltd,Accommodation Costs,2004576,201807,
Rother District Council,01/10/2018,091HOUSING,Housing and Community Services,20200,Housing Needs - HB (Housing Benefit),D2514,Accommodation Costs,98.00,Solutions Accommodation Providers Ltd,Accommodation Costs,2004573,201807,
Rother District Council,01/10/2018,091HOUSING,Housing and Community Services,20200,Housing Needs - HB (Housing Benefit),D2514,Accommodation Costs,392.00,Solutions Accommodation Providers Ltd,Accommodation Costs,2004573,201807,
Rother District Council,01/10/2018,091HOUSING,Housing and Community Services,20200,Housing Needs - HB (Housing Benefit),D2514,Accommodation Costs,220.50,Solutions Accommodation Providers Ltd,Accommodation Costs,2004566,201807,
Rother District Council,01/10/2018,091HOUSING,Housing and Community Services,20200,Housing Needs - HB (Housing Benefit),D2514,Accommodation Costs,12.00,Solutions Accommodation Providers Ltd,Accommodation Costs,2004578,201807,
Rother District Council,01/10/2018,091HOUSING,Housing and Community Services,20200,Housing Needs - HB (Housing Benefit),D2514,Accommodation Costs,48.00,Solutions Accommodation Providers Ltd,Accommodation Costs,2004578,201807,
Rother District Council,01/10/2018,091HOUSING,Housing and Community Services,20200,Housing Needs - HB (Housing Benefit),D2514,Accommodation Costs,84.00,Solutions Accommodation Providers Ltd,Accommodation Costs,2004571,201807,
Rother District Council,01/10/2018,091HOUSING,Housing and Community Services,20200,Housing Needs - HB (Housing Benefit),D2514,Accommodation Costs,336.00,Solutions Accommodation Providers Ltd,Accommodation Costs,2004571,201807,
Rother District Council,01/10/2018,091HOUSING,Housing and Community Services,20200,Housing Needs - HB (Housing Benefit),D2514,Accommodation Costs,165.00,Solutions Accommodation Providers Ltd,Accommodation Costs,2004577,201807,
Rother District Council,01/10/2018,091HOUSING,Housing and Community Services,20200,Housing Needs - HB (Housing Benefit),D2514,Accommodation Costs,200.00,Chapmans of Hastings,Accommodation Costs,2004522,201807,
Rother District Council,01/10/2018,091HOUSING,Housing and Community Services,20200,Housing Needs - HB (Housing Benefit),D2508,Removals and Storage,80.00,1066 Storage Services,Removals and Storage,2004518,201807,
Rother District Council,01/10/2018,091HOUSING,Housing and Community Services,20200,Housing Needs - HB (Housing Benefit),D2508,Removals and Storage,160.00,1066 Storage Services,Removals and Storage,2004519,201807,
Rother District Council,01/10/2018,091HOUSING,Housing and Community Services,20200,Housing Needs - HB (Housing Benefit),D2508,Removals and Storage,135.00,1066 Storage Services,Removals and Storage,2004524,201807,
Rother District Council,01/10/2018,091HOUSING,Housing and Community Services,20200,Housing Needs - HB (Housing Benefit),D2508,Removals and Storage,150.00,Chapmans of Hastings,Removals and Storage,2004562,201807,
Rother District Council,01/10/2018,091HOUSING,Housing and Community Services,20200,Housing Needs - HB (Housing Benefit),D2508,Removals and Storage,160.00,1066 Storage Services,Removals and Storage,2005384,201808,
Rother District Council,01/10/2018,999NOREPORT,Resources,90000,Balance sheet all accounts,T1002,Childcare Vouchers,"1,844.60",Computershare Voucher Services,Childcare Vouchers,2004753,201807,
Rother District Council,01/10/2018,999NOREPORT,Environmental Services,70706,Capital - Disable Facilities Grant,N1012,Capital Advances,"10,000.00",REDACTED PERSONAL DATA,Capital Advances Disabled Facilities Grant,2004662,201807,
Rother District Council,02/10/2018,071STRAT,Strategy and Planning,20246,Planning Applications,A1110,Agency Staff,166.44,The Work People CIC,Agency Staff,2004488,201807,
Rother District Council,02/10/2018,031RESOURCES,Executive Directors & Corporate Core,20172,Facilities Management,A1110,Agency Staff,122.20,The Work People CIC,Agency Staff,2004606,201807,
Rother District Council,02/10/2018,091HOUSING,Housing and Community Services,20200,Housing Needs - HB (Housing Benefit),A1110,Agency Staff,770.00,Oyster Partnership,Agency Staff,2005228,201807,
Rother District Council,02/10/2018,091HOUSING,Housing and Community Services,20200,Housing Needs - HB (Housing Benefit),A1110,Agency Staff,937.50,Oyster Partnership,Agency Staff,2005229,201807,
Rother District Council,02/10/2018,999NOREPORT,Housing and Community Services,70714,Capital - Grants Halls and Community Projects,N1011,Capital Grants,"3,000.00",Netherfield Pre-School,Capital Grants Community Grants Scheme,2005256,201807,
Rother District Council,02/10/2018,081ACQUISIT,"Acquisitions, Transformation and Regeneration",20153,"Elva Business Centre, Bexhill",B2611,Contract cleaning,127.40,J M Waste Management Limited,Contract cleaning Office Cleaning,2004837,201807,
Rother District Council,02/10/2018,031RESOURCES,Executive Directors & Corporate Core,20171,Human Resources,D1201,Equipment & Materials,"1,900.00",ADM Training Ltd,Equipment & Materials Health and Safety Act Equipment,2004584,201807,
Rother District Council,02/10/2018,091HOUSING,Housing and Community Services,20145,Maintenance Services,D1201,Equipment & Materials,41.38,Trade UK Account (Screwfix),Equipment & Materials Purchase of Tools,2004839,201807,
Rother District Council,02/10/2018,091HOUSING,Housing and Community Services,20145,Maintenance Services,D1201,Equipment & Materials,44.53,Trade UK Account (Screwfix),Equipment & Materials Purchase of Tools,2004843,201807,
Rother District Council,02/10/2018,081ACQUISIT,"Acquisitions, Transformation and Regeneration",20143,Community Strategy,D2923,Grants made,"9,500.00",Rother Voluntary Action,Grants made - SLA Contribution,2004528,201807,
Rother District Council,02/10/2018,091HOUSING,Housing and Community Services,20109,Sports Development,D2923,Grants made,105.00,Hastings Borough Council,Grants made Sports Development - Active Rother,2004521,201807,Yes
Rother District Council,02/10/2018,031RESOURCES,Executive Directors & Corporate Core,20185,Joint Waste procurement,D2513,Hired and Contracted services,"29,939.78",Bevan Brittan LLP,Hired and contracted services Service fee paid,2005556,201808,
Rother District Council,02/10/2018,081ACQUISIT,"Acquisitions, Transformation and Regeneration",20154,Committee Property Account,B1100,Repairs to Premises,3.10,Trade UK Account (Screwfix),Repairs to Premises Purchase of Materials - Build Maint,2004840,201807,
Rother District Council,02/10/2018,081ACQUISIT,"Acquisitions, Transformation and Regeneration",20154,Committee Property Account,B2422,Sewerage,12.28,Scottish Water Business Stream Limited,Sewage Charges,2004587,201807,
Rother District Council,02/10/2018,091HOUSING,Housing and Community Services,20128,Public Conveniences,B2422,Sewerage,102.67,Scottish Water Business Stream Limited,Sewage Charges,2004588,201807,
Rother District Council,02/10/2018,091HOUSING,Housing and Community Services,20128,Public Conveniences,B2422,Sewerage,239.77,Scottish Water Business Stream Limited,Sewage Charges,2004589,201807,
Rother District Council,02/10/2018,101RESOURCES,Resources,20242,Communications-Phones,D2621,Telephones,45.22,TalkTalk Communications Ltd T/A TalkTalk Business,Telephones Telephone Call Costs + Line Rental,2005166,201807,
Rother District Council,02/10/2018,091HOUSING,Housing and Community Services,20200,Housing Needs - HB (Housing Benefit),D2508,Removals and Storage,140.00,Stamford Storage Solutions,Removals and Storage,2004602,201807,
Rother District Council,02/10/2018,091HOUSING,Housing and Community Services,20200,Housing Needs - HB (Housing Benefit),D2508,Removals and Storage,85.00,Stamford Storage Solutions,Removals and Storage,2004603,201807,
Rother District Council,02/10/2018,091HOUSING,Housing and Community Services,20200,Housing Needs - HB (Housing Benefit),D2508,Removals and Storage,150.00,Stamford Storage Solutions,Removals and Storage,2004604,201807,
Rother District Council,02/10/2018,091HOUSING,Housing and Community Services,20200,Housing Needs - HB (Housing Benefit),D2508,Removals and Storage,180.00,Stamford Storage Solutions,Removals and Storage,2004605,201807,
Rother District Council,02/10/2018,031RESOURCES,Executive Directors & Corporate Core,20171,Human Resources,A2203,Training,330.00,Mike J Tucker,Training,2004535,201807,
Rother District Council,02/10/2018,031RESOURCES,Executive Directors & Corporate Core,20171,Human Resources,A2203,Training,330.00,Mike J Tucker,Training,2004536,201807,
Rother District Council,03/10/2018,031RESOURCES,Executive Directors & Corporate Core,20175,Administrative Offices - T.H. Annex (NOT CHP),B2612,Cleaning materials,166.56,Wightman and Parrish Ltd,Cleaning materials Premises,2004610,201807,
Rother District Council,03/10/2018,101RESOURCES,Resources,20240,Printing Services,D2417,Photocopy Paper by external suppliers,351.40,Canon (UK) Ltd,CLOSED,2004657,201807,
Rother District Council,03/10/2018,041ENVIRON,Environmental Services,32134,EH Pollution R + W Partnership,D1201,Equipment & Materials,82.66,Greenham,Equipment & Materials EnvH- Pollution Equipment,2004878,201807,
Rother District Council,03/10/2018,091HOUSING,Housing and Community Services,20145,Maintenance Services,D1201,Equipment & Materials,-4.99,Trade UK Account (Screwfix),Equipment & Materials Purchase of Tools,2004838,201807,
Rother District Council,03/10/2018,041ENVIRON,Environmental Services,32143,EH Licenses and Registration R + W Partnership,D2513,Hired and Contracted services,280.00,Fairfield House Veterinary Surgery,Hired and contracted services EnvH-Veterinary Services for Licens,2006433,201809,
Rother District Council,03/10/2018,101RESOURCES,Resources,20212,Risk Management/Insurance,D2520,Insurance,"3,367.16",Zurich Insurance plc,Insurance Insurance -Terrorism,2004641,201807,
Rother District Council,03/10/2018,101RESOURCES,Resources,20212,Risk Management/Insurance,D2520,Insurance,404.06,Zurich Insurance plc,Insurance Insurance -Terrorism,2004641,201807,
Rother District Council,03/10/2018,101RESOURCES,Resources,20212,Risk Management/Insurance,D2520,Insurance,649.51,Zurich Insurance plc,Insurance Insurance -Terrorism,2004642,201807,
Rother District Council,03/10/2018,101RESOURCES,Resources,20212,Risk Management/Insurance,D2520,Insurance,77.94,Zurich Insurance plc,Insurance Insurance -Terrorism,2004642,201807,
Rother District Council,03/10/2018,081ACQUISIT,"Acquisitions, Transformation and Regeneration",20154,Committee Property Account,B2311,Rents and service charges,45.00,The Crown Estate,Rents and service charges Rents - Rye,2004590,201809,
Rother District Council,03/10/2018,081ACQUISIT,"Acquisitions, Transformation and Regeneration",20154,Committee Property Account,B1100,Repairs to Premises,23.57,Jewson Limited,Repairs to Premises Purchase of Materials - Build Maint,2004793,201807,
Rother District Council,03/10/2018,091HOUSING,Housing and Community Services,20113,Bexhill Leisure Pool,B1100,Repairs to Premises,524.00,Gilgen Doors Systems UK Ltd,Repairs to Premises Repairs - Doors,2005113,201808,
Rother District Council,03/10/2018,091HOUSING,Housing and Community Services,20128,Public Conveniences,B2422,Sewerage,330.00,CountyClean Environmental Services Ltd,Sewerage - Sewage/Cesspool Emptying,2004733,201807,
Rother District Council,03/10/2018,101RESOURCES,Resources,20241,Stationery,D2416,Stationery ordered internally (Print Room),3.19,Office Depot UK Ltd,Stationery (General office Supplies) (Stationery Services to buy ONLY),2004561,201807,
Rother District Council,03/10/2018,091HOUSING,Housing and Community Services,20206,Syrians,D2513,Hired and Contracted services,603.70,Sanctuary Housing Association,Syrian Resettlement Programme - Rent,2004649,201807,
Rother District Council,03/10/2018,071STRAT,Strategy and Planning,20259,Land Charges,E1101,Third party payment other LAs,"4,150.00",East Sussex County Council,Third party payment other LAs Fee Payments to ESCC,2004648,201807,
Rother District Council,03/10/2018,071STRAT,Strategy and Planning,20259,Land Charges,E1101,Third party payment other LAs,810.00,East Sussex County Council,Third party payment other LAs Fee Payments to ESCC,2004651,201807,
Rother District Council,03/10/2018,041ENVIRON,Environmental Services,32144,EH Environmental Services Admin R + W Partnership,D2513,Hired and Contracted services,187.50,Rocksure Systems Ltd,Hired and Contracted services,2004517,201807,
Rother District Council,04/10/2018,101RESOURCES,Resources,20240,Printing Services,D2417,Photocopy Paper by external suppliers,188.44,Premier Paper Group Ltd,CLOSED,2004623,201807,
Rother District Council,04/10/2018,101RESOURCES,Resources,20240,Printing Services,D2417,Photocopy Paper by external suppliers,229.95,Premier Paper Group Ltd,CLOSED,2004623,201807,
Rother District Council,04/10/2018,101RESOURCES,Resources,20240,Printing Services,D2417,Photocopy Paper by external suppliers,82.10,Premier Paper Group Ltd,CLOSED,2004623,201807,
Rother District Council,04/10/2018,101RESOURCES,Resources,20216,Cost Of Collection,D2513,Hired and Contracted services,18.00,H M Land Registry,Hired and contracted services Council Tax-Land Registry Enquiries,2004779,201807,
Rother District Council,04/10/2018,071STRAT,Strategy and Planning,32145,Building Control Applications R+H Partnership,D2513,Hired and Contracted services,21.00,H M Land Registry,Hired and contracted services Env H- Land Registry,2004779,201807,
Rother District Council,04/10/2018,041ENVIRON,Environmental Services,32144,EH Environmental Services Admin R + W Partnership,D2513,Hired and Contracted services,6.00,H M Land Registry,Hired and contracted services Env H- Land Registry,2004779,201807,
Rother District Council,04/10/2018,091HOUSING,Housing and Community Services,20200,Housing Needs - HB (Housing Benefit),D2513,Hired and Contracted services,2.00,H M Land Registry,Hired and contracted services Housing- Land Registry,2004779,201807,
Rother District Council,04/10/2018,071STRAT,Strategy and Planning,20246,Planning Applications,D2513,Hired and Contracted services,15.00,H M Land Registry,Hired and contracted services Land Registry - Planning,2004779,201807,
Rother District Council,04/10/2018,031RESOURCES,Executive Directors & Corporate Core,20182,Legal Services,D2513,Hired and Contracted services,20.00,H M Land Registry,Hired and contracted services Legal - Land Registry Fees,2004779,201807,
Rother District Council,04/10/2018,091HOUSING,Housing and Community Services,20204,Housing Administration Account,D2513,Hired and Contracted services,82.50,Wealden and Eastbourne Lifeline,Hired and contracted services Out Of Hours Call Answering Service,2004653,201807,
Rother District Council,04/10/2018,101RESOURCES,Resources,20240,Printing Services,D2417,Photocopy Paper by external suppliers,193.67,Premier Paper Group Ltd,Photocopy Paper Wide Format Consumables,2004623,201807,
Rother District Council,04/10/2018,091HOUSING,Housing and Community Services,20114,Bexhill Parks & Open Spaces,B1100,Repairs to Premises,369.45,Palmstead Nurseries Ltd,Repairs to Premises Parks- Purchase of Plants,2004944,201807,
Rother District Council,04/10/2018,031RESOURCES,Executive Directors & Corporate Core,20173,Administrative Offices - Town Hall,B1100,Repairs to Premises,43.92,Graham,Repairs to Premises Purchase of Materials - Build Maint,2004784,201807,
Rother District Council,04/10/2018,091HOUSING,Housing and Community Services,20138,Residual Highway Services,B1100,Repairs to Premises,67.50,Alfa Electric Ltd,Repairs to Premises Repairs - Electrical Works,2004919,201807,
Rother District Council,04/10/2018,101RESOURCES,Resources,20241,Stationery,D2420,General office supplies (Stationery purchased from ext suppliers),65.33,Office Depot UK Ltd,Stationery (General office Supplies) (Stationery Services to buy ONLY),2004624,201807,
Rother District Council,04/10/2018,101RESOURCES,Resources,20240,Printing Services,E2302,Third party payment private contractors,553.50,Sonar Technologies Ltd,Third party payment private contractors Work by Outside Contractors,2005000,201807,
Rother District Council,04/10/2018,041ENVIRON,Environmental Services,32144,EH Environmental Services Admin R + W Partnership,A2203,Training,640.00,Institute of Licensing Ltd,Training,2005003,201807,
Rother District Council,04/10/2018,041ENVIRON,Environmental Services,32140,EN Wealden Training (WEALDEN ONLY) R + W Partnership,D2513,Hired and Contracted services,184.00,The Pelham,Hired and Contracted services,2004743,201807,
Rother District Council,04/10/2018,091HOUSING,Housing and Community Services,20108,Bexhill Promenade & Foreshore,D2513,Hired and Contracted services,"1,507.00",Robin G Randall,Equipment & Materials Marker Buoys and Signs,2004625,201807,
Rother District Council,05/10/2018,101RESOURCES,Resources,20209,Corporate management,D2513,Hired and Contracted services,283.92,Capita Business Services Ltd,Bank Charges Bank Charges,2005162,201807,
Rother District Council,05/10/2018,101RESOURCES,Resources,20209,Corporate management,D2513,Hired and Contracted services,61.00,Lloyds Bank,Bank Charges Bank Charges,2005168,201807,
Rother District Council,05/10/2018,031RESOURCES,Executive Directors & Corporate Core,20162,Electoral Registration,D1203,Books And Publications,-223.00,Thomson Reuters Ltd,Books And Publications Miscellaneous Legal Reference Books,2005157,201808,
Rother District Council,05/10/2018,101RESOURCES,Resources,20222,Accountancy,D2509,Consultants and Other Services,"3,000.00",Mishcon De Reya LLP,Business Consultants,2004721,201807,
Rother District Council,05/10/2018,091HOUSING,Housing and Community Services,20145,Maintenance Services,D1201,Equipment & Materials,41.65,Trade UK Account (Screwfix),Equipment & Materials Purchase of Tools,2004842,201807,
Rother District Council,05/10/2018,091HOUSING,Housing and Community Services,20145,Maintenance Services,D1201,Equipment & Materials,12.49,Trade UK Account (Screwfix),Equipment & Materials Purchase of Tools,2004844,201807,
Rother District Council,05/10/2018,031RESOURCES,Executive Directors & Corporate Core,20159,Corporate Policy Making,D2420,General office supplies (Stationery purchased from ext suppliers),164.00,Shaw and Sons Ltd,General Office Stationary,2004801,201807,
Rother District Council,05/10/2018,091HOUSING,Housing and Community Services,20109,Sports Development,D2923,Grants made,270.00,Rother Voluntary Action,Grants made Sports Development - Active Rother,2005465,201808,Yes
Rother District Council,05/10/2018,091HOUSING,Housing and Community Services,20109,Sports Development,D2923,Grants made,270.00,Rother Voluntary Action,Grants made Sports Development - Active Rother,2004696,201807,Yes
Rother District Council,05/10/2018,101RESOURCES,Resources,20216,Cost Of Collection,D2513,Hired and Contracted services,18.00,H M Land Registry,Hired and contracted services Council Tax-Land Registry Enquiries,2004761,201807,
Rother District Council,05/10/2018,041ENVIRON,Environmental Services,32143,EH Licenses and Registration R + W Partnership,D2513,Hired and Contracted services,460.00,Fairfield House Veterinary Surgery,Hired and contracted services EnvH-Veterinary Services for Licens,2006435,201809,
Rother District Council,05/10/2018,091HOUSING,Housing and Community Services,20200,Housing Needs - HB (Housing Benefit),D2513,Hired and Contracted services,6.00,H M Land Registry,Hired and contracted services Housing- Land Registry,2004761,201807,
Rother District Council,05/10/2018,041ENVIRON,Environmental Services,32142,EH Taxi and Private Hire Licenses R + W Partnership,D2513,Hired and Contracted services,176.00,uCheck,Hired and contracted services Service fee paid,2005626,201808,
Rother District Council,05/10/2018,041ENVIRON,Environmental Services,32142,EH Taxi and Private Hire Licenses R + W Partnership,D2513,Hired and Contracted services,34.68,uCheck,Hired and contracted services Service fee paid,2005626,201808,
Rother District Council,05/10/2018,041ENVIRON,Environmental Services,32144,EH Environmental Services Admin R + W Partnership,D2513,Hired and Contracted services,40.30,Wealden and Eastbourne Lifeline,Hired and contracted services Service fee paid,2004789,201807,
Rother District Council,05/10/2018,091HOUSING,Housing and Community Services,20200,Housing Needs - HB (Housing Benefit),D2514,Accommodation Costs,"1,300.00",Reeds Rains Estate Agents,Homelessness services Temp Accom - No VAT,2005158,201807,
Rother District Council,05/10/2018,091HOUSING,Housing and Community Services,20113,Bexhill Leisure Pool,B1100,Repairs to Premises,499.92,Alfa Electric Ltd,Repairs to Premises Lighting Repairs,2004658,201807,
Rother District Council,05/10/2018,091HOUSING,Housing and Community Services,20113,Bexhill Leisure Pool,B1100,Repairs to Premises,"2,380.00",Colin A May,Repairs to Premises Painting Works,2006376,201809,
Rother District Council,05/10/2018,091HOUSING,Housing and Community Services,20113,Bexhill Leisure Pool,B1100,Repairs to Premises,860.00,Colin A May,Repairs to Premises Painting Works,2006376,201809,
Rother District Council,05/10/2018,091HOUSING,Housing and Community Services,20102,Rother Museum Services,B1100,Repairs to Premises,113.96,Stannah Lift Services Ltd,Repairs to Premises Specified Repairs and Works listed,2004783,201807,
Rother District Council,05/10/2018,071STRAT,Strategy and Planning,20246,Planning Applications,D2519,Statutory Advertising,"1,037.00",Johnston Publishing Ltd,Statutory Advertising Planadv - Rye + Battle Observer,2004786,201807,
Rother District Council,05/10/2018,091HOUSING,Housing and Community Services,20200,Housing Needs - HB (Housing Benefit),D2508,Removals and Storage,195.00,MB Hotels Ltd,Removals and Storage,2004611,201807,
Rother District Council,05/10/2018,091HOUSING,Housing and Community Services,20200,Housing Needs - HB (Housing Benefit),D2514,Accommodation Costs,195.00,MB Hotels Ltd,Accommodation Costs,2004612,201807,
Rother District Council,05/10/2018,101RESOURCES,Resources,20209,Corporate management,D2513,Hired and Contracted services,"10,000.00",BDO LLP,Hired and Contracted services,2004712,201807,
Rother District Council,05/10/2018,091HOUSING,Housing and Community Services,20200,Housing Needs - HB (Housing Benefit),D2514,Accommodation Costs,210.00,MB Hotels Ltd,Accommodation Costs,2004705,201807,
Rother District Council,05/10/2018,091HOUSING,Housing and Community Services,20200,Housing Needs - HB (Housing Benefit),D2514,Accommodation Costs,245.00,MB Hotels Ltd,Accommodation Costs,2004709,201807,
Rother District Council,05/10/2018,091HOUSING,Housing and Community Services,20200,Housing Needs - HB (Housing Benefit),D2514,Accommodation Costs,245.00,MB Hotels Ltd,Accommodation Costs,2004710,201807,
Rother District Council,05/10/2018,091HOUSING,Housing and Community Services,20200,Housing Needs - HB (Housing Benefit),D2514,Accommodation Costs,560.00,MB Hotels Ltd,Accommodation Costs,2004711,201807,
Rother District Council,05/10/2018,091HOUSING,Housing and Community Services,20200,Housing Needs - HB (Housing Benefit),D2514,Accommodation Costs,560.00,MB Hotels Ltd,Accommodation Costs,2004713,201807,
Rother District Council,05/10/2018,091HOUSING,Housing and Community Services,20200,Housing Needs - HB (Housing Benefit),D2514,Accommodation Costs,195.00,MB Hotels Ltd,Accommodation Costs,2004699,201807,
Rother District Council,05/10/2018,091HOUSING,Housing and Community Services,20200,Housing Needs - HB (Housing Benefit),D2514,Accommodation Costs,195.00,MB Hotels Ltd,Accommodation Costs,2004700,201807,
Rother District Council,05/10/2018,091HOUSING,Housing and Community Services,20200,Housing Needs - HB (Housing Benefit),D2514,Accommodation Costs,195.00,MB Hotels Ltd,Accommodation Costs,2004701,201807,
Rother District Council,05/10/2018,091HOUSING,Housing and Community Services,20200,Housing Needs - HB (Housing Benefit),D2514,Accommodation Costs,195.00,MB Hotels Ltd,Accommodation Costs,2004702,201807,
Rother District Council,05/10/2018,091HOUSING,Housing and Community Services,20200,Housing Needs - HB (Housing Benefit),D2514,Accommodation Costs,245.00,MB Hotels Ltd,Accommodation Costs,2004703,201807,
Rother District Council,05/10/2018,091HOUSING,Housing and Community Services,20200,Housing Needs - HB (Housing Benefit),D2514,Accommodation Costs,245.00,MB Hotels Ltd,Accommodation Costs,2004704,201807,
Rother District Council,05/10/2018,091HOUSING,Housing and Community Services,20200,Housing Needs - HB (Housing Benefit),D2508,Removals and Storage,405.00,Stamford Storage Solutions,Removals and Storage,2005012,201807,
Rother District Council,05/10/2018,091HOUSING,Housing and Community Services,20200,Housing Needs - HB (Housing Benefit),D2514,Accommodation Costs,290.00,MB Hotels Ltd,Accommodation Costs,2005037,201807,
Rother District Council,05/10/2018,091HOUSING,Housing and Community Services,20200,Housing Needs - HB (Housing Benefit),D2514,Accommodation Costs,290.00,MB Hotels Ltd,Accommodation Costs,2005038,201807,
Rother District Council,05/10/2018,091HOUSING,Housing and Community Services,20200,Housing Needs - HB (Housing Benefit),D2514,Accommodation Costs,105.00,MB Hotels Ltd,Accommodation Costs,2005039,201807,
Rother District Council,05/10/2018,091HOUSING,Housing and Community Services,20200,Housing Needs - HB (Housing Benefit),D2514,Accommodation Costs,245.00,MB Hotels Ltd,Accommodation Costs,2004698,201807,
Rother District Council,06/10/2018,031RESOURCES,Executive Directors & Corporate Core,20184,Rother 2020,D2509,Consultants and Other Services,"4,950.00",CLS Energy (Consultancy) Ltd,Consultants and other services Consultants Fees,2004681,201807,
Rother District Council,06/10/2018,031RESOURCES,Executive Directors & Corporate Core,20173,Administrative Offices - Town Hall,B1100,Repairs to Premises,"2,070.76",Alfa Electric Ltd,Repairs to Premises Specified Repairs and Works listed,2004731,201807,
Rother District Council,06/10/2018,031RESOURCES,Executive Directors & Corporate Core,20170,Communications-Postages,D2626,Postages,"4,043.63",Pitney Bowes Purchase Power,Stock Accounts Town Hall Franking Machine,2004943,201807,
Rother District Council,07/10/2018,091HOUSING,Housing and Community Services,20200,Housing Needs - HB (Housing Benefit),D2514,Accommodation Costs,262.50,Specialist Care UK Group Ltd,Accommodation Costs,2004683,201807,
Rother District Council,07/10/2018,091HOUSING,Housing and Community Services,20200,Housing Needs - HB (Housing Benefit),D2514,Accommodation Costs,175.00,Specialist Care UK Group Ltd,Accommodation Costs,2004684,201807,
Rother District Council,07/10/2018,091HOUSING,Housing and Community Services,20200,Housing Needs - HB (Housing Benefit),D2514,Accommodation Costs,225.00,Specialist Care UK Group Ltd,Accommodation Costs,2004686,201807,
Rother District Council,07/10/2018,091HOUSING,Housing and Community Services,20200,Housing Needs - HB (Housing Benefit),D2514,Accommodation Costs,75.00,Specialist Care UK Group Ltd,Accommodation Costs,2004687,201807,
Rother District Council,07/10/2018,091HOUSING,Housing and Community Services,20200,Housing Needs - HB (Housing Benefit),D2514,Accommodation Costs,37.50,Specialist Care UK Group Ltd,Accommodation Costs,2004688,201807,
Rother District Council,07/10/2018,091HOUSING,Housing and Community Services,20200,Housing Needs - HB (Housing Benefit),D2514,Accommodation Costs,300.00,Specialist Care UK Group Ltd,Accommodation Costs,2004689,201807,
Rother District Council,07/10/2018,091HOUSING,Housing and Community Services,20200,Housing Needs - HB (Housing Benefit),D2514,Accommodation Costs,262.50,Specialist Care UK Group Ltd,Accommodation Costs,2004690,201807,
Rother District Council,07/10/2018,091HOUSING,Housing and Community Services,20200,Housing Needs - HB (Housing Benefit),D2514,Accommodation Costs,262.50,Specialist Care UK Group Ltd,Accommodation Costs,2004691,201807,
Rother District Council,07/10/2018,091HOUSING,Housing and Community Services,20200,Housing Needs - HB (Housing Benefit),D2514,Accommodation Costs,262.50,Specialist Care UK Group Ltd,Accommodation Costs,2004692,201807,
Rother District Council,07/10/2018,091HOUSING,Housing and Community Services,20200,Housing Needs - HB (Housing Benefit),D2514,Accommodation Costs,375.00,Specialist Care UK Group Ltd,Accommodation Costs,2004693,201807,
Rother District Council,07/10/2018,091HOUSING,Housing and Community Services,20200,Housing Needs - HB (Housing Benefit),D2514,Accommodation Costs,350.00,Specialist Care UK Group Ltd,Accommodation Costs,2004694,201807,
Rother District Council,07/10/2018,091HOUSING,Housing and Community Services,20200,Housing Needs - HB (Housing Benefit),D2514,Accommodation Costs,537.50,Specialist Care UK Group Ltd,Accommodation Costs,2004695,201807,
Rother District Council,07/10/2018,091HOUSING,Housing and Community Services,20200,Housing Needs - HB (Housing Benefit),D2514,Accommodation Costs,350.00,Specialist Care UK Group Ltd,Accommodation Costs,2004685,201807,
Rother District Council,08/10/2018,999NOREPORT,Environmental Services,70706,Capital - Disable Facilities Grant,N1012,Capital Advances,816.39,Peabody South East Ltd,Capital Advances Disabled Facilities Grant,2004816,201807,
Rother District Council,08/10/2018,999NOREPORT,Environmental Services,70706,Capital - Disable Facilities Grant,N1012,Capital Advances,810.48,Peabody South East Ltd,Capital Advances Disabled Facilities Grant,2004817,201807,
Rother District Council,08/10/2018,999NOREPORT,Environmental Services,70706,Capital - Disable Facilities Grant,N1012,Capital Advances,985.00,J D Mills Ltd,Capital Advances Disabled Facilities Grant,2004818,201807,
Rother District Council,08/10/2018,999NOREPORT,Environmental Services,70706,Capital - Disable Facilities Grant,N1012,Capital Advances,"1,642.75",Peabody South East Ltd,Capital Advances Disabled Facilities Grant,2004820,201807,
Rother District Council,08/10/2018,999NOREPORT,Environmental Services,70706,Capital - Disable Facilities Grant,N1012,Capital Advances,937.45,Peabody South East Ltd,Capital Advances Disabled Facilities Grant,2004821,201807,
Rother District Council,08/10/2018,999NOREPORT,Environmental Services,70706,Capital - Disable Facilities Grant,N1012,Capital Advances,"1,261.43",Peabody South East Ltd,Capital Advances Disabled Facilities Grant,2004823,201807,
Rother District Council,08/10/2018,999NOREPORT,Environmental Services,70706,Capital - Disable Facilities Grant,N1012,Capital Advances,"1,423.00",Southern Mobility Centres Ltd,Capital Advances Disabled Facilities Grant,2004824,201807,
Rother District Council,08/10/2018,999NOREPORT,Environmental Services,70706,Capital - Disable Facilities Grant,N1012,Capital Advances,"1,729.20",Peabody South East Ltd,Capital Advances Disabled Facilities Grant,2004827,201807,
Rother District Council,08/10/2018,999NOREPORT,Environmental Services,70706,Capital - Disable Facilities Grant,N1012,Capital Advances,"4,900.00",Prestige Stairlifts Ltd,Capital Advances Disabled Facilities Grant,2004828,201807,
Rother District Council,08/10/2018,999NOREPORT,Environmental Services,70706,Capital - Disable Facilities Grant,N1012,Capital Advances,"6,229.69",Hedley Visick Ltd,Capital Advances Disabled Facilities Grant,2004831,201807,
Rother District Council,08/10/2018,999NOREPORT,Environmental Services,70706,Capital - Disable Facilities Grant,N1012,Capital Advances,"5,403.21",Mark Bishop Ltd,Capital Advances Disabled Facilities Grant,2004833,201807,
Rother District Council,08/10/2018,999NOREPORT,Environmental Services,70706,Capital - Disable Facilities Grant,N1012,Capital Advances,"6,000.00",Mr Mark Neale General Building and Plumbing Ltd,Capital Advances Disabled Facilities Grant,2004834,201807,
Rother District Council,08/10/2018,999NOREPORT,Environmental Services,70706,Capital - Disable Facilities Grant,N1012,Capital Advances,"5,989.73",Premiere Projects Ltd,Capital Advances Disabled Facilities Grant,2004836,201807,
Rother District Council,08/10/2018,999NOREPORT,Environmental Services,70706,Capital - Disable Facilities Grant,N1012,Capital Advances,"1,258.46",Peabody South East Ltd,Capital Advances Disabled Facilities Grant,2004811,201807,
Rother District Council,08/10/2018,999NOREPORT,Environmental Services,70706,Capital - Disable Facilities Grant,N1012,Capital Advances,"4,000.00",The Build Works,Capital Advances Disabled Facilities Grant,2004812,201807,
Rother District Council,08/10/2018,999NOREPORT,Environmental Services,70706,Capital - Disable Facilities Grant,N1012,Capital Advances,"10,000.00",Alfa Electric Ltd,Capital Advances Disabled Facilities Grant,2004814,201807,
Rother District Council,08/10/2018,999NOREPORT,Environmental Services,70706,Capital - Disable Facilities Grant,N1012,Capital Advances,"5,442.68",Mark Bishop Ltd,Capital Advances Disabled Facilities Grant,2004815,201807,
Rother District Council,08/10/2018,091HOUSING,Housing and Community Services,20102,Rother Museum Services,D1201,Equipment & Materials,120.00,J S Fire Protection Ltd,Equipment & Materials Fire Equipment Maintenance,2004720,201807,
Rother District Council,08/10/2018,031RESOURCES,Executive Directors & Corporate Core,20171,Human Resources,D1201,Equipment & Materials,525.00,Witham Brothers Ltd,Equipment & Materials Health and Safety Act Equipment,2004800,201807,
Rother District Council,08/10/2018,091HOUSING,Housing and Community Services,20145,Maintenance Services,D1201,Equipment & Materials,133.32,Trade UK Account (Screwfix),Equipment & Materials Purchase of Tools,2004995,201807,
Rother District Council,08/10/2018,091HOUSING,Housing and Community Services,20145,Maintenance Services,D1201,Equipment & Materials,67.31,Parker Building Supplies Ltd,Equipment & Materials Purchase of Tools,2004715,201807,
Rother District Council,08/10/2018,091HOUSING,Housing and Community Services,20139,Abandoned Vehicles,D2513,Hired and Contracted services,"2,550.00",The Police and Crime Commissioner for Sussex,Hired and contracted services Collec / Disposal of Aband Vehicles,2004646,201807,
Rother District Council,08/10/2018,091HOUSING,Housing and Community Services,20114,Bexhill Parks & Open Spaces,D2513,Hired and Contracted services,250.00,Wealden District Council,Hired and contracted services Legal Advice,2004650,201807,
Rother District Council,08/10/2018,091HOUSING,Housing and Community Services,20208,Care In The Community,D2513,Hired and Contracted services,235.00,Safe Partnership Ltd,Hired and contracted services Sanctuary DV Assistance Revenue,2004912,201807,
Rother District Council,08/10/2018,091HOUSING,Housing and Community Services,20114,Bexhill Parks & Open Spaces,B1100,Repairs to Premises,"1,678.85",Timberplay Ltd,Repairs to Premises Parks - Playground Repairs,2004795,201807,
Rother District Council,08/10/2018,081ACQUISIT,"Acquisitions, Transformation and Regeneration",20154,Committee Property Account,B1100,Repairs to Premises,2.42,Parker Building Supplies Ltd,Repairs to Premises Purchase of Materials - Build Maint,2004716,201807,
Rother District Council,08/10/2018,091HOUSING,Housing and Community Services,20114,Bexhill Parks & Open Spaces,B1100,Repairs to Premises,21.80,Parker Building Supplies Ltd,Repairs to Premises Purchase of Materials - Build Maint,2004714,201807,
Rother District Council,08/10/2018,091HOUSING,Housing and Community Services,20114,Bexhill Parks & Open Spaces,B2422,Sewerage,138.00,Cleansing Service Group Ltd,Sewerage Parks- Emptying of Cesspit,2004717,201807,
Rother District Council,08/10/2018,101RESOURCES,Resources,20241,Stationery,D2420,General office supplies (Stationery purchased from ext suppliers),55.19,Office Depot UK Ltd,Stationery (General office Supplies) (Stationery Services to buy ONLY),2004718,201807,
Rother District Council,08/10/2018,091HOUSING,Housing and Community Services,20128,Public Conveniences,B2421,Water,148.29,Castle Water Ltd,Water Charges,2004788,201807,
Rother District Council,08/10/2018,091HOUSING,Housing and Community Services,20114,Bexhill Parks & Open Spaces,B2421,Water,593.15,Castle Water Ltd,Water Charges,2004788,201807,
Rother District Council,08/10/2018,091HOUSING,Housing and Community Services,20200,Housing Needs - HB (Housing Benefit),D2514,Accommodation Costs,252.00,South Down Residential Ltd,Accommodation Costs,2004643,201807,
Rother District Council,08/10/2018,091HOUSING,Housing and Community Services,20200,Housing Needs - HB (Housing Benefit),D2514,Accommodation Costs,63.00,South Down Residential Ltd,Accommodation Costs,2004643,201807,
Rother District Council,08/10/2018,091HOUSING,Housing and Community Services,20200,Housing Needs - HB (Housing Benefit),D2514,Accommodation Costs,280.00,South Down Residential Ltd,Accommodation Costs,2004643,201807,
Rother District Council,08/10/2018,091HOUSING,Housing and Community Services,20200,Housing Needs - HB (Housing Benefit),D2514,Accommodation Costs,70.00,South Down Residential Ltd,Accommodation Costs,2004643,201807,
Rother District Council,08/10/2018,091HOUSING,Housing and Community Services,20200,Housing Needs - HB (Housing Benefit),D2514,Accommodation Costs,168.00,South Down Residential Ltd,Accommodation Costs,2004643,201807,
Rother District Council,08/10/2018,091HOUSING,Housing and Community Services,20200,Housing Needs - HB (Housing Benefit),D2514,Accommodation Costs,315.00,South Down Residential Ltd,Accommodation Costs,2004643,201807,
Rother District Council,08/10/2018,091HOUSING,Housing and Community Services,20200,Housing Needs - HB (Housing Benefit),D2514,Accommodation Costs,225.00,South Down Residential Ltd,Accommodation Costs,2004643,201807,
Rother District Council,08/10/2018,091HOUSING,Housing and Community Services,20200,Housing Needs - HB (Housing Benefit),D2514,Accommodation Costs,96.00,South Down Residential Ltd,Accommodation Costs,2004643,201807,
Rother District Council,08/10/2018,091HOUSING,Housing and Community Services,20200,Housing Needs - HB (Housing Benefit),D2508,Removals and Storage,710.00,Stamford Storage Solutions,Removals and Storage,2004664,201807,
Rother District Council,08/10/2018,091HOUSING,Housing and Community Services,20200,Housing Needs - HB (Housing Benefit),D2514,Accommodation Costs,84.00,Solutions Accommodation Providers Ltd,Accommodation Costs,2004951,201807,
Rother District Council,08/10/2018,091HOUSING,Housing and Community Services,20200,Housing Needs - HB (Housing Benefit),D2514,Accommodation Costs,336.00,Solutions Accommodation Providers Ltd,Accommodation Costs,2004951,201807,
Rother District Council,08/10/2018,091HOUSING,Housing and Community Services,20200,Housing Needs - HB (Housing Benefit),D2514,Accommodation Costs,385.00,Solutions Accommodation Providers Ltd,Accommodation Costs,2004956,201807,
Rother District Council,08/10/2018,091HOUSING,Housing and Community Services,20200,Housing Needs - HB (Housing Benefit),D2514,Accommodation Costs,490.00,Solutions Accommodation Providers Ltd,Accommodation Costs,2004953,201807,
Rother District Council,08/10/2018,091HOUSING,Housing and Community Services,20200,Housing Needs - HB (Housing Benefit),D2514,Accommodation Costs,77.00,Solutions Accommodation Providers Ltd,Accommodation Costs,2004954,201807,
Rother District Council,08/10/2018,091HOUSING,Housing and Community Services,20200,Housing Needs - HB (Housing Benefit),D2514,Accommodation Costs,308.00,Solutions Accommodation Providers Ltd,Accommodation Costs,2004954,201807,
Rother District Council,08/10/2018,091HOUSING,Housing and Community Services,20200,Housing Needs - HB (Housing Benefit),D2514,Accommodation Costs,360.00,Solutions Accommodation Providers Ltd,Accommodation Costs,2004958,201807,
Rother District Council,08/10/2018,091HOUSING,Housing and Community Services,20200,Housing Needs - HB (Housing Benefit),D2514,Accommodation Costs,98.00,Solutions Accommodation Providers Ltd,Accommodation Costs,2004952,201807,
Rother District Council,08/10/2018,091HOUSING,Housing and Community Services,20200,Housing Needs - HB (Housing Benefit),D2514,Accommodation Costs,392.00,Solutions Accommodation Providers Ltd,Accommodation Costs,2004952,201807,
Rother District Council,08/10/2018,091HOUSING,Housing and Community Services,20200,Housing Needs - HB (Housing Benefit),D2514,Accommodation Costs,77.00,Solutions Accommodation Providers Ltd,Accommodation Costs,2004955,201807,
Rother District Council,08/10/2018,091HOUSING,Housing and Community Services,20200,Housing Needs - HB (Housing Benefit),D2514,Accommodation Costs,308.00,Solutions Accommodation Providers Ltd,Accommodation Costs,2004955,201807,
Rother District Council,08/10/2018,091HOUSING,Housing and Community Services,20200,Housing Needs - HB (Housing Benefit),D2514,Accommodation Costs,420.00,Solutions Accommodation Providers Ltd,Accommodation Costs,2004957,201807,
Rother District Council,08/10/2018,091HOUSING,Housing and Community Services,20200,Housing Needs - HB (Housing Benefit),D2514,Accommodation Costs,105.00,Solutions Accommodation Providers Ltd,Accommodation Costs,2004927,201807,
Rother District Council,08/10/2018,091HOUSING,Housing and Community Services,20200,Housing Needs - HB (Housing Benefit),D2514,Accommodation Costs,420.00,Solutions Accommodation Providers Ltd,Accommodation Costs,2004927,201807,
